{"text_format":"1","workbook":"xlsx","n_sheets":2,"sheets":["Документ","2021-2023"],"not_rendered":{"charts":0,"images":0,"macros":0,"external_links":0,"defined_names":4,"comments":0,"pivot_tables":0},"unopened":[],"bounds":{"document_bytes":16777216,"sheet_cells":100000,"rows_first":2000,"rows_last":500,"rows_between":2000,"halvings":0,"cell_chars":16384,"cell_head_chars":4096},"cells_cut":0,"cells_raw":0,"read":"whole","date_system":"1900"}

{"sheet":"Документ","index":0,"n_rows":735,"n_cols":19,"rows_kept":735,"cut":false,"hidden":false,"merged":[[734,0,734,18],[0,0,0,4],[1,0,1,18],[2,0,2,18],[3,0,3,18],[732,0,732,4]]}
[]
["Бюджетная роспись (расходы)"]
[]
["Дата: 01.01.2021"]
["Документ, учреждение","Ц.ст.","Расх.","","Разд.","","","","","","Сумма на 2021 год","","","","","","","Сумма на 2022 год","Сумма на 2023 год"]
["  Муниципальная программа \"Развитие муниципальной службы и органов управления ЗАТО г.Радужный Владимирской области\"","0100000000","000","000","0000",null,null,null,null,null,69470650,69470650,0,69470650,0,69470650,0,65376879,62396879]
["      Основное мероприятие \"Создание условий для развития муниципальной службы в муниципальном образовании ЗАТО г.Радужный Владимирской области\"","0100100000","000","000","0000",null,null,null,null,null,7107200,7107200,0,7107200,0,7107200,0,4547200,4547200]
["        Пенсии за выслугу лет лицам, замещавшим муниципальные должности и должности муниципальной службы ЗАТО г. Радужный Владимирской области","0100110500","000","000","0000",null,null,null,null,null,2097200,2097200,0,2097200,0,2097200,0,2097200,2097200]
["          Закупка товаров, работ и услуг для обеспечения государственных (муниципальных) нужд","0100110500","200","000","1001",null,null,null,null,null,20800,20800,0,20800,0,20800,0,20800,20800]
["            Пенсионное обеспечение","0100110500","200","000","1001",null,null,null,null,null,20800,20800,0,20800,0,20800,0,20800,20800]
["          Социальное обеспечение и иные выплаты населению","0100110500","300","000","0000",null,null,null,null,null,2076400,2076400,0,2076400,0,2076400,0,2076400,2076400]
["            Пенсионное обеспечение","0100110500","300","000","1001",null,null,null,null,null,2076400,2076400,0,2076400,0,2076400,0,2076400,2076400]
["        Мероприятия, направленные на повышение эффективности муниципального управления","0100120220","000","000","0000",null,null,null,null,null,3510000,3510000,0,3510000,0,3510000,0,2450000,2450000]
["          Закупка товаров, работ и услуг для обеспечения государственных (муниципальных) нужд","0100120220","200","000","0000",null,null,null,null,null,3510000,3510000,0,3510000,0,3510000,0,2450000,2450000]
["            Другие общегосударственные вопросы","0100120220","200","000","0113",null,null,null,null,null,10000,10000,0,10000,0,10000,0,0,0]
["            Периодическая печать и издательства","0100120220","200","000","1202",null,null,null,null,null,3500000,3500000,0,3500000,0,3500000,0,2450000,2450000]
["        Средства на индексацию заработной платы муниципальных служащих и работников муниципальных казенных учреждений, исполнение Указов Президента о доведении заработной платы согласно \"дорожным картам\"","0100120229","000","000","0000",null,null,null,null,null,1500000,1500000,0,1500000,0,1500000,0,0,0]
["          Иные бюджетные ассигнования","0100120229","800","000","0000",null,null,null,null,null,1500000,1500000,0,1500000,0,1500000,0,0,0]
["            Другие общегосударственные вопросы","0100120229","800","000","0113",null,null,null,null,null,1500000,1500000,0,1500000,0,1500000,0,0,0]
["      Основное мероприятие \"Расходы на обеспечение деятельности центров органов местного самоуправления\"","0100200000","000","000","0000",null,null,null,null,null,8158488,8158488,0,8158488,0,8158488,0,10371769,7391769]
["        Финансирование деятельности профильных (функциональных) центров, созданных в органах местного самоуправления","0100200590","000","000","0000",null,null,null,null,null,8158488,8158488,0,8158488,0,8158488,0,10371769,7391769]
["          Расходы на выплаты персоналу в целях обеспечения выполнения функций государственными (муниципальными) органами, казенными учреждениями, органами управления государственными внебюджетными фондами","0100200590","100","000","0000",null,null,null,null,null,7421614,7421614,0,7421614,0,7421614,0,9715405,6735405]
["            Другие общегосударственные вопросы","0100200590","100","000","0113",null,null,null,null,null,7421614,7421614,0,7421614,0,7421614,0,9715405,6735405]
["          Закупка товаров, работ и услуг для обеспечения государственных (муниципальных) нужд","0100200590","200","000","0000",null,null,null,null,null,736874,736874,0,736874,0,736874,0,656364,656364]
["            Другие общегосударственные вопросы","0100200590","200","000","0113",null,null,null,null,null,736874,736874,0,736874,0,736874,0,656364,656364]
["      Основное мероприятие \"Создание условий для эффективного содержания административных зданий\"","0100300000","000","000","0000",null,null,null,null,null,54043762,54043762,0,54043762,0,54043762,0,50457910,50457910]
["        Финансирование деятельности муниципальных учреждений, обеспечивающих эффективное содержание и эксплуатацию административных зданий","0100300590","000","000","0000",null,null,null,null,null,54043762,54043762,0,54043762,0,54043762,0,50457910,50457910]
["          Расходы на выплаты персоналу в целях обеспечения выполнения функций государственными (муниципальными) органами, казенными учреждениями, органами управления государственными внебюджетными фондами","0100300590","100","000","0000",null,null,null,null,null,40053671,40053671,0,40053671,0,40053671,0,37945063,37945063]
["            Другие общегосударственные вопросы","0100300590","100","000","0113",null,null,null,null,null,40053671,40053671,0,40053671,0,40053671,0,37945063,37945063]
["          Закупка товаров, работ и услуг для обеспечения государственных (муниципальных) нужд","0100300590","200","000","0000",null,null,null,null,null,11906873,11906873,0,11906873,0,11906873,0,9921992,9953544]
["            Другие общегосударственные вопросы","0100300590","200","000","0113",null,null,null,null,null,11906873,11906873,0,11906873,0,11906873,0,9921992,9953544]
["          Иные бюджетные ассигнования","0100300590","800","000","0000",null,null,null,null,null,2083218,2083218,0,2083218,0,2083218,0,2590855,2559303]
["            Другие общегосударственные вопросы","0100300590","800","000","0113",null,null,null,null,null,2083218,2083218,0,2083218,0,2083218,0,2590855,2559303]
["      Основное мероприятие \"Проведение Всероссийской переписи населения 2020 года\"","0100500000","000","000","0000",null,null,null,null,null,161200,161200,0,161200,0,161200,0,0,0]
["        Проведение Всероссийской переписи населения 2020 года","0100554690","000","000","0000",null,null,null,null,null,161200,161200,0,161200,0,161200,0,0,0]
["          Закупка товаров, работ и услуг для обеспечения государственных (муниципальных) нужд","0100554690","200","000","0000",null,null,null,null,null,161200,161200,0,161200,0,161200,0,0,0]
["            Другие общегосударственные вопросы","0100554690","200","000","0113",null,null,null,null,null,161200,161200,0,161200,0,161200,0,0,0]
["  Муниципальная программа \"Обеспечение общественного порядка и профилактики правонарушений ЗАТО г. Радужный Владимирской области Владимирской области\"","0300000000","000","000","0000",null,null,null,null,null,181000,181000,0,181000,0,181000,0,0,0]
["    Подпрограмма \"Комплексные меры противодействия злоупотреблению наркотиками и их незаконному обороту на территории ЗАТО г.Радужный Владимирской области\"","0330000000","000","000","0000",null,null,null,null,null,153000,153000,0,153000,0,153000,0,0,0]
["      Основное мероприятие \"Сокращение масштабов распространения наркомании и связанного с ней социального и экономического ущерба\"","0330100000","000","000","0000",null,null,null,null,null,153000,153000,0,153000,0,153000,0,0,0]
["        Мероприятия, направленные на сокращение масштабов распространения наркомании и связанного с ней социального и экономического ущерба","0330120220","000","000","0000",null,null,null,null,null,38000,38000,0,38000,0,38000,0,0,0]
["          Закупка товаров, работ и услуг для обеспечения государственных (муниципальных) нужд","0330120220","200","000","0000",null,null,null,null,null,38000,38000,0,38000,0,38000,0,0,0]
["            Другие вопросы в области национальной безопасности и правоохранительной деятельности","0330120220","200","000","0314",null,null,null,null,null,38000,38000,0,38000,0,38000,0,0,0]
["        Создание и оборудование кабинетов наркопрофилактики в образовательных организациях","0330171690","000","000","0000",null,null,null,null,null,100000,100000,0,100000,0,100000,0,0,0]
["          Предоставление субсидий бюджетным, автономным учреждениям и иным некоммерческим организациям","0330171690","600","000","0000",null,null,null,null,null,100000,100000,0,100000,0,100000,0,0,0]
["            Другие вопросы в области национальной безопасности и правоохранительной деятельности","0330171690","600","000","0314",null,null,null,null,null,100000,100000,0,100000,0,100000,0,0,0]
["        Мероприятия по созданию и оборудованию кабинетов наркопрофилактики в образовательных организациях","03301S1690","000","000","0000",null,null,null,null,null,15000,15000,0,15000,0,15000,0,0,0]
["          Предоставление субсидий бюджетным, автономным учреждениям и иным некоммерческим организациям","03301S1690","600","000","0000",null,null,null,null,null,15000,15000,0,15000,0,15000,0,0,0]
["            Другие вопросы в области национальной безопасности и правоохранительной деятельности","03301S1690","600","000","0314",null,null,null,null,null,15000,15000,0,15000,0,15000,0,0,0]
["    Подпрограмма \"Комплексные меры противодействия злоупотреблению алкогольной продукцией и профилактика алкоголизма населения на территории ЗАТО г. Радужный Владимирской области\"","0340000000","000","000","0000",null,null,null,null,null,25000,25000,0,25000,0,25000,0,0,0]
["      Основное мероприятие \"Профилактика злоупотребления алкогольной продукцией\"","0340100000","000","000","0000",null,null,null,null,null,25000,25000,0,25000,0,25000,0,0,0]
["        Мероприятия, направленные на повышение эффективности профилактики злоупотребления алкогольной продукцией","0340120220","000","000","0000",null,null,null,null,null,20000,20000,0,20000,0,20000,0,0,0]
["          Закупка товаров, работ и услуг для обеспечения государственных (муниципальных) нужд","0340120220","200","000","0000",null,null,null,null,null,20000,20000,0,20000,0,20000,0,0,0]
["            Другие вопросы в области национальной безопасности и правоохранительной деятельности","0340120220","200","000","0314",null,null,null,null,null,20000,20000,0,20000,0,20000,0,0,0]
["        Приобретение специализированной литературы по пропаганде здорового образа жизни, профилактике алкоголизации населения (МБУК \"Общедоступная библиотека\")","034012Ю220","000","000","0000",null,null,null,null,null,5000,5000,0,5000,0,5000,0,0,0]
["          Предоставление субсидий бюджетным, автономным учреждениям и иным некоммерческим организациям","034012Ю220","600","000","0000",null,null,null,null,null,5000,5000,0,5000,0,5000,0,0,0]
["            Другие вопросы в области национальной безопасности и правоохранительной деятельности","034012Ю220","600","000","0314",null,null,null,null,null,5000,5000,0,5000,0,5000,0,0,0]
["    Подпрограмма \"Противодействие терроризму и экстремизму на территории ЗАТО г. Радужный Владимирской области\"","0350000000","000","000","0000",null,null,null,null,null,3000,3000,0,3000,0,3000,0,0,0]
["      Основное мероприятие \"Профилактика экстремизма и терроризма на территории ЗАТО г.Радужный Владимирской области\"","0350100000","000","000","0000",null,null,null,null,null,3000,3000,0,3000,0,3000,0,0,0]
["        Мероприятия, направленные на предупреждение (профилактику) терроризма и экстремизма среди подростков и молодежи","0350120220","000","000","0000",null,null,null,null,null,3000,3000,0,3000,0,3000,0,0,0]
["          Закупка товаров, работ и услуг для обеспечения государственных (муниципальных) нужд","0350120220","200","000","0000",null,null,null,null,null,3000,3000,0,3000,0,3000,0,0,0]
["            Другие вопросы в области национальной безопасности и правоохранительной деятельности","0350120220","200","000","0314",null,null,null,null,null,3000,3000,0,3000,0,3000,0,0,0]
["  Муниципальная программа \"Землеустройство, использование и охрана земель, оценка недвижимости, признание прав и регулирование отношений по муниципальной собственности ЗАТО г.Радужный Владимирской области\"","0400000000","000","000","0000",null,null,null,null,null,640000,640000,0,640000,0,640000,0,640000,640000]
["    Подпрограмма \"Землеустройство, использование и охрана земель на территории ЗАТО г.Радужный Владимирской области\"","0410000000","000","000","0000",null,null,null,null,null,500000,500000,0,500000,0,500000,0,500000,500000]
["      Основное мероприятие \"Мероприятия по землеустройству и землепользованию на территории ЗАТО г.Радужный Владимирской области","0410100000","000","000","0000",null,null,null,null,null,500000,500000,0,500000,0,500000,0,500000,500000]
["        Мероприятия, направленные на совершенствование учета земельных участков, покрытие территории картографическими материалами","0410120220","000","000","0000",null,null,null,null,null,500000,500000,0,500000,0,500000,0,500000,500000]
["          Закупка товаров, работ и услуг для обеспечения государственных (муниципальных) нужд","0410120220","200","000","0000",null,null,null,null,null,500000,500000,0,500000,0,500000,0,500000,500000]
["            Другие вопросы в области национальной экономики","0410120220","200","000","0412",null,null,null,null,null,500000,500000,0,500000,0,500000,0,500000,500000]
["    Подпрограмма \"Оценка недвижимости, признание прав и регулирование отношений по муниципальной собственности ЗАТО г.Радужный Владимирской области\"","0420000000","000","000","0000",null,null,null,null,null,140000,140000,0,140000,0,140000,0,140000,140000]
["      Основное мероприятие \"Оценка недвижимости, признание прав и регулирование отношений по муниципальной собственности ЗАТО г.Радужный Владимирской области\"","0420100000","000","000","0000",null,null,null,null,null,140000,140000,0,140000,0,140000,0,140000,140000]
["        Мероприятия, направленные на обеспечение защиты имущественных прав муниципального образования ЗАТО г.Радужный на объекты недвижимости","0420120220","000","000","0000",null,null,null,null,null,140000,140000,0,140000,0,140000,0,140000,140000]
["          Закупка товаров, работ и услуг для обеспечения государственных (муниципальных) нужд","0420120220","200","000","0000",null,null,null,null,null,140000,140000,0,140000,0,140000,0,140000,140000]
["            Другие общегосударственные вопросы","0420120220","200","000","0113",null,null,null,null,null,140000,140000,0,140000,0,140000,0,140000,140000]
["  Муниципальная программа \"Информатизация ЗАТО г.Радужный Владимирской области","0500000000","000","000","0000",null,null,null,null,null,2438980,2438980,0,2438980,0,2438980,0,1787572,1788562]
["      Основное мероприятие \"Обеспечение предоставления гражданам и организациям услуг с использованием современных информационных и телекоммуникационных технологий\"","0500100000","000","000","0000",null,null,null,null,null,97000,97000,0,97000,0,97000,0,97000,97000]
["        Развитие и обеспечение функционирования муниципального сегмента СМЭВ, взаимодействие с ГИС ГМП","0500120220","000","000","0000",null,null,null,null,null,97000,97000,0,97000,0,97000,0,97000,97000]
["          Закупка товаров, работ и услуг для обеспечения государственных (муниципальных) нужд","0500120220","200","000","0000",null,null,null,null,null,97000,97000,0,97000,0,97000,0,97000,97000]
["            Связь и информатика","0500120220","200","000","0410",null,null,null,null,null,97000,97000,0,97000,0,97000,0,97000,97000]
["      Основное мероприятие \"Предоставление гражданам и организациям информации о деятельности органов местного самоуправления с использованием информационных и телекоммуникационных технологий\"","0500200000","000","000","0000",null,null,null,null,null,594000,594000,0,594000,0,594000,0,293750,293750]
["        Развитие и техническая поддержка официального сайта органов местного самоуправления","0500220220","000","000","0000",null,null,null,null,null,594000,594000,0,594000,0,594000,0,293750,293750]
["          Закупка товаров, работ и услуг для обеспечения государственных (муниципальных) нужд","0500220220","200","000","0000",null,null,null,null,null,594000,594000,0,594000,0,594000,0,293750,293750]
["            Связь и информатика","0500220220","200","000","0410",null,null,null,null,null,594000,594000,0,594000,0,594000,0,293750,293750]
["      Основное мероприятие \"Развитие технической и технологической основы становления информационного общества\"","0500300000","000","000","0000",null,null,null,null,null,1666180,1666180,0,1666180,0,1666180,0,1315022,1316012]
["        Обеспечение структурных подразделений администрации средствами связи, лицензионными версиями общесистемного и прикладного программного обеспечения, доступом к информационно-справочным правовым системам","0500320220","000","000","0000",null,null,null,null,null,1666180,1666180,0,1666180,0,1666180,0,1315022,1316012]
["          Закупка товаров, работ и услуг для обеспечения государственных (муниципальных) нужд","0500320220","200","000","0000",null,null,null,null,null,1666180,1666180,0,1666180,0,1666180,0,1315022,1316012]
["            Связь и информатика","0500320220","200","000","0410",null,null,null,null,null,1666180,1666180,0,1666180,0,1666180,0,1315022,1316012]
["      Основное мероприятие \"Предупреждение угроз, возникающих в информационном обществе\"","0500400000","000","000","0000",null,null,null,null,null,81800,81800,0,81800,0,81800,0,81800,81800]
["        Приобретение программного обеспечения и оборудования для обеспечения информационной безопасности, аттестации информационных систем и автоматизированных рабочих мест","0500420220","000","000","0000",null,null,null,null,null,81800,81800,0,81800,0,81800,0,81800,81800]
["          Закупка товаров, работ и услуг для обеспечения государственных (муниципальных) нужд","0500420220","200","000","0000",null,null,null,null,null,81800,81800,0,81800,0,81800,0,81800,81800]
["            Связь и информатика","0500420220","200","000","0410",null,null,null,null,null,81800,81800,0,81800,0,81800,0,81800,81800]
["  Муниципальная программа \"Перспективное развитие и совершенствование гражданской обороны, защита населения и территории, обеспечение пожарной безопасности и безопасности людей на водных объектах ЗАТО г. Радужный Владимирской области\"","0600000000","000","000","0000",null,null,null,null,null,33519465,33519465,0,33519465,0,33519465,0,21315927,12131941]
["    Подпрограмма \"Совершенствование гражданской обороны, защита населения и территории, обеспечение пожарной безопасности и безопасности людей на водных объектах ЗАТО г.Радужный Владимирской области\"","0610000000","000","000","0000",null,null,null,null,null,33018265,33018265,0,33018265,0,33018265,0,20814727,11630741]
["      Основное мероприятие \"Совершенствование и развитие гражданской обороны, защиты населения и территории, обеспечение пожарной безопасности и безопасности людей на водных объектах\"","0610100000","000","000","0000",null,null,null,null,null,131700,131700,0,131700,0,131700,0,131700,131700]
["        Мероприятия, направленные на повышение качества защиты населения и территории города от возможных ЧС природного, техногенного и террористического характера, организации управления силами и средствами городского звена РСЧС и ГО ЗАТО г. Радужный","0610120220","000","000","0000",null,null,null,null,null,131700,131700,0,131700,0,131700,0,131700,131700]
["          Закупка товаров, работ и услуг для обеспечения государственных (муниципальных) нужд","0610120220","200","000","0000",null,null,null,null,null,131700,131700,0,131700,0,131700,0,131700,131700]
["            Защита населения и территории от чрезвычайных ситуаций природного и техногенного характера, гражданская оборона","0610120220","200","000","0309",null,null,null,null,null,131700,131700,0,131700,0,131700,0,131700,131700]
["      Основное мероприятие \"Организация работ по недопущению и ликвидации чрезвычайных ситуаций\"","0610200000","000","000","0000",null,null,null,null,null,10023065,10023065,0,10023065,0,10023065,0,6060000,6060000]
["        Мероприятия, направленные на недопущение и ликвидацию ЧС на территории ЗАТО г. Радужный, обеспечение формирований ГО и городского звена РСЧС необходимыми материалами из резерва материальных ресурсов для предупреждения ЧС и ликвидации их последствий","0610220220","000","000","0000",null,null,null,null,null,6060000,6060000,0,6060000,0,6060000,0,6060000,6060000]
["          Закупка товаров, работ и услуг для обеспечения государственных (муниципальных) нужд","0610220220","200","000","0000",null,null,null,null,null,6060000,6060000,0,6060000,0,6060000,0,6060000,6060000]
["            Защита населения и территории от чрезвычайных ситуаций природного и техногенного характера, гражданская оборона","0610220220","200","000","0309",null,null,null,null,null,6060000,6060000,0,6060000,0,6060000,0,6060000,6060000]
["        Субсидии на возмещение расходов предприятиям, привлекаемым для обеспечения санитарно-эпидемиологического благополучия населения для недопущения распространения новой коронавирусной инфекции на территории ЗАТО г.Радужный Владимирской области","0610260005","000","000","0000",null,null,null,null,null,3963065,3963065,0,3963065,0,3963065,0,0,0]
["          Иные бюджетные ассигнования","0610260005","800","000","0000",null,null,null,null,null,3963065,3963065,0,3963065,0,3963065,0,0,0]
["            Защита населения и территории от чрезвычайных ситуаций природного и техногенного характера, гражданская оборона","0610260005","800","000","0309",null,null,null,null,null,3963065,3963065,0,3963065,0,3963065,0,0,0]
["      Основное мероприятие \"Организация мероприятий по гражданской обороне\"","0610300000","000","000","0000",null,null,null,null,null,2863500,2863500,0,2863500,0,2863500,0,2863500,2863500]
["        Финансирование деятельности муниципальных учреждений, обеспечивающих выполнение мероприятий в области гражданской обороны, защиты населения и территорий от чрезвычайных ситуаций, обеспечения пожарной безопасности и безопасности людей на водных объектах на территории ЗАТО г. Радужный в пределах установленных полномочий","0610300590","000","000","0000",null,null,null,null,null,2863500,2863500,0,2863500,0,2863500,0,2863500,2863500]
["          Расходы на выплаты персоналу в целях обеспечения выполнения функций государственными (муниципальными) органами, казенными учреждениями, органами управления государственными внебюджетными фондами","0610300590","100","000","0000",null,null,null,null,null,2393600,2393600,0,2393600,0,2393600,0,2393600,2393600]
["            Защита населения и территории от чрезвычайных ситуаций природного и техногенного характера, гражданская оборона","0610300590","100","000","0309",null,null,null,null,null,2393600,2393600,0,2393600,0,2393600,0,2393600,2393600]
["          Закупка товаров, работ и услуг для обеспечения государственных (муниципальных) нужд","0610300590","200","000","0000",null,null,null,null,null,469900,469900,0,469900,0,469900,0,469900,469900]
["            Защита населения и территории от чрезвычайных ситуаций природного и техногенного характера, гражданская оборона","0610300590","200","000","0309",null,null,null,null,null,469900,469900,0,469900,0,469900,0,469900,469900]
["      Основное мероприятие \"Создание и использование финансового резерва для выполнения мероприятий городского значения по ликвидации аварийных ситуаций и ЧС, возникающих в системах жизнеобеспечения города и сбоев подачи энергоресурсов для населения города\"","0610400000","000","000","0000",null,null,null,null,null,20000000,20000000,0,20000000,0,20000000,0,11759527,2575541]
["        Мероприятия по предупреждению и ликвидации аварийных ситуаций в системах жизнеобеспечения города и сбоев подачи энергоресурсов для населения города","0610420220","000","000","0000",null,null,null,null,null,20000000,20000000,0,20000000,0,20000000,0,11759527,2575541]
["          Иные бюджетные ассигнования","0610420220","800","000","0000",null,null,null,null,null,20000000,20000000,0,20000000,0,20000000,0,11759527,2575541]
["            Защита населения и территории от чрезвычайных ситуаций природного и техногенного характера, гражданская оборона","0610420220","800","000","0309",null,null,null,null,null,20000000,20000000,0,20000000,0,20000000,0,11759527,2575541]
["    Подпрограмма \"Безопасный город\"","0620000000","000","000","0000",null,null,null,null,null,501200,501200,0,501200,0,501200,0,501200,501200]
["      Основное мероприятие \"Внедрение и развитие аппаратно-программного комплекса \"Безопасный город\"","0620100000","000","000","0000",null,null,null,null,null,501200,501200,0,501200,0,501200,0,501200,501200]
["        Мероприятия, направленные на внедрения на базе муниципального образования комплексной информационной системы, обеспечивающей прогнозирование, мониторинг, предупреждение и ликвидацию возможных угроз","0620120220","000","000","0000",null,null,null,null,null,501200,501200,0,501200,0,501200,0,501200,501200]
["          Закупка товаров, работ и услуг для обеспечения государственных (муниципальных) нужд","0620120220","200","000","0000",null,null,null,null,null,501200,501200,0,501200,0,501200,0,501200,501200]
["            Защита населения и территории от чрезвычайных ситуаций природного и техногенного характера, гражданская оборона","0620120220","200","000","0309",null,null,null,null,null,501200,501200,0,501200,0,501200,0,501200,501200]
["  Муниципальная программа \"Обеспечение доступным и комфортным жильем населения ЗАТО г.Радужный Владимирской области\"","0700000000","000","000","0000",null,null,null,null,null,2489162,2489162,0,2489162,0,2489162,0,408510,145162510]
["    Подпрограмма \"Обеспечение жильем многодетных семей ЗАТО г.Радужный\"","0730000000","000","000","0000",null,null,null,null,null,1264262,1264262,0,1264262,0,1264262,0,408510,408510]
["      Основное мероприятие \"Предоставление многодетным семьям социальных выплат на приобретение жилья\"","0730100000","000","000","0000",null,null,null,null,null,1264262,1264262,0,1264262,0,1264262,0,408510,408510]
["        Обеспечение жильем многодетных семей","0730170810","000","000","0000",null,null,null,null,null,1206100,1206100,0,1206100,0,1206100,0,389200,389200]
["          Социальное обеспечение и иные выплаты населению","0730170810","300","000","0000",null,null,null,null,null,1206100,1206100,0,1206100,0,1206100,0,389200,389200]
["            Социальное обеспечение населения","0730170810","300","000","1003",null,null,null,null,null,1206100,1206100,0,1206100,0,1206100,0,389200,389200]
["        Обеспечение жильем многодетных семей","07301S0810","000","000","0000",null,null,null,null,null,58162,58162,0,58162,0,58162,0,19310,19310]
["          Социальное обеспечение и иные выплаты населению","07301S0810","300","000","0000",null,null,null,null,null,58162,58162,0,58162,0,58162,0,19310,19310]
["            Социальное обеспечение населения","07301S0810","300","000","1003",null,null,null,null,null,58162,58162,0,58162,0,58162,0,19310,19310]
["    Подпрограмма \"Социальное жилье ЗАТО г.Радужный\"","0750000000","000","000","0000",null,null,null,null,null,0,0,0,0,0,0,0,0,144754000]
["      Основное мероприятие \"Строительство жилья\"","0750100000","000","000","0000",null,null,null,null,null,0,0,0,0,0,0,0,0,144754000]
["        Строительство социального жилья и приобретение жилых помещений для граждан, нуждающихся в улучшении жилищных условий (строительство многоквартирного дома в 9 квартале)","0750170090","000","000","0000",null,null,null,null,null,0,0,0,0,0,0,0,0,144754000]
["          Капитальные вложения в объекты государственной (муниципальной) собственности","0750170090","400","000","0000",null,null,null,null,null,0,0,0,0,0,0,0,0,144754000]
["            Жилищное хозяйство","0750170090","400","000","0501",null,null,null,null,null,0,0,0,0,0,0,0,0,144754000]
["    Подпрограмма \"Обеспечение жильем молодых семей ЗАТО г.Радужный\"","0760000000","000","000","0000",null,null,null,null,null,1224900,1224900,0,1224900,0,1224900,0,0,0]
["      Основное мероприятие \"Предоставление молодым семьям социальных выплат на приобретение жилья\"","0760100000","000","000","0000",null,null,null,null,null,1224900,1224900,0,1224900,0,1224900,0,0,0]
["        Реализация мероприятий по обеспечению жильем молодых семей","07601L4970","000","000","0000",null,null,null,null,null,180000,180000,0,180000,0,180000,0,0,0]
["          Социальное обеспечение и иные выплаты населению","07601L4970","300","000","0000",null,null,null,null,null,180000,180000,0,180000,0,180000,0,0,0]
["            Охрана семьи и детства","07601L4970","300","000","1004",null,null,null,null,null,180000,180000,0,180000,0,180000,0,0,0]
["        Реализация мероприятий по обеспечению жильем молодых семей","07601R4970","000","000","0000",null,null,null,null,null,1044900,1044900,0,1044900,0,1044900,0,0,0]
["          Социальное обеспечение и иные выплаты населению","07601R4970","300","000","0000",null,null,null,null,null,1044900,1044900,0,1044900,0,1044900,0,0,0]
["            Охрана семьи и детства","07601R4970","300","000","1004",null,null,null,null,null,1044900,1044900,0,1044900,0,1044900,0,0,0]
["  Муниципальная программа \"Энергосбережение и повышение надежности энергоснабжения в топливно-энергетическом комплексе ЗАТО г. Радужный Владимирской области\"","0800000000","000","000","0000",null,null,null,null,null,14302000,14302000,0,14302000,0,14302000,0,14302000,6032250]
["      Основное мероприятие \"Мероприятия в целях реализации концессионных соглашений от 17.09.2015 № 2015-01-ТС и № 2015-02-ВС\"","0800400000","000","000","0000",null,null,null,null,null,14302000,14302000,0,14302000,0,14302000,0,14302000,6032250]
["        Субсидии, предоставляемые ЗАО \"Радугаэнерго\", на финансирование расходов на капитальный ремонт объектов, входящих в единую закрытую систему теплоснабжения на территории ЗАТО г.Радужный Владимирской области","0800460001","000","000","0000",null,null,null,null,null,9170000,9170000,0,9170000,0,9170000,0,9170000,3860560]
["          Иные бюджетные ассигнования","0800460001","800","000","0000",null,null,null,null,null,9170000,9170000,0,9170000,0,9170000,0,9170000,3860560]
["            Коммунальное хозяйство","0800460001","800","000","0502",null,null,null,null,null,9170000,9170000,0,9170000,0,9170000,0,9170000,3860560]
["        Субсидии, предоставляемые ЗАО \"Радугаэнерго\", на финансирование расходов на капитальный ремонт объектов, входящих в централизованную систему водоснабжения на территории ЗАТО г. Радужный Владимирской области","0800460002","000","000","0000",null,null,null,null,null,5132000,5132000,0,5132000,0,5132000,0,5132000,2171690]
["          Иные бюджетные ассигнования","0800460002","800","000","0000",null,null,null,null,null,5132000,5132000,0,5132000,0,5132000,0,5132000,2171690]
["            Коммунальное хозяйство","0800460002","800","000","0502",null,null,null,null,null,5132000,5132000,0,5132000,0,5132000,0,5132000,2171690]
["  Муниципальная программа \"Жилищно-коммунальный комплекс ЗАТО г.Радужный Владимирской области\"","0900000000","000","000","0000",null,null,null,null,null,31651662,31651662,0,31651662,0,31651662,0,30951987,30951987]
["    Подпрограмма \"Развитие жилищно-коммунального комплекса ЗАТО г.Радужный Владимирской области\"","0910000000","000","000","0000",null,null,null,null,null,31651662,31651662,0,31651662,0,31651662,0,30951987,30951987]
["      Основное мероприятие \"Содержание, обслуживание, ремонт, модернизация объектов жилого фонда\"","0910100000","000","000","0000",null,null,null,null,null,2180000,2180000,0,2180000,0,2180000,0,180000,180000]
["        Обслуживание объектов муниципального жилищного фонда, в том числе взносы на ремонт общего имущества многоквартирных домов в части муниципального жилья","0910120220","000","000","0000",null,null,null,null,null,2000000,2000000,0,2000000,0,2000000,0,0,0]
["          Закупка товаров, работ и услуг для обеспечения государственных (муниципальных) нужд","0910120220","200","000","0000",null,null,null,null,null,2000000,2000000,0,2000000,0,2000000,0,0,0]
["            Жилищное хозяйство","0910120220","200","000","0501",null,null,null,null,null,2000000,2000000,0,2000000,0,2000000,0,0,0]
["        Обслуживание объектов муниципального жилищного фонда в части обеспечения пожарной безопасности","0910120221","000","000","0000",null,null,null,null,null,180000,180000,0,180000,0,180000,0,180000,180000]
["          Закупка товаров, работ и услуг для обеспечения государственных (муниципальных) нужд","0910120221","200","000","0000",null,null,null,null,null,180000,180000,0,180000,0,180000,0,180000,180000]
["            Жилищное хозяйство","0910120221","200","000","0501",null,null,null,null,null,180000,180000,0,180000,0,180000,0,180000,180000]
["      Основное мероприятие \"Обслуживание, содержание, ремонт, модернизация объектов коммунального хозяйства\"","0910200000","000","000","0000",null,null,null,null,null,648900,648900,0,648900,0,648900,0,648900,648900]
["        Обслуживание, периодическая поверка, ремонт и диспетчеризация работы узлов учета тепловой энергии и воды на вводах в город и на объектах социально-культурного назначения","0910220220","000","000","0000",null,null,null,null,null,648900,648900,0,648900,0,648900,0,648900,648900]
["          Закупка товаров, работ и услуг для обеспечения государственных (муниципальных) нужд","0910220220","200","000","0000",null,null,null,null,null,648900,648900,0,648900,0,648900,0,648900,648900]
["            Коммунальное хозяйство","0910220220","200","000","0502",null,null,null,null,null,648900,648900,0,648900,0,648900,0,648900,648900]
["      Основное мероприятие \"Предупреждение чрезвычайных ситуаций на территории города\"","0910400000","000","000","0000",null,null,null,null,null,111800,111800,0,111800,0,111800,0,111800,111800]
["        Обслуживание городской системы видеонаблюдения, услуги по предоставлению информации государственного учреждения \"Владимирский областной центр по гидрометеорологии и мониторингу окружающей среды\"","0910420220","000","000","0000",null,null,null,null,null,111800,111800,0,111800,0,111800,0,111800,111800]
["          Закупка товаров, работ и услуг для обеспечения государственных (муниципальных) нужд","0910420220","200","000","0000",null,null,null,null,null,111800,111800,0,111800,0,111800,0,111800,111800]
["            Коммунальное хозяйство","0910420220","200","000","0502",null,null,null,null,null,111800,111800,0,111800,0,111800,0,111800,111800]
["      Основное мероприятие \"Обеспечение финансовой стабильности предприятий бытового облуживания\"","0910500000","000","000","0000",null,null,null,null,null,2472000,2472000,0,2472000,0,2472000,0,2472000,2472000]
["        Субсидии, предоставляемые МУП \"ЖКХ\" ЗАТО г.Радужный Владимирской области на возмещение фактически понесенных затрат в связи с оказанием социально значимых для города бытовых услуг (услуги городской бани)","0910562000","000","000","0000",null,null,null,null,null,2472000,2472000,0,2472000,0,2472000,0,2472000,2472000]
["          Иные бюджетные ассигнования","0910562000","800","000","0000",null,null,null,null,null,2472000,2472000,0,2472000,0,2472000,0,2472000,2472000]
["            Коммунальное хозяйство","0910562000","800","000","0502",null,null,null,null,null,2472000,2472000,0,2472000,0,2472000,0,2472000,2472000]
["      Основное мероприятие \"Организация мероприятий по вопросам похоронного дела на территории ЗАТО г. Радужный. Содержание и обслуживание городского кладбища традиционного захоронения\"","0910600000","000","000","0000",null,null,null,null,null,2184050,2184050,0,2184050,0,2184050,0,2184050,2184050]
["        Организация содержания мест захоронения в соответствии с санитарными нормами, расходы по гарантированному перечню услуг на погребение","0910620220","000","000","0000",null,null,null,null,null,2184050,2184050,0,2184050,0,2184050,0,2184050,2184050]
["          Закупка товаров, работ и услуг для обеспечения государственных (муниципальных) нужд","0910620220","200","000","0000",null,null,null,null,null,2184050,2184050,0,2184050,0,2184050,0,2184050,2184050]
["            Благоустройство","0910620220","200","000","0503",null,null,null,null,null,2184050,2184050,0,2184050,0,2184050,0,2184050,2184050]
["      Основное мероприятие \"Организация выполнения работ, необходимых для надлежащего содержания и безопасной эксплуатации муниципальных объектов\"","0910900000","000","000","0000",null,null,null,null,null,24054912,24054912,0,24054912,0,24054912,0,25355237,25355237]
["        Финансирование деятельности муниципальных учреждений, осуществляющих управленческие функции по техническому обеспечению деятельности органов местного самоуправления по решению вопросов местного значения ЗАТО г. Радужный Владимирской области, связанных с надлежащим содержанием и безопасной эксплуатацией муниципальных объектов","0910900590","000","000","0000",null,null,null,null,null,24054912,24054912,0,24054912,0,24054912,0,25355237,25355237]
["          Расходы на выплаты персоналу в целях обеспечения выполнения функций государственными (муниципальными) органами, казенными учреждениями, органами управления государственными внебюджетными фондами","0910900590","100","000","0000",null,null,null,null,null,21741418,21741418,0,21741418,0,21741418,0,22939743,22939743]
["            Другие вопросы в области жилищно-коммунального хозяйства","0910900590","100","000","0505",null,null,null,null,null,21741418,21741418,0,21741418,0,21741418,0,22939743,22939743]
["          Закупка товаров, работ и услуг для обеспечения государственных (муниципальных) нужд","0910900590","200","000","0000",null,null,null,null,null,1277700,1277700,0,1277700,0,1277700,0,1379700,1379700]
["            Другие вопросы в области жилищно-коммунального хозяйства","0910900590","200","000","0505",null,null,null,null,null,1277700,1277700,0,1277700,0,1277700,0,1379700,1379700]
["          Иные бюджетные ассигнования","0910900590","800","000","0000",null,null,null,null,null,1035794,1035794,0,1035794,0,1035794,0,1035794,1035794]
["            Другие вопросы в области жилищно-коммунального хозяйства","0910900590","800","000","0505",null,null,null,null,null,1035794,1035794,0,1035794,0,1035794,0,1035794,1035794]
["  Муниципальная программа \"Охрана окружающей среды ЗАТО г.Радужный Владимирской области\"","1000000000","000","000","0000",null,null,null,null,null,5404955,5404955,0,5404955,0,5404955,0,5252455,5252455]
["    Подпрограмма \"Городские леса ЗАТО г.Радужный Владимирской области\"","1010000000","000","000","0000",null,null,null,null,null,35000,35000,0,35000,0,35000,0,35000,35000]
["      Основное мероприятие \"Охрана лесов и водных источников\"","1010100000","000","000","0000",null,null,null,null,null,35000,35000,0,35000,0,35000,0,35000,35000]
["        Мероприятия, направленные на сохранение и воспроизводство лесов, охрану и восстановление водных объектов (родников)","1010120220","000","000","0000",null,null,null,null,null,35000,35000,0,35000,0,35000,0,35000,35000]
["          Закупка товаров, работ и услуг для обеспечения государственных (муниципальных) нужд","1010120220","200","000","0000",null,null,null,null,null,35000,35000,0,35000,0,35000,0,35000,35000]
["            Другие вопросы в области охраны окружающей среды","1010120220","200","000","0605",null,null,null,null,null,35000,35000,0,35000,0,35000,0,35000,35000]
["    Подпрограмма \"Отходы ЗАТО г.Радужный Владимирской области\"","1020000000","000","000","0000",null,null,null,null,null,5369955,5369955,0,5369955,0,5369955,0,5217455,5217455]
["      Основное мероприятие \"Содержание полигона твердых бытовых отходов\"","1020200000","000","000","0000",null,null,null,null,null,5369955,5369955,0,5369955,0,5369955,0,5217455,5217455]
["        Финансирование деятельности муниципальных учреждений, обеспечивающих функционирование полигона твердых бытовых отходов ЗАТО г.Радужный Владимирской области","1020200590","000","000","0000",null,null,null,null,null,5369955,5369955,0,5369955,0,5369955,0,5217455,5217455]
["          Расходы на выплаты персоналу в целях обеспечения выполнения функций государственными (муниципальными) органами, казенными учреждениями, органами управления государственными внебюджетными фондами","1020200590","100","000","0000",null,null,null,null,null,2007330,2007330,0,2007330,0,2007330,0,2007330,2007330]
["            Благоустройство","1020200590","100","000","0503",null,null,null,null,null,2007330,2007330,0,2007330,0,2007330,0,2007330,2007330]
["          Закупка товаров, работ и услуг для обеспечения государственных (муниципальных) нужд","1020200590","200","000","0000",null,null,null,null,null,2541305,2541305,0,2541305,0,2541305,0,2388805,2388805]
["            Благоустройство","1020200590","200","000","0503",null,null,null,null,null,2541305,2541305,0,2541305,0,2541305,0,2388805,2388805]
["          Иные бюджетные ассигнования","1020200590","800","000","0000",null,null,null,null,null,821320,821320,0,821320,0,821320,0,821320,821320]
["            Благоустройство","1020200590","800","000","0503",null,null,null,null,null,821320,821320,0,821320,0,821320,0,821320,821320]
["  Муниципальная программа \"Обеспечение населения ЗАТО г.Радужный Владимирской области питьевой водой\"","1100000000","000","000","0000",null,null,null,null,null,13598834,13598834,0,13598834,0,13598834,0,1098504,104778504]
["      Основное мероприятие \"Развитие и совершенствование системы водоснабжения\"","1100100000","000","000","0000",null,null,null,null,null,13598834,13598834,0,13598834,0,13598834,0,1098504,1098504]
["        Содержание и обслуживание пунктов разбора воды, станции подкачки холодной воды, лабораторные исследования воды на микробиологические показатели из ЦТП","1100120220","000","000","0000",null,null,null,null,null,1098834,1098834,0,1098834,0,1098834,0,1098504,1098504]
["          Закупка товаров, работ и услуг для обеспечения государственных (муниципальных) нужд","1100120220","200","000","0000",null,null,null,null,null,1098834,1098834,0,1098834,0,1098834,0,1098504,1098504]
["            Коммунальное хозяйство","1100120220","200","000","0502",null,null,null,null,null,1098834,1098834,0,1098834,0,1098834,0,1098504,1098504]
["        Расходы на ПИРы на строительство станции водоподготовки УВС-III (обезжелезивания)","1100140100","000","000","0000",null,null,null,null,null,12500000,12500000,0,12500000,0,12500000,0,0,0]
["          Капитальные вложения в объекты государственной (муниципальной) собственности","1100140100","400","000","0000",null,null,null,null,null,12500000,12500000,0,12500000,0,12500000,0,0,0]
["            Коммунальное хозяйство","1100140100","400","000","0502",null,null,null,null,null,12500000,12500000,0,12500000,0,12500000,0,0,0]
["      Основное мероприятие \"Реализация мероприятий в рамках национального проекта \"Экология\" (федерального проекта \"Чистая вода\")\"","110G500000","000","000","0000",null,null,null,null,null,0,0,0,0,0,0,0,0,103680000]
["        Строительство и реконструкция (модернизация) объектов питьевого водоснабжения в рамках реализации национального проекта \"Экология\" (федерального проекта \"Чистая вода\")","110G552430","000","000","0000",null,null,null,null,null,0,0,0,0,0,0,0,0,103680000]
["          Капитальные вложения в объекты государственной (муниципальной) собственности","110G552430","400","000","0000",null,null,null,null,null,0,0,0,0,0,0,0,0,103680000]
["            Коммунальное хозяйство","110G552430","400","000","0502",null,null,null,null,null,0,0,0,0,0,0,0,0,103680000]
["  Муниципальная программа \"Развитие пассажирских перевозок на территории ЗАТО г.Радужный Владимирской области\"","1200000000","000","000","0000",null,null,null,null,null,5819369,5819369,0,5819369,0,5819369,0,1311369,1311369]
["      Основное мероприятие \"Развитие и совершенствование транспортного обслуживания населения г.Радужный\"","1200100000","000","000","0000",null,null,null,null,null,5819369,5819369,0,5819369,0,5819369,0,1311369,1311369]
["        Мероприятия, направленные на удовлетворение потребности населения города в транспортном обслуживании, в том числе организация перевозки пассажиров на городском маршруте","1200120220","000","000","0000",null,null,null,null,null,5708000,5708000,0,5708000,0,5708000,0,1200000,1200000]
["          Закупка товаров, работ и услуг для обеспечения государственных (муниципальных) нужд","1200120220","200","000","0000",null,null,null,null,null,1248000,1248000,0,1248000,0,1248000,0,1200000,1200000]
["            Транспорт","1200120220","200","000","0408",null,null,null,null,null,1248000,1248000,0,1248000,0,1248000,0,1200000,1200000]
["          Социальное обеспечение и иные выплаты населению","1200120220","300","000","0000",null,null,null,null,null,4460000,4460000,0,4460000,0,4460000,0,0,0]
["            Социальное обеспечение населения","1200120220","300","000","1003",null,null,null,null,null,4460000,4460000,0,4460000,0,4460000,0,0,0]
["        Обеспечение равной доступности услуг транспорта общего пользования для отдельных категорий граждан в муниципальном сообщении","1200170150","000","000","0000",null,null,null,null,null,105800,105800,0,105800,0,105800,0,105800,105800]
["          Социальное обеспечение и иные выплаты населению","1200170150","300","000","0000",null,null,null,null,null,105800,105800,0,105800,0,105800,0,105800,105800]
["            Социальное обеспечение населения","1200170150","300","000","1003",null,null,null,null,null,105800,105800,0,105800,0,105800,0,105800,105800]
["        Обеспечение равной доступности услуг транспорта общего пользования для отдельных категорий граждан в муниципальном сообщении","12001S0150","000","000","0000",null,null,null,null,null,5569,5569,0,5569,0,5569,0,5569,5569]
["          Социальное обеспечение и иные выплаты населению","12001S0150","300","000","0000",null,null,null,null,null,5569,5569,0,5569,0,5569,0,5569,5569]
["            Социальное обеспечение населения","12001S0150","300","000","1003",null,null,null,null,null,5569,5569,0,5569,0,5569,0,5569,5569]
["  Муниципальная программа \"Дорожное хозяйство и благоустройство ЗАТО г.Радужный Владимирской области\"","1300000000","000","000","0000",null,null,null,null,null,62530972,62530972,0,62530972,0,62530972,0,55894606,55894606]
["    Подпрограмма \"Строительство, ремонт и реконструкция автомобильных дорог общего пользования местного значения\"","1310000000","000","000","0000",null,null,null,null,null,8228414,8228414,0,8228414,0,8228414,0,7500000,7500000]
["      Основное мероприятие \"Финансовое обеспечение дорожной деятельности в рамках реализации национального проекта \"Безопасные и качественные автомобильные дороги\" (федеральный проект \"Дорожная сеть\")\"","131R100000","000","000","0000",null,null,null,null,null,8228414,8228414,0,8228414,0,8228414,0,7500000,7500000]
["        Финансовое обеспечение дорожной деятельности в рамках реализации национального проекта \"Безопасные и качественные автомобильные дороги\" (выполнение работ по текущему ремонту участка кольцевой автомобильной дороги)","131R153930","000","000","0000",null,null,null,null,null,8228414,8228414,0,8228414,0,8228414,0,0,0]
["          Закупка товаров, работ и услуг для обеспечения государственных (муниципальных) нужд","131R153930","200","000","0000",null,null,null,null,null,8228414,8228414,0,8228414,0,8228414,0,0,0]
["            Дорожное хозяйство (дорожные фонды)","131R153930","200","000","0409",null,null,null,null,null,8228414,8228414,0,8228414,0,8228414,0,0,0]
["        Финансовое обеспечение дорожной деятельности в рамках реализации национального проекта \"Безопасные и качественные автомобильные дороги\" (выполнение работ по текущему ремонту участка кольцевой автомобильной дороги)","131R15393D","000","000","0000",null,null,null,null,null,0,0,0,0,0,0,0,7500000,7500000]
["          Закупка товаров, работ и услуг для обеспечения государственных (муниципальных) нужд","131R15393D","200","000","0000",null,null,null,null,null,0,0,0,0,0,0,0,7500000,7500000]
["            Дорожное хозяйство (дорожные фонды)","131R15393D","200","000","0409",null,null,null,null,null,0,0,0,0,0,0,0,7500000,7500000]
["    Подпрограмма \"Строительство, ремонт и реконструкция объектов благоустройства\"","1320000000","000","000","0000",null,null,null,null,null,1418700,1418700,0,1418700,0,1418700,0,1418700,1418700]
["      Основное мероприятие \"Строительство, ремонт, реконструкция и обслуживание объектов благоустройства\"","1320100000","000","000","0000",null,null,null,null,null,1418700,1418700,0,1418700,0,1418700,0,1418700,1418700]
["        Мероприятия, направленные на содержание объектов благоустройства в надлежащем состоянии, в том числе обслуживание ливневой канализации","1320120220","000","000","0000",null,null,null,null,null,1382000,1382000,0,1382000,0,1382000,0,1382000,1382000]
["          Закупка товаров, работ и услуг для обеспечения государственных (муниципальных) нужд","1320120220","200","000","0000",null,null,null,null,null,1382000,1382000,0,1382000,0,1382000,0,1382000,1382000]
["            Благоустройство","1320120220","200","000","0503",null,null,null,null,null,1382000,1382000,0,1382000,0,1382000,0,1382000,1382000]
["        Реализация отдельных государственных полномочий Владимирской области по организации мероприятий при осуществлении деятельности по обращению с животными без владельцев","1320171980","000","000","0000",null,null,null,null,null,36700,36700,0,36700,0,36700,0,36700,36700]
["          Закупка товаров, работ и услуг для обеспечения государственных (муниципальных) нужд","1320171980","200","000","0000",null,null,null,null,null,36700,36700,0,36700,0,36700,0,36700,36700]
["            Сельское хозяйство и рыболовство","1320171980","200","000","0405",null,null,null,null,null,36700,36700,0,36700,0,36700,0,36700,36700]
["    Подпрограмма \"Содержание дорог и объектов благоустройства\"","1330000000","000","000","0000",null,null,null,null,null,29756523,29756523,0,29756523,0,29756523,0,28909027,28909027]
["      Основное мероприятие \"Содержание и обслуживание городских дорог в зимний, летний и осенний период, содержание и обслуживание объектов благоустройства города\"","1330100000","000","000","0000",null,null,null,null,null,29756523,29756523,0,29756523,0,29756523,0,28909027,28909027]
["        Финансирование деятельности муниципальных учреждений, обеспечивающих содержание и обслуживание городских дорог, содержание и обслуживание объектов благоустройства города","1330100590","000","000","0000",null,null,null,null,null,29756523,29756523,0,29756523,0,29756523,0,28909027,28909027]
["          Расходы на выплаты персоналу в целях обеспечения выполнения функций государственными (муниципальными) органами, казенными учреждениями, органами управления государственными внебюджетными фондами","1330100590","100","000","0000",null,null,null,null,null,16066325,16066325,0,16066325,0,16066325,0,16066325,16066325]
["            Дорожное хозяйство (дорожные фонды)","1330100590","100","000","0409",null,null,null,null,null,16066325,16066325,0,16066325,0,16066325,0,16066325,16066325]
["          Закупка товаров, работ и услуг для обеспечения государственных (муниципальных) нужд","1330100590","200","000","0000",null,null,null,null,null,13291348,13291348,0,13291348,0,13291348,0,12443852,12443852]
["            Дорожное хозяйство (дорожные фонды)","1330100590","200","000","0409",null,null,null,null,null,10694219,10694219,0,10694219,0,10694219,0,9846723,9846723]
["            Благоустройство","1330100590","200","000","0503",null,null,null,null,null,2597129,2597129,0,2597129,0,2597129,0,2597129,2597129]
["          Иные бюджетные ассигнования","1330100590","800","000","0000",null,null,null,null,null,398850,398850,0,398850,0,398850,0,398850,398850]
["            Дорожное хозяйство (дорожные фонды)","1330100590","800","000","0409",null,null,null,null,null,398850,398850,0,398850,0,398850,0,398850,398850]
["    Подпрограмма \"Техническое обслуживание, ремонт и модернизация уличного освещения\"","1340000000","000","000","0000",null,null,null,null,null,15300000,15300000,0,15300000,0,15300000,0,13123590,13123590]
["      Основное мероприятие \"Техническое обслуживание, содержание, ремонт и модернизация уличного освещения\"","1340100000","000","000","0000",null,null,null,null,null,15300000,15300000,0,15300000,0,15300000,0,13123590,13123590]
["        Содержание и обслуживание сетей уличного наружного освещения ЗАТО г.Радужный Владимирской области, в том числе поставка электроэнергии на уличное освещение на территории города","1340120220","000","000","0000",null,null,null,null,null,15300000,15300000,0,15300000,0,15300000,0,13123590,13123590]
["          Закупка товаров, работ и услуг для обеспечения государственных (муниципальных) нужд","1340120220","200","000","0000",null,null,null,null,null,15300000,15300000,0,15300000,0,15300000,0,13123590,13123590]
["            Благоустройство","1340120220","200","000","0503",null,null,null,null,null,15300000,15300000,0,15300000,0,15300000,0,13123590,13123590]
["    Подпрограмма \"Формирование комфортной городской среды\"","1350000000","000","000","0000",null,null,null,null,null,7495416,7495416,0,7495416,0,7495416,0,4611370,4611370]
["      Основное мероприятие \"Мероприятия по благоустройству дворовых территорий ЗАТО г.Радужный, в том числе в рамках реализации программ современной городской среды","1350100000","000","000","0000",null,null,null,null,null,3072468.63,3072468.63,0,3072468.63,0,3072468.63,0,0,0]
["        Благоустройство придомовых и общественных территорий, в том числе проверка сметной документации","1350120220","000","000","0000",null,null,null,null,null,3072468.63,3072468.63,0,3072468.63,0,3072468.63,0,0,0]
["          Закупка товаров, работ и услуг для обеспечения государственных (муниципальных) нужд","1350120220","200","000","0000",null,null,null,null,null,3072468.63,3072468.63,0,3072468.63,0,3072468.63,0,0,0]
["            Благоустройство","1350120220","200","000","0503",null,null,null,null,null,3072468.63,3072468.63,0,3072468.63,0,3072468.63,0,0,0]
["      Основное мероприятие \"Реализация программ формирования современной городской среды в рамках реализации национального проекта \"Жилье и городская среда\" (федеральный проект \"Жилье\")\"","135F200000","000","000","0000",null,null,null,null,null,4422947.37,4422947.37,0,4422947.37,0,4422947.37,0,4611370,4611370]
["        Реализация программ формирования современной городской среды (ремонт дворовых территорий многоквартирных домов)","135F255550","000","000","0000",null,null,null,null,null,4422947.37,4422947.37,0,4422947.37,0,4422947.37,0,4611370,4611370]
["          Закупка товаров, работ и услуг для обеспечения государственных (муниципальных) нужд","135F255550","200","000","0000",null,null,null,null,null,4422947.37,4422947.37,0,4422947.37,0,4422947.37,0,4611370,4611370]
["            Благоустройство","135F255550","200","000","0503",null,null,null,null,null,4422947.37,4422947.37,0,4422947.37,0,4422947.37,0,4611370,4611370]
["    Подпрограмма \"Ведомственная программа \"Ямочный ремонт, сезонные работы по благоустройству города\"","1360000000","000","000","0000",null,null,null,null,null,331919,331919,0,331919,0,331919,0,331919,331919]
["      Основное мероприятие \"Ремонт и содержание улично-дорожной сети по объектам благоустройства\"","1360100000","000","000","0000",null,null,null,null,null,20000,20000,0,20000,0,20000,0,20000,20000]
["        Мероприятия, направленные на поддержание нормативного состояния улично-дорожной сети и объектов благоустройства города, в том числе уборка снега, покос травы","1360120220","000","000","0000",null,null,null,null,null,20000,20000,0,20000,0,20000,0,20000,20000]
["          Закупка товаров, работ и услуг для обеспечения государственных (муниципальных) нужд","1360120220","200","000","0000",null,null,null,null,null,20000,20000,0,20000,0,20000,0,20000,20000]
["            Дорожное хозяйство (дорожные фонды)","1360120220","200","000","0409",null,null,null,null,null,20000,20000,0,20000,0,20000,0,20000,20000]
["      Основное мероприятие \"Временная занятость сезонных рабочих по благоустройству территории города\"","1360200000","000","000","0000",null,null,null,null,null,311919,311919,0,311919,0,311919,0,311919,311919]
["        Выполнение работ по подготовке города к весеннему, летнему и осеннему сезону","1360220220","000","000","0000",null,null,null,null,null,311919,311919,0,311919,0,311919,0,311919,311919]
["          Расходы на выплаты персоналу в целях обеспечения выполнения функций государственными (муниципальными) органами, казенными учреждениями, органами управления государственными внебюджетными фондами","1360220220","100","000","0000",null,null,null,null,null,290419,290419,0,290419,0,290419,0,290419,290419]
["            Благоустройство","1360220220","100","000","0503",null,null,null,null,null,290419,290419,0,290419,0,290419,0,290419,290419]
["          Закупка товаров, работ и услуг для обеспечения государственных (муниципальных) нужд","1360220220","200","000","0000",null,null,null,null,null,21500,21500,0,21500,0,21500,0,21500,21500]
["            Благоустройство","1360220220","200","000","0503",null,null,null,null,null,21500,21500,0,21500,0,21500,0,21500,21500]
["  Муниципальная программа \"Доступная среда для людей с ограниченными возможностями ЗАТО г.Радужный Владимирской области\"","1400000000","000","000","0000",null,null,null,null,null,77000,77000,0,77000,0,77000,0,77000,77000]
["      Основное мероприятие \"Обеспечение доступности для инвалидов различного рода информации, объектов социальной сферы\"","1400100000","000","000","0000",null,null,null,null,null,77000,77000,0,77000,0,77000,0,77000,77000]
["        Обеспечение беспрепятственного доступа инвалидов и маломобильных групп к информации и объектам социальной сферы, в том числе переоборудование жилья инвалидов-колясочников, устройство пандусов и поручней","1400120220","000","000","0000",null,null,null,null,null,77000,77000,0,77000,0,77000,0,77000,77000]
["          Закупка товаров, работ и услуг для обеспечения государственных (муниципальных) нужд","1400120220","200","000","0000",null,null,null,null,null,77000,77000,0,77000,0,77000,0,77000,77000]
["            Социальное обеспечение населения","1400120220","200","000","1003",null,null,null,null,null,77000,77000,0,77000,0,77000,0,77000,77000]
["  Муниципальная программа \"Развитие образования ЗАТО г.Радужный Владимирской области\"","1500000000","000","000","0000",null,null,null,null,null,291069424,291069424,0,291069424,0,291069424,0,272139061,271708461]
["    Подпрограмма \"Развитие общего, дошкольного и дополнительного образования ЗАТО г.Радужный Владимирской области\"","1510000000","000","000","0000",null,null,null,null,null,259009281,259009281,0,259009281,0,259009281,0,244492183,244061583]
["      Основное мероприятие \"Развитие системы обеспечение доступности качества образовательных услуг\"","1510100000","000","000","0000",null,null,null,null,null,393572,393572,0,393572,0,393572,0,0,0]
["        Мероприятия, направленные на развитие сети дошкольного, общего и дополнительного образования, в том числе организация и участие в городских мероприятий, смотрах, конкурсах, выставках, конференциях","1510120220","000","000","0000",null,null,null,null,null,200000,200000,0,200000,0,200000,0,0,0]
["          Закупка товаров, работ и услуг для обеспечения государственных (муниципальных) нужд","1510120220","200","000","0000",null,null,null,null,null,200000,200000,0,200000,0,200000,0,0,0]
["            Другие вопросы в области образования","1510120220","200","000","0709",null,null,null,null,null,200000,200000,0,200000,0,200000,0,0,0]
["        Мероприятия, направленные на развитие сети дошкольного образования, в том числе организация и участие в городских мероприятий, смотрах, конкурсах, выставках, конференциях, обеспечение функционирования программных комплексов, используемых в образовательном процессе (МБДОУ ЦРР д/с №3)","151012Б220","000","000","0000",null,null,null,null,null,31404,31404,0,31404,0,31404,0,0,0]
["          Предоставление субсидий бюджетным, автономным учреждениям и иным некоммерческим организациям","151012Б220","600","000","0000",null,null,null,null,null,31404,31404,0,31404,0,31404,0,0,0]
["            Дошкольное образование","151012Б220","600","000","0701",null,null,null,null,null,31404,31404,0,31404,0,31404,0,0,0]
["        Мероприятия, направленные на развитие сети дошкольного образования, в том числе организация и участие в городских мероприятий, смотрах, конкурсах, выставках, конференциях, обеспечение функционирования программных комплексов, используемых в образовательном процессе (МБДОУ ЦРР д/с №5)","151012Г220","000","000","0000",null,null,null,null,null,31404,31404,0,31404,0,31404,0,0,0]
["          Предоставление субсидий бюджетным, автономным учреждениям и иным некоммерческим организациям","151012Г220","600","000","0000",null,null,null,null,null,31404,31404,0,31404,0,31404,0,0,0]
["            Дошкольное образование","151012Г220","600","000","0701",null,null,null,null,null,31404,31404,0,31404,0,31404,0,0,0]
["        Мероприятия, направленные на развитие сети дошкольного образования, в том числе организация и участие в городских мероприятий, смотрах, конкурсах, выставках, конференциях, обеспечение функционирования программных комплексов, используемых в образовательном процессе (МБДОУ ЦРР д/с №6)","151012Д220","000","000","0000",null,null,null,null,null,31404,31404,0,31404,0,31404,0,0,0]
["          Предоставление субсидий бюджетным, автономным учреждениям и иным некоммерческим организациям","151012Д220","600","000","0000",null,null,null,null,null,31404,31404,0,31404,0,31404,0,0,0]
["            Дошкольное образование","151012Д220","600","000","0701",null,null,null,null,null,31404,31404,0,31404,0,31404,0,0,0]
["        Мероприятия, направленные на развитие сети общего образования, в том числе организация и участие в городских мероприятий, смотрах, конкурсах, выставках, конференциях, обеспечение функционирования программных комплексов, используемых в образовательном процессе (МБОУ СОШ №1)","151012И220","000","000","0000",null,null,null,null,null,34440,34440,0,34440,0,34440,0,0,0]
["          Предоставление субсидий бюджетным, автономным учреждениям и иным некоммерческим организациям","151012И220","600","000","0000",null,null,null,null,null,34440,34440,0,34440,0,34440,0,0,0]
["            Общее образование","151012И220","600","000","0702",null,null,null,null,null,34440,34440,0,34440,0,34440,0,0,0]
["        Мероприятия, направленные на развитие сети общего образования, в том числе организация и участие в городских мероприятий, смотрах, конкурсах, выставках, конференциях, обеспечение функционирования программных комплексов, используемых в образовательном процессе (МБОУ СОШ №2)","151012Л220","000","000","0000",null,null,null,null,null,34440,34440,0,34440,0,34440,0,0,0]
["          Предоставление субсидий бюджетным, автономным учреждениям и иным некоммерческим организациям","151012Л220","600","000","0000",null,null,null,null,null,34440,34440,0,34440,0,34440,0,0,0]
["            Общее образование","151012Л220","600","000","0702",null,null,null,null,null,34440,34440,0,34440,0,34440,0,0,0]
["        Мероприятия, направленные на развитие сети дополнительного образования, в том числе организация и участие в городских мероприятий, смотрах, конкурсах, выставках, конференциях (МБОУ ДО ЦВР \"Лад\")","151012Ц220","000","000","0000",null,null,null,null,null,30480,30480,0,30480,0,30480,0,0,0]
["          Предоставление субсидий бюджетным, автономным учреждениям и иным некоммерческим организациям","151012Ц220","600","000","0000",null,null,null,null,null,30480,30480,0,30480,0,30480,0,0,0]
["            Дополнительное образование детей","151012Ц220","600","000","0703",null,null,null,null,null,30480,30480,0,30480,0,30480,0,0,0]
["      Основное мероприятие \"Выполнение муниципальных заданий\"","1510300000","000","000","0000",null,null,null,null,null,231324334,231324334,0,231324334,0,231324334,0,223222331,223366431]
["        Выполнение муниципального задания МБДОУ ЦРР д/с №3","151030Б590","000","000","0000",null,null,null,null,null,4171573,4171573,0,4171573,0,4171573,0,2684120,2684120]
["          Предоставление субсидий бюджетным, автономным учреждениям и иным некоммерческим организациям","151030Б590","600","000","0000",null,null,null,null,null,4171573,4171573,0,4171573,0,4171573,0,2684120,2684120]
["            Дошкольное образование","151030Б590","600","000","0701",null,null,null,null,null,4171573,4171573,0,4171573,0,4171573,0,2684120,2684120]
["        Расходы на оплату труда работников муниципального бюджетного учреждения МБДОУ ЦРР Детский сад № 3, финансируемые за счет средств местного бюджета","151030Б592","000","000","0000",null,null,null,null,null,6595770,6595770,0,6595770,0,6595770,0,6561047,6561047]
["          Предоставление субсидий бюджетным, автономным учреждениям и иным некоммерческим организациям","151030Б592","600","000","0000",null,null,null,null,null,6595770,6595770,0,6595770,0,6595770,0,6561047,6561047]
["            Дошкольное образование","151030Б592","600","000","0701",null,null,null,null,null,6595770,6595770,0,6595770,0,6595770,0,6561047,6561047]
["        Выполнение муниципального задания МБДОУ ЦРР д/с №5","151030Г590","000","000","0000",null,null,null,null,null,8348846,8348846,0,8348846,0,8348846,0,5571424,5571424]
["          Предоставление субсидий бюджетным, автономным учреждениям и иным некоммерческим организациям","151030Г590","600","000","0000",null,null,null,null,null,8348846,8348846,0,8348846,0,8348846,0,5571424,5571424]
["            Дошкольное образование","151030Г590","600","000","0701",null,null,null,null,null,8348846,8348846,0,8348846,0,8348846,0,5571424,5571424]
["        Расходы на оплату труда работников муниципального бюджетного учреждения МБДОУ ЦРР Детский сад № 5, финансируемые за счет средств местного бюджета","151030Г592","000","000","0000",null,null,null,null,null,13953050,13953050,0,13953050,0,13953050,0,13855971,13855971]
["          Предоставление субсидий бюджетным, автономным учреждениям и иным некоммерческим организациям","151030Г592","600","000","0000",null,null,null,null,null,13953050,13953050,0,13953050,0,13953050,0,13855971,13855971]
["            Дошкольное образование","151030Г592","600","000","0701",null,null,null,null,null,13953050,13953050,0,13953050,0,13953050,0,13855971,13855971]
["        Выполнение муниципального задания МБДОУ ЦРР д/с №6","151030Д590","000","000","0000",null,null,null,null,null,7276927,7276927,0,7276927,0,7276927,0,6222655,6222655]
["          Предоставление субсидий бюджетным, автономным учреждениям и иным некоммерческим организациям","151030Д590","600","000","0000",null,null,null,null,null,7276927,7276927,0,7276927,0,7276927,0,6222655,6222655]
["            Дошкольное образование","151030Д590","600","000","0701",null,null,null,null,null,7276927,7276927,0,7276927,0,7276927,0,6222655,6222655]
["        Расходы на оплату труда работников муниципального бюджетного учреждения МБДОУ ЦРР Детский сад № 6, финансируемые за счет средств местного бюджета","151030Д592","000","000","0000",null,null,null,null,null,6886189,6886189,0,6886189,0,6886189,0,6845526,6845526]
["          Предоставление субсидий бюджетным, автономным учреждениям и иным некоммерческим организациям","151030Д592","600","000","0000",null,null,null,null,null,6886189,6886189,0,6886189,0,6886189,0,6845526,6845526]
["            Дошкольное образование","151030Д592","600","000","0701",null,null,null,null,null,6886189,6886189,0,6886189,0,6886189,0,6845526,6845526]
["        Выполнение муниципального задания МБОУ СОШ №1","151030И590","000","000","0000",null,null,null,null,null,7296922,7296922,0,7296922,0,7296922,0,6192596,6267296]
["          Предоставление субсидий бюджетным, автономным учреждениям и иным некоммерческим организациям","151030И590","600","000","0000",null,null,null,null,null,7296922,7296922,0,7296922,0,7296922,0,6192596,6267296]
["            Общее образование","151030И590","600","000","0702",null,null,null,null,null,7296922,7296922,0,7296922,0,7296922,0,6192596,6267296]
["        Выполнение муниципального задания МБОУ СОШ №2","151030Л590","000","000","0000",null,null,null,null,null,7475395,7475395,0,7475395,0,7475395,0,7065040,7065040]
["          Предоставление субсидий бюджетным, автономным учреждениям и иным некоммерческим организациям","151030Л590","600","000","0000",null,null,null,null,null,7475395,7475395,0,7475395,0,7475395,0,7065040,7065040]
["            Общее образование","151030Л590","600","000","0702",null,null,null,null,null,7475395,7475395,0,7475395,0,7475395,0,7065040,7065040]
["        Выполнение муниципального задания МБОУ ДО ЦВР \"Лад\"","151030Ц590","000","000","0000",null,null,null,null,null,5147694,5147694,0,5147694,0,5147694,0,5183184,5183184]
["          Предоставление субсидий бюджетным, автономным учреждениям и иным некоммерческим организациям","151030Ц590","600","000","0000",null,null,null,null,null,5147694,5147694,0,5147694,0,5147694,0,5183184,5183184]
["            Дополнительное образование детей","151030Ц590","600","000","0703",null,null,null,null,null,5147694,5147694,0,5147694,0,5147694,0,5183184,5183184]
["        Расходы на оплату труда работников культуры и педагогических работников дополнительного образования детей в соответствии с Указами Президента РФ от 07.05.2012 г. №597, от 01.06.2012 г. №761 (МБОУ ДО ЦВР \"Лад\")","151030Ц591","000","000","0000",null,null,null,null,null,6308098,6308098,0,6308098,0,6308098,0,6308098,6308098]
["          Предоставление субсидий бюджетным, автономным учреждениям и иным некоммерческим организациям","151030Ц591","600","000","0000",null,null,null,null,null,6308098,6308098,0,6308098,0,6308098,0,6308098,6308098]
["            Дополнительное образование детей","151030Ц591","600","000","0703",null,null,null,null,null,6308098,6308098,0,6308098,0,6308098,0,6308098,6308098]
["        Расходы на оплату труда работников муниципального бюджетного учреждения МБОУ ДО ЦВР \"Лад\"","151030Ц592","000","000","0000",null,null,null,null,null,6030200,6030200,0,6030200,0,6030200,0,6030200,6030200]
["          Предоставление субсидий бюджетным, автономным учреждениям и иным некоммерческим организациям","151030Ц592","600","000","0000",null,null,null,null,null,6030200,6030200,0,6030200,0,6030200,0,6030200,6030200]
["            Дополнительное образование детей","151030Ц592","600","000","0703",null,null,null,null,null,6030200,6030200,0,6030200,0,6030200,0,6030200,6030200]
["        Поддержка приоритетных направлений развития отрасли образования (финансовое обеспечение мероприятий, возникающих в связи с доведением оплаты труда педагогических работников муниципальных образовательных учреждений муниципального образования, МБОУ ДО ЦВР \"Лад\")","151037147Ц","000","000","0000",null,null,null,null,null,1397800,1397800,0,1397800,0,1397800,0,1397800,1397800]
["          Предоставление субсидий бюджетным, автономным учреждениям и иным некоммерческим организациям","151037147Ц","600","000","0000",null,null,null,null,null,1397800,1397800,0,1397800,0,1397800,0,1397800,1397800]
["            Дополнительное образование детей","151037147Ц","600","000","0703",null,null,null,null,null,1397800,1397800,0,1397800,0,1397800,0,1397800,1397800]
["        Обеспечение государственных гарантий реализации прав на получение общедоступного и бесплатного дошкольного, начального общего, основного общего, среднего общего образования в муниципальных образовательных организациях, обеспечение дополнительного образования детей в муниципальных общеобразовательных организациях (МБДОУ ЦРР д/с №3)","151037183Б","000","000","0000",null,null,null,null,null,13245760,13245760,0,13245760,0,13245760,0,13146020,13152139]
["          Предоставление субсидий бюджетным, автономным учреждениям и иным некоммерческим организациям","151037183Б","600","000","0000",null,null,null,null,null,13245760,13245760,0,13245760,0,13245760,0,13146020,13152139]
["            Дошкольное образование","151037183Б","600","000","0701",null,null,null,null,null,13245760,13245760,0,13245760,0,13245760,0,13146020,13152139]
["        Обеспечение государственных гарантий реализации прав на получение общедоступного и бесплатного дошкольного, начального общего, основного общего, среднего общего образования в муниципальных образовательных организациях, обеспечение дополнительного образования детей в муниципальных общеобразовательных организациях (МБДОУ ЦРР д/с №5)","151037183Г","000","000","0000",null,null,null,null,null,31896098,31896098,0,31896098,0,31896098,0,31655922,31670658]
["          Предоставление субсидий бюджетным, автономным учреждениям и иным некоммерческим организациям","151037183Г","600","000","0000",null,null,null,null,null,31896098,31896098,0,31896098,0,31896098,0,31655922,31670658]
["            Дошкольное образование","151037183Г","600","000","0701",null,null,null,null,null,31896098,31896098,0,31896098,0,31896098,0,31655922,31670658]
["        Обеспечение государственных гарантий реализации прав на получение общедоступного и бесплатного дошкольного, начального общего, основного общего, среднего общего образования в муниципальных образовательных организациях, обеспечение дополнительного образования детей в муниципальных общеобразовательных организациях (МБДОУ ЦРР д/с №6)","151037183Д","000","000","0000",null,null,null,null,null,14101792,14101792,0,14101792,0,14101792,0,13995608,14002122]
["          Предоставление субсидий бюджетным, автономным учреждениям и иным некоммерческим организациям","151037183Д","600","000","0000",null,null,null,null,null,14101792,14101792,0,14101792,0,14101792,0,13995608,14002122]
["            Дошкольное образование","151037183Д","600","000","0701",null,null,null,null,null,14101792,14101792,0,14101792,0,14101792,0,13995608,14002122]
["        Обеспечение государственных гарантий реализации прав на получение общедоступного и бесплатного дошкольного, начального общего, основного общего, среднего общего образования в муниципальных образовательных организациях, обеспечение дополнительного образования детей в муниципальных общеобразовательных организациях (МБОУ СОШ №1)","151037183И","000","000","0000",null,null,null,null,null,44957410,44957410,0,44957410,0,44957410,0,44618883,44639651]
["          Предоставление субсидий бюджетным, автономным учреждениям и иным некоммерческим организациям","151037183И","600","000","0000",null,null,null,null,null,44957410,44957410,0,44957410,0,44957410,0,44618883,44639651]
["            Общее образование","151037183И","600","000","0702",null,null,null,null,null,44957410,44957410,0,44957410,0,44957410,0,44618883,44639651]
["        Обеспечение государственных гарантий реализации прав на получение общедоступного и бесплатного дошкольного, начального общего, основного общего, среднего общего образования в муниципальных образовательных организациях, обеспечение дополнительного образования детей в муниципальных общеобразовательных организациях (МБОУ СОШ №2)","151037183Л","000","000","0000",null,null,null,null,null,46025940,46025940,0,46025940,0,46025940,0,45679367,45700630]
["          Предоставление субсидий бюджетным, автономным учреждениям и иным некоммерческим организациям","151037183Л","600","000","0000",null,null,null,null,null,46025940,46025940,0,46025940,0,46025940,0,45679367,45700630]
["            Общее образование","151037183Л","600","000","0702",null,null,null,null,null,46025940,46025940,0,46025940,0,46025940,0,45679367,45700630]
["        Поддержка приоритетных направлений развития отрасли образования (финансовое обеспечение мероприятий, возникающих в связи с доведением оплаты труда педагогических работников муниципальных образовательных учреждений муниципального образования, МБОУ ДО ЦВР \"Лад\")","15103S147Ц","000","000","0000",null,null,null,null,null,208870,208870,0,208870,0,208870,0,208870,208870]
["          Предоставление субсидий бюджетным, автономным учреждениям и иным некоммерческим организациям","15103S147Ц","600","000","0000",null,null,null,null,null,208870,208870,0,208870,0,208870,0,208870,208870]
["            Дополнительное образование детей","15103S147Ц","600","000","0703",null,null,null,null,null,208870,208870,0,208870,0,208870,0,208870,208870]
["      Основное мероприятие \"Выполнение управленческих функций, обеспечивающих стабильность работы подведомственных учреждений\"","1510400000","000","000","0000",null,null,null,null,null,9181875,9181875,0,9181875,0,9181875,0,8411952,8411952]
["        Функционирование централизованной бухгалтерии и методического кабинета управления образования администрации ЗАТО г.Радужный Владимирской области","1510400590","000","000","0000",null,null,null,null,null,9181875,9181875,0,9181875,0,9181875,0,8411952,8411952]
["          Расходы на выплаты персоналу в целях обеспечения выполнения функций государственными (муниципальными) органами, казенными учреждениями, органами управления государственными внебюджетными фондами","1510400590","100","000","0000",null,null,null,null,null,8635175,8635175,0,8635175,0,8635175,0,7936552,7936552]
["            Другие вопросы в области образования","1510400590","100","000","0709",null,null,null,null,null,8635175,8635175,0,8635175,0,8635175,0,7936552,7936552]
["          Закупка товаров, работ и услуг для обеспечения государственных (муниципальных) нужд","1510400590","200","000","0000",null,null,null,null,null,546700,546700,0,546700,0,546700,0,475400,475400]
["            Другие вопросы в области образования","1510400590","200","000","0709",null,null,null,null,null,546700,546700,0,546700,0,546700,0,475400,475400]
["      Основное мероприятие \"Социальная поддержка населения\"","1510500000","000","000","0000",null,null,null,null,null,5901200,5901200,0,5901200,0,5901200,0,6346200,6346200]
["        Социальная поддержка детей-инвалидов дошкольного возраста","1510570540","000","000","0000",null,null,null,null,null,145400,145400,0,145400,0,145400,0,145400,145400]
["          Социальное обеспечение и иные выплаты населению","1510570540","300","000","0000",null,null,null,null,null,145400,145400,0,145400,0,145400,0,145400,145400]
["            Социальное обеспечение населения","1510570540","300","000","1003",null,null,null,null,null,145400,145400,0,145400,0,145400,0,145400,145400]
["        Компенсация части родительской платы за присмотр и уход за детьми в образовательных организациях, реализующих образовательную программу дошкольного образования","1510570560","000","000","0000",null,null,null,null,null,5617100,5617100,0,5617100,0,5617100,0,6062100,6062100]
["          Социальное обеспечение и иные выплаты населению","1510570560","300","000","0000",null,null,null,null,null,5617100,5617100,0,5617100,0,5617100,0,6062100,6062100]
["            Охрана семьи и детства","1510570560","300","000","1004",null,null,null,null,null,5617100,5617100,0,5617100,0,5617100,0,6062100,6062100]
["        Компенсация расходов на оплату жилых помещений, отопления и освещения педагогическим работникам, а также компенсация по оплате за содержание и ремонт жилья, услуг теплоснабжения (отопления) и электроснабжения другим категориям специалистов, работающим в образовательных организациях, расположенных в сельских населенных пунктах, поселках городского типа","1510570590","000","000","0000",null,null,null,null,null,138700,138700,0,138700,0,138700,0,138700,138700]
["          Социальное обеспечение и иные выплаты населению","1510570590","300","000","0000",null,null,null,null,null,138700,138700,0,138700,0,138700,0,138700,138700]
["            Общее образование","1510570590","300","000","0702",null,null,null,null,null,138700,138700,0,138700,0,138700,0,138700,138700]
["      Основное мероприятие \"Создание (обновление) материально-технической базы для реализации основных и дополнительных общеобразовательных программ цифрового и гуманитарного профилей в общеобразовательных организациях, расположенных в сельской местности и малых городах в рамках реализации национального проекта \"Образование (федеральный проект \"Современная школа\")\"","151E100000","000","000","0000",null,null,null,null,null,1024300,1024300,0,1024300,0,1024300,0,0,0]
["        Создание (обновление) материально-технической базы для реализации основных и дополнительных общеобразовательных программ цифрового и гуманитарного профилей в общеобразовательных организациях, расположенных в сельской местности и малых городах (МБОУ СОШ №1)","151E15169И","000","000","0000",null,null,null,null,null,1024300,1024300,0,1024300,0,1024300,0,0,0]
["          Предоставление субсидий бюджетным, автономным учреждениям и иным некоммерческим организациям","151E15169И","600","000","0000",null,null,null,null,null,1024300,1024300,0,1024300,0,1024300,0,0,0]
["            Общее образование","151E15169И","600","000","0702",null,null,null,null,null,1024300,1024300,0,1024300,0,1024300,0,0,0]
["      Основное мероприятие \"Создание в общеобразовательных организациях, расположенных в сельской местности и малых городах, условий для занятий физической культурой и спортом в рамках реализации национального проекта \"Образование (федеральный проект \"Успех каждого ребенка\")\"","151E200000","000","000","0000",null,null,null,null,null,1149400,1149400,0,1149400,0,1149400,0,574700,0]
["        Создание в общеобразовательных организациях, расположенных в сельской местности и малых городах, условий для занятия физической культурой и спортом","151E250971","000","000","0000",null,null,null,null,null,1149400,1149400,0,1149400,0,1149400,0,574700,0]
["          Предоставление субсидий бюджетным, автономным учреждениям и иным некоммерческим организациям","151E250971","600","000","0000",null,null,null,null,null,1149400,1149400,0,1149400,0,1149400,0,574700,0]
["            Общее образование","151E250971","600","000","0702",null,null,null,null,null,1149400,1149400,0,1149400,0,1149400,0,574700,0]
["      Основное мероприятие \"Внедрение целевой модели цифровой образовательной среды в общеобразовательных организациях и профессиональных образовательных организациях в рамках реализации национального проекта \"Образование (федеральный проект \"Цифровая образовательная среда\")\"","151E400000","000","000","0000",null,null,null,null,null,4097600,4097600,0,4097600,0,4097600,0,0,0]
["        Внедрение целевой модели цифровой образовательной среды в общеобразовательных организациях и профессиональных образовательных организациях","151E452101","000","000","0000",null,null,null,null,null,4097600,4097600,0,4097600,0,4097600,0,0,0]
["          Предоставление субсидий бюджетным, автономным учреждениям и иным некоммерческим организациям","151E452101","600","000","0000",null,null,null,null,null,4097600,4097600,0,4097600,0,4097600,0,0,0]
["            Общее образование","151E452101","600","000","0702",null,null,null,null,null,4097600,4097600,0,4097600,0,4097600,0,0,0]
["      Основное мероприятие \"Выполнение муниципальных заданий в части выплат денежных вознаграждений за классное руководство педагогическим работникам в МБОУ СОШ №1\"","151И300000","000","000","0000",null,null,null,null,null,2775740,2775740,0,2775740,0,2775740,0,2775740,2775740]
["        Ежемесячное денежное вознаграждение за классное руководство педагогическим работникам муниципальных общеобразовательных организаций (МБОУ СОШ №1)","151И353031","000","000","0000",null,null,null,null,null,2775740,2775740,0,2775740,0,2775740,0,2775740,2775740]
["          Предоставление субсидий бюджетным, автономным учреждениям и иным некоммерческим организациям","151И353031","600","000","0000",null,null,null,null,null,2775740,2775740,0,2775740,0,2775740,0,2775740,2775740]
["            Общее образование","151И353031","600","000","0702",null,null,null,null,null,2775740,2775740,0,2775740,0,2775740,0,2775740,2775740]
["      Основное мероприятие \"Выполнение муниципальных заданий в части выплат денежных вознаграждений за классное руководство педагогическим работникам в МБОУ СОШ №2\"","151Л300000","000","000","0000",null,null,null,null,null,3161260,3161260,0,3161260,0,3161260,0,3161260,3161260]
["        Ежемесячное денежное вознаграждение за классное руководство педагогическим работникам муниципальных общеобразовательных организаций (МБОУ СОШ №2)","151Л353031","000","000","0000",null,null,null,null,null,3161260,3161260,0,3161260,0,3161260,0,3161260,3161260]
["          Предоставление субсидий бюджетным, автономным учреждениям и иным некоммерческим организациям","151Л353031","600","000","0000",null,null,null,null,null,3161260,3161260,0,3161260,0,3161260,0,3161260,3161260]
["            Общее образование","151Л353031","600","000","0702",null,null,null,null,null,3161260,3161260,0,3161260,0,3161260,0,3161260,3161260]
["    Подпрограмма \"Совершенствование организации питания обучающихся муниципальных общеобразовательных учреждений ЗАТО г.Радужный Владимирской области","1520000000","000","000","0000",null,null,null,null,null,13736470,13736470,0,13736470,0,13736470,0,8177600,8177600]
["      Основное мероприятие \"Организация питания учащихся\"","1520100000","000","000","0000",null,null,null,null,null,2495370,2495370,0,2495370,0,2495370,0,0,0]
["        Обеспечение горячим питанием обучающихся 1-11 классов, в том числе предоставление льготного питания в МБОУ СОШ №1","152012И220","000","000","0000",null,null,null,null,null,1560000,1560000,0,1560000,0,1560000,0,0,0]
["          Предоставление субсидий бюджетным, автономным учреждениям и иным некоммерческим организациям","152012И220","600","000","0000",null,null,null,null,null,1560000,1560000,0,1560000,0,1560000,0,0,0]
["            Общее образование","152012И220","600","000","0702",null,null,null,null,null,1560000,1560000,0,1560000,0,1560000,0,0,0]
["        Обеспечение горячим питанием обучающихся 1-11 классов, в том числе предоставление льготного питания в МБОУ СОШ №2","152012Л220","000","000","0000",null,null,null,null,null,935370,935370,0,935370,0,935370,0,0,0]
["          Предоставление субсидий бюджетным, автономным учреждениям и иным некоммерческим организациям","152012Л220","600","000","0000",null,null,null,null,null,935370,935370,0,935370,0,935370,0,0,0]
["            Общее образование","152012Л220","600","000","0702",null,null,null,null,null,935370,935370,0,935370,0,935370,0,0,0]
["      Основное мероприятие \"Организация питания дошкольников\"","1520200000","000","000","0000",null,null,null,null,null,2732000,2732000,0,2732000,0,2732000,0,0,0]
["        Обеспечение предоставления качественного питания для детей дошкольного возраста в МБДОУ ЦРР д/с №3","152022Б220","000","000","0000",null,null,null,null,null,835000,835000,0,835000,0,835000,0,0,0]
["          Предоставление субсидий бюджетным, автономным учреждениям и иным некоммерческим организациям","152022Б220","600","000","0000",null,null,null,null,null,835000,835000,0,835000,0,835000,0,0,0]
["            Дошкольное образование","152022Б220","600","000","0701",null,null,null,null,null,835000,835000,0,835000,0,835000,0,0,0]
["        Обеспечение предоставления качественного питания для детей дошкольного возраста в МБДОУ ЦРР д/с №5","152022Г220","000","000","0000",null,null,null,null,null,1185000,1185000,0,1185000,0,1185000,0,0,0]
["          Предоставление субсидий бюджетным, автономным учреждениям и иным некоммерческим организациям","152022Г220","600","000","0000",null,null,null,null,null,1185000,1185000,0,1185000,0,1185000,0,0,0]
["            Дошкольное образование","152022Г220","600","000","0701",null,null,null,null,null,1185000,1185000,0,1185000,0,1185000,0,0,0]
["        Обеспечение предоставления качественного питания для детей дошкольного возраста в МБДОУ ЦРР д/с №6","152022Д220","000","000","0000",null,null,null,null,null,712000,712000,0,712000,0,712000,0,0,0]
["          Предоставление субсидий бюджетным, автономным учреждениям и иным некоммерческим организациям","152022Д220","600","000","0000",null,null,null,null,null,712000,712000,0,712000,0,712000,0,0,0]
["            Дошкольное образование","152022Д220","600","000","0701",null,null,null,null,null,712000,712000,0,712000,0,712000,0,0,0]
["      Основное мероприятие \"Организация питания учащихся начальных классов в МБОУ СОШ №1\"","152И100000","000","000","0000",null,null,null,null,null,4157200,4157200,0,4157200,0,4157200,0,3995200,3995200]
["        Организация бесплатного горячего питания обучающихся, получающих начальное общее образование в муниципальных образовательных организациях (МБОУ СОШ №1)","152И1R3041","000","000","0000",null,null,null,null,null,4157200,4157200,0,4157200,0,4157200,0,3995200,3995200]
["          Предоставление субсидий бюджетным, автономным учреждениям и иным некоммерческим организациям","152И1R3041","600","000","0000",null,null,null,null,null,4157200,4157200,0,4157200,0,4157200,0,3995200,3995200]
["            Общее образование","152И1R3041","600","000","0702",null,null,null,null,null,4157200,4157200,0,4157200,0,4157200,0,3995200,3995200]
["      Основное мероприятие \"Организация питания учащихся начальных классов в МБОУ СОШ №2\"","152Л100000","000","000","0000",null,null,null,null,null,4351900,4351900,0,4351900,0,4351900,0,4182400,4182400]
["        Организация бесплатного горячего питания обучающихся, получающих начальное общее образование в муниципальных образовательных организациях (МБОУ СОШ №2)","152Л1R3041","000","000","0000",null,null,null,null,null,4351900,4351900,0,4351900,0,4351900,0,4182400,4182400]
["          Предоставление субсидий бюджетным, автономным учреждениям и иным некоммерческим организациям","152Л1R3041","600","000","0000",null,null,null,null,null,4351900,4351900,0,4351900,0,4351900,0,4182400,4182400]
["            Общее образование","152Л1R3041","600","000","0702",null,null,null,null,null,4351900,4351900,0,4351900,0,4351900,0,4182400,4182400]
["    Подпрограмма \"Совершенствование организации отдыха и оздоровления детей и подростков в ЗАТО г.Радужный Владимирской области\"","1530000000","000","000","0000",null,null,null,null,null,5157173,5157173,0,5157173,0,5157173,0,4987578,4987578]
["      Основное мероприятие \"Организация отдыха и оздоровления детей и подростков ЗАТО г.Радужный Владимирской области в лагерях дневного пребывания\"","1530100000","000","000","0000",null,null,null,null,null,1430550,1430550,0,1430550,0,1430550,0,1377050,1377050]
["        Организация лагеря с дневным пребыванием на базе МБОУ СОШ №1","153012И220","000","000","0000",null,null,null,null,null,25000,25000,0,25000,0,25000,0,0,0]
["          Предоставление субсидий бюджетным, автономным учреждениям и иным некоммерческим организациям","153012И220","600","000","0000",null,null,null,null,null,25000,25000,0,25000,0,25000,0,0,0]
["            Молодежная политика","153012И220","600","000","0707",null,null,null,null,null,25000,25000,0,25000,0,25000,0,0,0]
["        Организация лагеря с дневным пребыванием на базе МБОУ СОШ №2","153012Л220","000","000","0000",null,null,null,null,null,28500,28500,0,28500,0,28500,0,0,0]
["          Предоставление субсидий бюджетным, автономным учреждениям и иным некоммерческим организациям","153012Л220","600","000","0000",null,null,null,null,null,28500,28500,0,28500,0,28500,0,0,0]
["            Молодежная политика","153012Л220","600","000","0707",null,null,null,null,null,28500,28500,0,28500,0,28500,0,0,0]
["        Поддержка приоритетных направлений развития отрасли образования (организация отдыха детей в каникулярное время в лагерях, функционирующих на базе муниципальных образовательных учреждений) в МБОУ СОШ №1","153017147И","000","000","0000",null,null,null,null,null,292000,292000,0,292000,0,292000,0,292000,292000]
["          Предоставление субсидий бюджетным, автономным учреждениям и иным некоммерческим организациям","153017147И","600","000","0000",null,null,null,null,null,292000,292000,0,292000,0,292000,0,292000,292000]
["            Молодежная политика","153017147И","600","000","0707",null,null,null,null,null,292000,292000,0,292000,0,292000,0,292000,292000]
["        Поддержка приоритетных направлений развития отрасли образования (организация отдыха детей в каникулярное время в лагерях, функционирующих на базе муниципальных образовательных учреждений) в МБОУ СОШ №2","153017147Л","000","000","0000",null,null,null,null,null,144000,144000,0,144000,0,144000,0,144000,144000]
["          Предоставление субсидий бюджетным, автономным учреждениям и иным некоммерческим организациям","153017147Л","600","000","0000",null,null,null,null,null,144000,144000,0,144000,0,144000,0,144000,144000]
["            Молодежная политика","153017147Л","600","000","0707",null,null,null,null,null,144000,144000,0,144000,0,144000,0,144000,144000]
["        Поддержка приоритетных направлений развития отрасли образования (организация отдыха детей в каникулярное время в лагерях, функционирующих на базе муниципальных образовательных учреждений, организация культурно-экскурсионного обслуживания в каникулярный период) в МБОУ ДО ЦВР \"Лад\"","153017147Ц","000","000","0000",null,null,null,null,null,762000,762000,0,762000,0,762000,0,762000,762000]
["          Предоставление субсидий бюджетным, автономным учреждениям и иным некоммерческим организациям","153017147Ц","600","000","0000",null,null,null,null,null,762000,762000,0,762000,0,762000,0,762000,762000]
["            Молодежная политика","153017147Ц","600","000","0707",null,null,null,null,null,762000,762000,0,762000,0,762000,0,762000,762000]
["        Поддержка приоритетных направлений развития отрасли образования (организация отдыха детей в каникулярное время в лагерях, функционирующих на базе муниципальных образовательных учреждений) в МБОУ СОШ №1","15301S147И","000","000","0000",null,null,null,null,null,43650,43650,0,43650,0,43650,0,43650,43650]
["          Предоставление субсидий бюджетным, автономным учреждениям и иным некоммерческим организациям","15301S147И","600","000","0000",null,null,null,null,null,43650,43650,0,43650,0,43650,0,43650,43650]
["            Молодежная политика","15301S147И","600","000","0707",null,null,null,null,null,43650,43650,0,43650,0,43650,0,43650,43650]
["        Поддержка приоритетных направлений развития отрасли образования (организация отдыха детей в каникулярное время в лагерях, функционирующих на базе муниципальных образовательных учреждений) в МБОУ СОШ №2","15301S147Л","000","000","0000",null,null,null,null,null,21500,21500,0,21500,0,21500,0,21500,21500]
["          Предоставление субсидий бюджетным, автономным учреждениям и иным некоммерческим организациям","15301S147Л","600","000","0000",null,null,null,null,null,21500,21500,0,21500,0,21500,0,21500,21500]
["            Молодежная политика","15301S147Л","600","000","0707",null,null,null,null,null,21500,21500,0,21500,0,21500,0,21500,21500]
["        Поддержка приоритетных направлений развития отрасли образования (организация отдыха детей в каникулярное время в лагерях, функционирующих на базе муниципальных образовательных учреждений) в МБОУ ДО ЦВР \"Лад\"","15301S147Ц","000","000","0000",null,null,null,null,null,113900,113900,0,113900,0,113900,0,113900,113900]
["          Предоставление субсидий бюджетным, автономным учреждениям и иным некоммерческим организациям","15301S147Ц","600","000","0000",null,null,null,null,null,113900,113900,0,113900,0,113900,0,113900,113900]
["            Молодежная политика","15301S147Ц","600","000","0707",null,null,null,null,null,113900,113900,0,113900,0,113900,0,113900,113900]
["      Основное мероприятие \"Участие в профильных сменах. Организация санаторно-курортного оздоровления\"","1530200000","000","000","0000",null,null,null,null,null,97300,97300,0,97300,0,97300,0,0,0]
["        Организация санаторно-курортного лечения для часто болеющих детей и семей, нуждающихся в особой заботе государства, в санаториях \"Мать и дитя\"","1530220220","000","000","0000",null,null,null,null,null,97300,97300,0,97300,0,97300,0,0,0]
["          Социальное обеспечение и иные выплаты населению","1530220220","300","000","0000",null,null,null,null,null,97300,97300,0,97300,0,97300,0,0,0]
["            Молодежная политика","1530220220","300","000","0707",null,null,null,null,null,97300,97300,0,97300,0,97300,0,0,0]
["      Основное мероприятие \"Организация отдыха детей в загородном лагере\"","1530300000","000","000","0000",null,null,null,null,null,3629323,3629323,0,3629323,0,3629323,0,3610528,3610528]
["        Выполнение муниципального задания муниципальным бюджетным учреждением МБОУ ДО ЦВР \"Лад\" в части обеспечения деятельности загородного лагеря \"Лесной городок\"","153030Ц590","000","000","0000",null,null,null,null,null,353639,353639,0,353639,0,353639,0,378928,378928]
["          Предоставление субсидий бюджетным, автономным учреждениям и иным некоммерческим организациям","153030Ц590","600","000","0000",null,null,null,null,null,353639,353639,0,353639,0,353639,0,378928,378928]
["            Молодежная политика","153030Ц590","600","000","0707",null,null,null,null,null,353639,353639,0,353639,0,353639,0,378928,378928]
["        Расходы на оплату труда работников муниципального бюджетного учреждения МБОУ ДО ЦВР \"Лад\" в части загородного лагеря \"Лесной городок\"","153030Ц592","000","000","0000",null,null,null,null,null,2114734,2114734,0,2114734,0,2114734,0,2070650,2070650]
["          Предоставление субсидий бюджетным, автономным учреждениям и иным некоммерческим организациям","153030Ц592","600","000","0000",null,null,null,null,null,2114734,2114734,0,2114734,0,2114734,0,2070650,2070650]
["            Молодежная политика","153030Ц592","600","000","0707",null,null,null,null,null,2114734,2114734,0,2114734,0,2114734,0,2070650,2070650]
["        Поддержка приоритетных направлений развития отрасли образования (организация отдыха детей в каникулярное время в загородном оздоровительном лагере) в МБОУ ДО ЦВР \"Лад\"","153037147Ц","000","000","0000",null,null,null,null,null,1010000,1010000,0,1010000,0,1010000,0,1010000,1010000]
["          Предоставление субсидий бюджетным, автономным учреждениям и иным некоммерческим организациям","153037147Ц","600","000","0000",null,null,null,null,null,1010000,1010000,0,1010000,0,1010000,0,1010000,1010000]
["            Молодежная политика","153037147Ц","600","000","0707",null,null,null,null,null,1010000,1010000,0,1010000,0,1010000,0,1010000,1010000]
["        Поддержка приоритетных направлений развития отрасли образования (организация отдыха детей в каникулярное время в загородном оздоровительном лагере) в МБОУ ДО ЦВР \"Лад\"","15303S147Ц","000","000","0000",null,null,null,null,null,150950,150950,0,150950,0,150950,0,150950,150950]
["          Предоставление субсидий бюджетным, автономным учреждениям и иным некоммерческим организациям","15303S147Ц","600","000","0000",null,null,null,null,null,150950,150950,0,150950,0,150950,0,150950,150950]
["            Молодежная политика","15303S147Ц","600","000","0707",null,null,null,null,null,150950,150950,0,150950,0,150950,0,150950,150950]
["    Подпрограмма \"Обеспечение защиты прав и интересов детей-сирот и детей, оставшихся без попечения родителей\"","1540000000","000","000","0000",null,null,null,null,null,13166500,13166500,0,13166500,0,13166500,0,14481700,14481700]
["      Основное мероприятие \"Организация осуществления деятельности по опеке и попечительству в отношении несовершеннолетних граждан\"","1540100000","000","000","0000",null,null,null,null,null,10536000,10536000,0,10536000,0,10536000,0,10536000,10536000]
["        Содержание ребенка в семье опекуна и приемной семье, а также вознаграждение, причитающееся приемному родителю","1540170650","000","000","0000",null,null,null,null,null,10536000,10536000,0,10536000,0,10536000,0,10536000,10536000]
["          Закупка товаров, работ и услуг для обеспечения государственных (муниципальных) нужд","1540170650","200","000","0000",null,null,null,null,null,85000,85000,0,85000,0,85000,0,85000,85000]
["            Охрана семьи и детства","1540170650","200","000","1004",null,null,null,null,null,85000,85000,0,85000,0,85000,0,85000,85000]
["          Социальное обеспечение и иные выплаты населению","1540170650","300","000","0000",null,null,null,null,null,10451000,10451000,0,10451000,0,10451000,0,10451000,10451000]
["            Охрана семьи и детства","1540170650","300","000","1004",null,null,null,null,null,10451000,10451000,0,10451000,0,10451000,0,10451000,10451000]
["      Основное мероприятие \"Обеспечение жильем лиц из числа детей-сирот, детей, оставшихся без попечения родителей\"","1540200000","000","000","0000",null,null,null,null,null,2630500,2630500,0,2630500,0,2630500,0,3945700,3945700]
["        Предоставление жилых помещений детям-сиротам и детям, оставшимся без попечения родителей, лицам из их числа по договорам найма специализированных жилых помещений","1540271420","000","000","0000",null,null,null,null,null,2630500,2630500,0,2630500,0,2630500,0,3945700,3945700]
["          Капитальные вложения в объекты государственной (муниципальной) собственности","1540271420","400","000","0000",null,null,null,null,null,2630500,2630500,0,2630500,0,2630500,0,3945700,3945700]
["            Охрана семьи и детства","1540271420","400","000","1004",null,null,null,null,null,2630500,2630500,0,2630500,0,2630500,0,3945700,3945700]
["  Муниципальная программа \"Культура, спорт и национальная политика ЗАТО г.Радужный Владимирской области\"","1600000000","000","000","0000",null,null,null,null,null,77514616,77514616,0,77514616,0,77514616,0,68644740,73283620]
["    Подпрограмма \"Культура ЗАТО г.Радужный Владимирской области\"","1610000000","000","000","0000",null,null,null,null,null,58143048,58143048,0,58143048,0,58143048,0,54533358,59253328]
["      Основное мероприятие \"Организация досуга населения\"","1610100000","000","000","0000",null,null,null,null,null,670000,670000,0,670000,0,670000,0,0,0]
["        Организация и проведение городских творческих конкурсов и выставок, традиционных городских мероприятий, участие в региональных и международных конкурсах, выставках, фестивалях, в том числе патриотической направленности","1610120220","000","000","0000",null,null,null,null,null,600000,600000,0,600000,0,600000,0,0,0]
["          Закупка товаров, работ и услуг для обеспечения государственных (муниципальных) нужд","1610120220","200","000","0000",null,null,null,null,null,600000,600000,0,600000,0,600000,0,0,0]
["            Культура","1610120220","200","000","0801",null,null,null,null,null,600000,600000,0,600000,0,600000,0,0,0]
["        Организация и проведение городских творческих конкурсов и выставок, традиционных городских мероприятий, участие в региональных и международных конкурсах, выставках, фестивалях, в том числе патриотической направленности (МБУК ПКиО)","161012Э220","000","000","0000",null,null,null,null,null,60000,60000,0,60000,0,60000,0,0,0]
["          Предоставление субсидий бюджетным, автономным учреждениям и иным некоммерческим организациям","161012Э220","600","000","0000",null,null,null,null,null,60000,60000,0,60000,0,60000,0,0,0]
["            Культура","161012Э220","600","000","0801",null,null,null,null,null,60000,60000,0,60000,0,60000,0,0,0]
["        Комплектование книжного фонда, внедрение информационных технологий в процесс библиотечного обслуживания","161012Ю220","000","000","0000",null,null,null,null,null,10000,10000,0,10000,0,10000,0,0,0]
["          Предоставление субсидий бюджетным, автономным учреждениям и иным некоммерческим организациям","161012Ю220","600","000","0000",null,null,null,null,null,10000,10000,0,10000,0,10000,0,0,0]
["            Культура","161012Ю220","600","000","0801",null,null,null,null,null,10000,10000,0,10000,0,10000,0,0,0]
["      Основное мероприятие \"Укрепление материальной базы\"","1610200000","000","000","0000",null,null,null,null,null,300000,300000,0,300000,0,300000,0,0,246400]
["        Мероприятия, связанные с укреплением материально-технической базы МБОУ ДО ДШИ","161022П220","000","000","0000",null,null,null,null,null,0,0,0,0,0,0,0,0,246400]
["          Предоставление субсидий бюджетным, автономным учреждениям и иным некоммерческим организациям","161022П220","600","000","0000",null,null,null,null,null,0,0,0,0,0,0,0,0,246400]
["            Дополнительное образование детей","161022П220","600","000","0703",null,null,null,null,null,0,0,0,0,0,0,0,0,246400]
["        Мероприятия, связанные с укреплением материально-технической базы МБУК МСДЦ","161022Я220","000","000","0000",null,null,null,null,null,300000,300000,0,300000,0,300000,0,0,0]
["          Предоставление субсидий бюджетным, автономным учреждениям и иным некоммерческим организациям","161022Я220","600","000","0000",null,null,null,null,null,300000,300000,0,300000,0,300000,0,0,0]
["            Культура","161022Я220","600","000","0801",null,null,null,null,null,300000,300000,0,300000,0,300000,0,0,0]
["      Основное мероприятие \"Выполнение управленческих функций, обеспечение стабильной работы подведомственных учреждений\"","1610300000","000","000","0000",null,null,null,null,null,12171525,12171525,0,12171525,0,12171525,0,11948925,11948925]
["        Финансирование деятельности муниципальных учреждений, деятельность которых направлена на создание условий для организации досуга и обеспечение жителей ЗАТО г. Радужный услугами учреждений культуры","1610300590","000","000","0000",null,null,null,null,null,12171525,12171525,0,12171525,0,12171525,0,11948925,11948925]
["          Расходы на выплаты персоналу в целях обеспечения выполнения функций государственными (муниципальными) органами, казенными учреждениями, органами управления государственными внебюджетными фондами","1610300590","100","000","0000",null,null,null,null,null,11875925,11875925,0,11875925,0,11875925,0,11875925,11875925]
["            Другие вопросы в области культуры, кинематографии","1610300590","100","000","0804",null,null,null,null,null,11875925,11875925,0,11875925,0,11875925,0,11875925,11875925]
["          Закупка товаров, работ и услуг для обеспечения государственных (муниципальных) нужд","1610300590","200","000","0000",null,null,null,null,null,295600,295600,0,295600,0,295600,0,73000,73000]
["            Другие вопросы в области культуры, кинематографии","1610300590","200","000","0804",null,null,null,null,null,295600,295600,0,295600,0,295600,0,73000,73000]
["      Основное мероприятие \"Выполнение муниципальных заданий\"","1610400000","000","000","0000",null,null,null,null,null,44984923,44984923,0,44984923,0,44984923,0,42567833,42359003]
["        Выполнение муниципального задания МБОУ ДО ДШИ","161040П590","000","000","0000",null,null,null,null,null,1432160,1432160,0,1432160,0,1432160,0,1116960,1081960]
["          Предоставление субсидий бюджетным, автономным учреждениям и иным некоммерческим организациям","161040П590","600","000","0000",null,null,null,null,null,1432160,1432160,0,1432160,0,1432160,0,1116960,1081960]
["            Дополнительное образование детей","161040П590","600","000","0703",null,null,null,null,null,1432160,1432160,0,1432160,0,1432160,0,1116960,1081960]
["        Расходы на оплату труда работников культуры и педагогических работников дополнительного образования детей в соответствии с Указами Президента РФ от 07.05.2012 г. №597, от 01.06.2012 г. №761 (МБОУ ДО ДШИ)","161040П591","000","000","0000",null,null,null,null,null,3160735,3160735,0,3160735,0,3160735,0,3160735,3160735]
["          Предоставление субсидий бюджетным, автономным учреждениям и иным некоммерческим организациям","161040П591","600","000","0000",null,null,null,null,null,3160735,3160735,0,3160735,0,3160735,0,3160735,3160735]
["            Дополнительное образование детей","161040П591","600","000","0703",null,null,null,null,null,3160735,3160735,0,3160735,0,3160735,0,3160735,3160735]
["        Расходы на оплату труда работников муниципального бюджетного учреждения МБОУ ДО ДШИ","161040П592","000","000","0000",null,null,null,null,null,4177513,4177513,0,4177513,0,4177513,0,4177513,4177513]
["          Предоставление субсидий бюджетным, автономным учреждениям и иным некоммерческим организациям","161040П592","600","000","0000",null,null,null,null,null,4177513,4177513,0,4177513,0,4177513,0,4177513,4177513]
["            Дополнительное образование детей","161040П592","600","000","0703",null,null,null,null,null,4177513,4177513,0,4177513,0,4177513,0,4177513,4177513]
["        Выполнение муниципального задания МБОУ ДО ДЮСШ","161040Ф590","000","000","0000",null,null,null,null,null,930316,930316,0,930316,0,930316,0,785736,776726]
["          Предоставление субсидий бюджетным, автономным учреждениям и иным некоммерческим организациям","161040Ф590","600","000","0000",null,null,null,null,null,930316,930316,0,930316,0,930316,0,785736,776726]
["            Спорт высших достижений","161040Ф590","600","000","1103",null,null,null,null,null,930316,930316,0,930316,0,930316,0,785736,776726]
["        Расходы на оплату труда работников муниципального бюджетного учреждения МБОУ ДО ДЮСШ","161040Ф592","000","000","0000",null,null,null,null,null,752585,752585,0,752585,0,752585,0,752585,752585]
["          Предоставление субсидий бюджетным, автономным учреждениям и иным некоммерческим организациям","161040Ф592","600","000","0000",null,null,null,null,null,752585,752585,0,752585,0,752585,0,752585,752585]
["            Спорт высших достижений","161040Ф592","600","000","1103",null,null,null,null,null,752585,752585,0,752585,0,752585,0,752585,752585]
["        Выполнение муниципального задания МБУК КЦ \"Досуг\"","161040Ч590","000","000","0000",null,null,null,null,null,1569384,1569384,0,1569384,0,1569384,0,1043335,1017584]
["          Предоставление субсидий бюджетным, автономным учреждениям и иным некоммерческим организациям","161040Ч590","600","000","0000",null,null,null,null,null,1569384,1569384,0,1569384,0,1569384,0,1043335,1017584]
["            Культура","161040Ч590","600","000","0801",null,null,null,null,null,1569384,1569384,0,1569384,0,1569384,0,1043335,1017584]
["        Расходы на оплату труда работников культуры и педагогических работников дополнительного образования детей в соответствии с Указами Президента РФ от 07.05.2012 г. №597, от 01.06.2012 г. №761 (МБУК КЦ \"Досуг\")","161040Ч591","000","000","0000",null,null,null,null,null,2504550,2504550,0,2504550,0,2504550,0,2504550,2504550]
["          Предоставление субсидий бюджетным, автономным учреждениям и иным некоммерческим организациям","161040Ч591","600","000","0000",null,null,null,null,null,2504550,2504550,0,2504550,0,2504550,0,2504550,2504550]
["            Культура","161040Ч591","600","000","0801",null,null,null,null,null,2504550,2504550,0,2504550,0,2504550,0,2504550,2504550]
["        Расходы на оплату труда работников муниципального бюджетного учреждения МБУК КЦ \"Досуг\"","161040Ч592","000","000","0000",null,null,null,null,null,1814415,1814415,0,1814415,0,1814415,0,1814415,1814415]
["          Предоставление субсидий бюджетным, автономным учреждениям и иным некоммерческим организациям","161040Ч592","600","000","0000",null,null,null,null,null,1814415,1814415,0,1814415,0,1814415,0,1814415,1814415]
["            Культура","161040Ч592","600","000","0801",null,null,null,null,null,1814415,1814415,0,1814415,0,1814415,0,1814415,1814415]
["        Выполнение муниципального задания МБУК ЦДМ","161040Ш590","000","000","0000",null,null,null,null,null,2245665,2245665,0,2245665,0,2245665,0,2020965,1988965]
["          Предоставление субсидий бюджетным, автономным учреждениям и иным некоммерческим организациям","161040Ш590","600","000","0000",null,null,null,null,null,2245665,2245665,0,2245665,0,2245665,0,2020965,1988965]
["            Культура","161040Ш590","600","000","0801",null,null,null,null,null,2245665,2245665,0,2245665,0,2245665,0,2020965,1988965]
["        Расходы на оплату труда работников культуры и педагогических работников дополнительного образования детей в соответствии с Указами Президента РФ от 07.05.2012 г. №597, от 01.06.2012 г. №761 (МБУК ЦДМ)","161040Ш591","000","000","0000",null,null,null,null,null,1934094,1934094,0,1934094,0,1934094,0,1934094,1934094]
["          Предоставление субсидий бюджетным, автономным учреждениям и иным некоммерческим организациям","161040Ш591","600","000","0000",null,null,null,null,null,1934094,1934094,0,1934094,0,1934094,0,1934094,1934094]
["            Культура","161040Ш591","600","000","0801",null,null,null,null,null,1934094,1934094,0,1934094,0,1934094,0,1934094,1934094]
["        Расходы на оплату труда работников муниципального бюджетного учреждения МБУК ЦДМ","161040Ш592","000","000","0000",null,null,null,null,null,1436441,1436441,0,1436441,0,1436441,0,1436441,1436441]
["          Предоставление субсидий бюджетным, автономным учреждениям и иным некоммерческим организациям","161040Ш592","600","000","0000",null,null,null,null,null,1436441,1436441,0,1436441,0,1436441,0,1436441,1436441]
["            Культура","161040Ш592","600","000","0801",null,null,null,null,null,1436441,1436441,0,1436441,0,1436441,0,1436441,1436441]
["        Выполнение муниципального задания МБУК ПКиО","161040Э590","000","000","0000",null,null,null,null,null,580267,580267,0,580267,0,580267,0,372767,359767]
["          Предоставление субсидий бюджетным, автономным учреждениям и иным некоммерческим организациям","161040Э590","600","000","0000",null,null,null,null,null,580267,580267,0,580267,0,580267,0,372767,359767]
["            Культура","161040Э590","600","000","0801",null,null,null,null,null,580267,580267,0,580267,0,580267,0,372767,359767]
["        Расходы на оплату труда работников муниципального бюджетного учреждения МБУК ПКиО","161040Э592","000","000","0000",null,null,null,null,null,1428662,1428662,0,1428662,0,1428662,0,1428662,1428662]
["          Предоставление субсидий бюджетным, автономным учреждениям и иным некоммерческим организациям","161040Э592","600","000","0000",null,null,null,null,null,1428662,1428662,0,1428662,0,1428662,0,1428662,1428662]
["            Культура","161040Э592","600","000","0801",null,null,null,null,null,1428662,1428662,0,1428662,0,1428662,0,1428662,1428662]
["        Выполнение муниципального задания МБУК \"Общедоступная библиотека\"","161040Ю590","000","000","0000",null,null,null,null,null,197100,197100,0,197100,0,197100,0,41739,39170]
["          Предоставление субсидий бюджетным, автономным учреждениям и иным некоммерческим организациям","161040Ю590","600","000","0000",null,null,null,null,null,197100,197100,0,197100,0,197100,0,41739,39170]
["            Культура","161040Ю590","600","000","0801",null,null,null,null,null,197100,197100,0,197100,0,197100,0,41739,39170]
["        Расходы на оплату труда работников культуры и педагогических работников дополнительного образования детей в соответствии с Указами Президента РФ от 07.05.2012 г. №597, от 01.06.2012 г. №761 (МБУК \"Общедоступная библиотека\")","161040Ю591","000","000","0000",null,null,null,null,null,1325444,1325444,0,1325444,0,1325444,0,1325444,1325444]
["          Предоставление субсидий бюджетным, автономным учреждениям и иным некоммерческим организациям","161040Ю591","600","000","0000",null,null,null,null,null,1325444,1325444,0,1325444,0,1325444,0,1325444,1325444]
["            Культура","161040Ю591","600","000","0801",null,null,null,null,null,1325444,1325444,0,1325444,0,1325444,0,1325444,1325444]
["        Расходы на оплату труда работников муниципального бюджетного учреждения МБУК \"Общедоступная библиотека\"","161040Ю592","000","000","0000",null,null,null,null,null,532544,532544,0,532544,0,532544,0,532544,532544]
["          Предоставление субсидий бюджетным, автономным учреждениям и иным некоммерческим организациям","161040Ю592","600","000","0000",null,null,null,null,null,532544,532544,0,532544,0,532544,0,532544,532544]
["            Культура","161040Ю592","600","000","0801",null,null,null,null,null,532544,532544,0,532544,0,532544,0,532544,532544]
["        Выполнение муниципального задания МБУК МСДЦ","161040Я590","000","000","0000",null,null,null,null,null,4326558,4326558,0,4326558,0,4326558,0,3482858,3391358]
["          Предоставление субсидий бюджетным, автономным учреждениям и иным некоммерческим организациям","161040Я590","600","000","0000",null,null,null,null,null,4326558,4326558,0,4326558,0,4326558,0,3482858,3391358]
["            Культура","161040Я590","600","000","0801",null,null,null,null,null,4326558,4326558,0,4326558,0,4326558,0,3482858,3391358]
["        Расходы на оплату труда работников культуры и педагогических работников дополнительного образования детей в соответствии с Указами Президента РФ от 07.05.2012 г. №597, от 01.06.2012 г. №761 (МБУК МСДЦ)","161040Я591","000","000","0000",null,null,null,null,null,1828893,1828893,0,1828893,0,1828893,0,1828893,1828893]
["          Предоставление субсидий бюджетным, автономным учреждениям и иным некоммерческим организациям","161040Я591","600","000","0000",null,null,null,null,null,1828893,1828893,0,1828893,0,1828893,0,1828893,1828893]
["            Культура","161040Я591","600","000","0801",null,null,null,null,null,1828893,1828893,0,1828893,0,1828893,0,1828893,1828893]
["        Расходы на оплату труда работников муниципального бюджетного учреждения МБУК МСДЦ","161040Я592","000","000","0000",null,null,null,null,null,1448067,1448067,0,1448067,0,1448067,0,1448067,1448067]
["          Предоставление субсидий бюджетным, автономным учреждениям и иным некоммерческим организациям","161040Я592","600","000","0000",null,null,null,null,null,1448067,1448067,0,1448067,0,1448067,0,1448067,1448067]
["            Культура","161040Я592","600","000","0801",null,null,null,null,null,1448067,1448067,0,1448067,0,1448067,0,1448067,1448067]
["        Повышение оплаты труда работников культуры и педагогических работников дополнительного образования детей сферы культуры в соответствии с указами Президента Российской Федерации от 7 мая 2012 года № 597, от 1 июня 2012 года № 761 (МБОУ ДО ДШИ)","161047039П","000","000","0000",null,null,null,null,null,3486509,3486509,0,3486509,0,3486509,0,3486509,3486509]
["          Предоставление субсидий бюджетным, автономным учреждениям и иным некоммерческим организациям","161047039П","600","000","0000",null,null,null,null,null,3486509,3486509,0,3486509,0,3486509,0,3486509,3486509]
["            Дополнительное образование детей","161047039П","600","000","0703",null,null,null,null,null,3486509,3486509,0,3486509,0,3486509,0,3486509,3486509]
["        Повышение оплаты труда работников культуры и педагогических работников дополнительного образования детей сферы культуры в соответствии с указами Президента Российской Федерации от 7 мая 2012 года № 597, от 1 июня 2012 года № 761 (МБУК КЦ \"Досуг\")","161047039Ч","000","000","0000",null,null,null,null,null,2676756,2676756,0,2676756,0,2676756,0,2676756,2676756]
["          Предоставление субсидий бюджетным, автономным учреждениям и иным некоммерческим организациям","161047039Ч","600","000","0000",null,null,null,null,null,2676756,2676756,0,2676756,0,2676756,0,2676756,2676756]
["            Культура","161047039Ч","600","000","0801",null,null,null,null,null,2676756,2676756,0,2676756,0,2676756,0,2676756,2676756]
["        Повышение оплаты труда работников культуры и педагогических работников дополнительного образования детей сферы культуры в соответствии с указами Президента Российской Федерации от 7 мая 2012 года № 597, от 1 июня 2012 года № 761 (МБУК ЦДМ)","161047039Ш","000","000","0000",null,null,null,null,null,1534970,1534970,0,1534970,0,1534970,0,1534970,1534970]
["          Предоставление субсидий бюджетным, автономным учреждениям и иным некоммерческим организациям","161047039Ш","600","000","0000",null,null,null,null,null,1534970,1534970,0,1534970,0,1534970,0,1534970,1534970]
["            Культура","161047039Ш","600","000","0801",null,null,null,null,null,1534970,1534970,0,1534970,0,1534970,0,1534970,1534970]
["        Повышение оплаты труда работников культуры и педагогических работников дополнительного образования детей сферы культуры в соответствии с указами Президента Российской Федерации от 7 мая 2012 года № 597, от 1 июня 2012 года № 761 (МБУК ЦДМ \"Общедоступная библиотека\")","161047039Ю","000","000","0000",null,null,null,null,null,1431460,1431460,0,1431460,0,1431460,0,1431460,1431460]
["          Предоставление субсидий бюджетным, автономным учреждениям и иным некоммерческим организациям","161047039Ю","600","000","0000",null,null,null,null,null,1431460,1431460,0,1431460,0,1431460,0,1431460,1431460]
["            Культура","161047039Ю","600","000","0801",null,null,null,null,null,1431460,1431460,0,1431460,0,1431460,0,1431460,1431460]
["        Повышение оплаты труда работников культуры и педагогических работников дополнительного образования детей сферы культуры в соответствии с указами Президента Российской Федерации от 7 мая 2012 года № 597, от 1 июня 2012 года № 761 (МБУК МСДЦ)","161047039Я","000","000","0000",null,null,null,null,null,1627305,1627305,0,1627305,0,1627305,0,1627305,1627305]
["          Предоставление субсидий бюджетным, автономным учреждениям и иным некоммерческим организациям","161047039Я","600","000","0000",null,null,null,null,null,1627305,1627305,0,1627305,0,1627305,0,1627305,1627305]
["            Культура","161047039Я","600","000","0801",null,null,null,null,null,1627305,1627305,0,1627305,0,1627305,0,1627305,1627305]
["        Поддержка приоритетных направлений развития отрасли образования (финансовое обеспечение мероприятий, возникающих в связи с доведением оплаты труда педагогических работников муниципальных образовательных учреждений муниципального образования, МБОУ ДО ДЮСШ)","161047147Ф","000","000","0000",null,null,null,null,null,524200,524200,0,524200,0,524200,0,524200,524200]
["          Предоставление субсидий бюджетным, автономным учреждениям и иным некоммерческим организациям","161047147Ф","600","000","0000",null,null,null,null,null,524200,524200,0,524200,0,524200,0,524200,524200]
["            Дополнительное образование детей","161047147Ф","600","000","0703",null,null,null,null,null,524200,524200,0,524200,0,524200,0,524200,524200]
["        Поддержка приоритетных направлений развития отрасли образования (финансовое обеспечение мероприятий, возникающих в связи с доведением оплаты труда педагогических работников муниципальных образовательных учреждений муниципального образования, МБОУ ДО ДЮСШ)","16104S147Ф","000","000","0000",null,null,null,null,null,78330,78330,0,78330,0,78330,0,78330,78330]
["          Предоставление субсидий бюджетным, автономным учреждениям и иным некоммерческим организациям","16104S147Ф","600","000","0000",null,null,null,null,null,78330,78330,0,78330,0,78330,0,78330,78330]
["            Дополнительное образование детей","16104S147Ф","600","000","0703",null,null,null,null,null,78330,78330,0,78330,0,78330,0,78330,78330]
["      Основное мероприятие \"Социальная поддержка населения\"","1610500000","000","000","0000",null,null,null,null,null,16600,16600,0,16600,0,16600,0,16600,16600]
["        Предоставление мер социальной поддержки по оплате за содержание и ремонт жилья, услуг теплоснабжения (отопления) и электроснабжения работникам культуры и педагогическим работникам образовательных организаций дополнительного образования детей в сфере культуры","1610571820","000","000","0000",null,null,null,null,null,16600,16600,0,16600,0,16600,0,16600,16600]
["          Социальное обеспечение и иные выплаты населению","1610571820","300","000","0000",null,null,null,null,null,16600,16600,0,16600,0,16600,0,16600,16600]
["            Другие вопросы в области культуры, кинематографии","1610571820","300","000","0804",null,null,null,null,null,16600,16600,0,16600,0,16600,0,16600,16600]
["      Основное мероприятие \"Реализация мероприятий в рамках национального проекта \"Культура\" (федеральный проект \"Культурная среда\")\"","161A100000","000","000","0000",null,null,null,null,null,0,0,0,0,0,0,0,0,4682400]
["        Государственная поддержка отрасли культуры на приобретение музыкальных инструментов, оборудования и материалов для детских школ искусств по видам искусств","161A155192","000","000","0000",null,null,null,null,null,0,0,0,0,0,0,0,0,4682400]
["          Предоставление субсидий бюджетным, автономным учреждениям и иным некоммерческим организациям","161A155192","600","000","0000",null,null,null,null,null,0,0,0,0,0,0,0,0,4682400]
["            Дополнительное образование детей","161A155192","600","000","0703",null,null,null,null,null,0,0,0,0,0,0,0,0,4682400]
["    Подпрограмма \"Развитие физической культуры и спорта в ЗАТО г.Радужный\"","1620000000","000","000","0000",null,null,null,null,null,19320068,19320068,0,19320068,0,19320068,0,14111382,14030292]
["      Основное мероприятие \"Массовый спорт\"","1620100000","000","000","0000",null,null,null,null,null,300000,300000,0,300000,0,300000,0,0,0]
["        Организация и проведение городских спортивно-массовых и физкультурно-оздоровительных мероприятий, участие сборных команд города в городских. региональных и федеральных спортивных мероприятиях","1620120220","000","000","0000",null,null,null,null,null,300000,300000,0,300000,0,300000,0,0,0]
["          Расходы на выплаты персоналу в целях обеспечения выполнения функций государственными (муниципальными) органами, казенными учреждениями, органами управления государственными внебюджетными фондами","1620120220","100","000","0000",null,null,null,null,null,60000,60000,0,60000,0,60000,0,0,0]
["            Массовый спорт","1620120220","100","000","1102",null,null,null,null,null,60000,60000,0,60000,0,60000,0,0,0]
["          Закупка товаров, работ и услуг для обеспечения государственных (муниципальных) нужд","1620120220","200","000","0000",null,null,null,null,null,240000,240000,0,240000,0,240000,0,0,0]
["            Массовый спорт","1620120220","200","000","1102",null,null,null,null,null,240000,240000,0,240000,0,240000,0,0,0]
["      Основное мероприятие \"Выполнение муниципальных заданий\"","1620300000","000","000","0000",null,null,null,null,null,15067774,15067774,0,15067774,0,15067774,0,13766554,13685464]
["        Выполнение муниципального задания МБОУ ДО ДЮСШ","162030Ф590","000","000","0000",null,null,null,null,null,8372841,8372841,0,8372841,0,8372841,0,7071621,6990531]
["          Предоставление субсидий бюджетным, автономным учреждениям и иным некоммерческим организациям","162030Ф590","600","000","0000",null,null,null,null,null,8372841,8372841,0,8372841,0,8372841,0,7071621,6990531]
["            Дополнительное образование детей","162030Ф590","600","000","0703",null,null,null,null,null,8372841,8372841,0,8372841,0,8372841,0,7071621,6990531]
["        Расходы на оплату труда работников культуры и педагогических работников дополнительного образования детей в соответствии с Указами Президента РФ от 07.05.2012 г. №597, от 01.06.2012 г. №761 (МБОУ ДО ДЮСШ)","162030Ф591","000","000","0000",null,null,null,null,null,2351983,2351983,0,2351983,0,2351983,0,2351983,2351983]
["          Предоставление субсидий бюджетным, автономным учреждениям и иным некоммерческим организациям","162030Ф591","600","000","0000",null,null,null,null,null,2351983,2351983,0,2351983,0,2351983,0,2351983,2351983]
["            Дополнительное образование детей","162030Ф591","600","000","0703",null,null,null,null,null,2351983,2351983,0,2351983,0,2351983,0,2351983,2351983]
["        Расходы на оплату труда работников муниципального бюджетного учреждения МБОУ ДО ДЮСШ","162030Ф592","000","000","0000",null,null,null,null,null,4342950,4342950,0,4342950,0,4342950,0,4342950,4342950]
["          Предоставление субсидий бюджетным, автономным учреждениям и иным некоммерческим организациям","162030Ф592","600","000","0000",null,null,null,null,null,4342950,4342950,0,4342950,0,4342950,0,4342950,4342950]
["            Дополнительное образование детей","162030Ф592","600","000","0703",null,null,null,null,null,4342950,4342950,0,4342950,0,4342950,0,4342950,4342950]
["      Основное мероприятие \"Реализация мероприятий в рамках национального проекта \"Демография\" (федеральный проект \"Спорт - норма жизни\")\"","162P500000","000","000","0000",null,null,null,null,null,3952294,3952294,0,3952294,0,3952294,0,344828,344828]
["        Содержание объектов спортивной инфраструктуры муниципальной собственности для занятий физической культурой и спортом","162P55139S","000","000","0000",null,null,null,null,null,3348500,3348500,0,3348500,0,3348500,0,0,0]
["          Предоставление субсидий бюджетным, автономным учреждениям и иным некоммерческим организациям","162P55139S","600","000","0000",null,null,null,null,null,3348500,3348500,0,3348500,0,3348500,0,0,0]
["            Дополнительное образование детей","162P55139S","600","000","0703",null,null,null,null,null,3348500,3348500,0,3348500,0,3348500,0,0,0]
["        Приобретение спортивного оборудования и инвентаря для приведения муниципальных учреждений спортивной подготовки в нормативное состояние (МБОУ ДО ДЮСШ)","162P55229S","000","000","0000",null,null,null,null,null,258966,258966,0,258966,0,258966,0,0,0]
["          Предоставление субсидий бюджетным, автономным учреждениям и иным некоммерческим организациям","162P55229S","600","000","0000",null,null,null,null,null,258966,258966,0,258966,0,258966,0,0,0]
["            Спорт высших достижений","162P55229S","600","000","1103",null,null,null,null,null,258966,258966,0,258966,0,258966,0,0,0]
["        Реализация программ спортивной подготовки в соответствии с требованиями федеральных стандартов спортивной подготовки (МБОУ ДО ДЮСШ)","162P57170S","000","000","0000",null,null,null,null,null,344828,344828,0,344828,0,344828,0,344828,344828]
["          Предоставление субсидий бюджетным, автономным учреждениям и иным некоммерческим организациям","162P57170S","600","000","0000",null,null,null,null,null,344828,344828,0,344828,0,344828,0,344828,344828]
["            Спорт высших достижений","162P57170S","600","000","1103",null,null,null,null,null,344828,344828,0,344828,0,344828,0,344828,344828]
["    Подпрограмма \"Повышение правовой культуры населения ЗАТО г.Радужный Владимирской области\"","1630000000","000","000","0000",null,null,null,null,null,1500,1500,0,1500,0,1500,0,0,0]
["      Основное мероприятие \"Организационно-методическое обеспечение в сфере правового просвещения\"","1630100000","000","000","0000",null,null,null,null,null,1500,1500,0,1500,0,1500,0,0,0]
["        Систематическое пополнение информационной базы \"Информационно-правового центра\", находящегося в МБУК \"Общедоступная библиотека\"","163012Ю220","000","000","0000",null,null,null,null,null,1500,1500,0,1500,0,1500,0,0,0]
["          Предоставление субсидий бюджетным, автономным учреждениям и иным некоммерческим организациям","163012Ю220","600","000","0000",null,null,null,null,null,1500,1500,0,1500,0,1500,0,0,0]
["            Культура","163012Ю220","600","000","0801",null,null,null,null,null,1500,1500,0,1500,0,1500,0,0,0]
["    Подпрограмма \"Укрепление межнационального и межконфессионного согласия на территории ЗАТО г.Радужный Владимирской области\"","1640000000","000","000","0000",null,null,null,null,null,50000,50000,0,50000,0,50000,0,0,0]
["      Основное мероприятие \"Реализация Стратегии государственной национальной политики Российской Федерации на территории муниципального образования ЗАТО г.Радужный Владимирской области\"","1640100000","000","000","0000",null,null,null,null,null,50000,50000,0,50000,0,50000,0,0,0]
["        Мероприятия, направленные на совершенствование муниципального управления в сфере государственной национальной политики РФ","1640120220","000","000","0000",null,null,null,null,null,50000,50000,0,50000,0,50000,0,0,0]
["          Закупка товаров, работ и услуг для обеспечения государственных (муниципальных) нужд","1640120220","200","000","0000",null,null,null,null,null,50000,50000,0,50000,0,50000,0,0,0]
["            Культура","1640120220","200","000","0801",null,null,null,null,null,50000,50000,0,50000,0,50000,0,0,0]
["  Муниципальная программа \"Создание благоприятных условий для развития молодого поколения ЗАТО г.Радужный Владимирской области\"","1700000000","000","000","0000",null,null,null,null,null,1231209,1231209,0,1231209,0,1231209,0,145209,145209]
["    Подпрограмма \"Социальная поддержка детей, оказавшихся в трудной жизненной ситуации\"","1710000000","000","000","0000",null,null,null,null,null,275000,275000,0,275000,0,275000,0,0,0]
["      Основное мероприятие \"Адресная помощь детям-инвалидам, семьям с детьми инвалидами, многодетным семьям\"","1710100000","000","000","0000",null,null,null,null,null,275000,275000,0,275000,0,275000,0,0,0]
["        Мероприятия, направленные на создание условий для социальной адаптации детей из многодетных семей и семей, оказавшихся в трудной жизненной ситуации","1710120220","000","000","0000",null,null,null,null,null,265000,265000,0,265000,0,265000,0,0,0]
["          Закупка товаров, работ и услуг для обеспечения государственных (муниципальных) нужд","1710120220","200","000","0000",null,null,null,null,null,15000,15000,0,15000,0,15000,0,0,0]
["            Молодежная политика","1710120220","200","000","0707",null,null,null,null,null,15000,15000,0,15000,0,15000,0,0,0]
["          Социальное обеспечение и иные выплаты населению","1710120220","300","000","0000",null,null,null,null,null,250000,250000,0,250000,0,250000,0,0,0]
["            Социальное обеспечение населения","1710120220","300","000","1003",null,null,null,null,null,250000,250000,0,250000,0,250000,0,0,0]
["        Приобретение комплекта развивающих игр для детей-инвалидов, посещающих МБУК \"Общедоступная библиотека\"","171012Ю220","000","000","0000",null,null,null,null,null,10000,10000,0,10000,0,10000,0,0,0]
["          Предоставление субсидий бюджетным, автономным учреждениям и иным некоммерческим организациям","171012Ю220","600","000","0000",null,null,null,null,null,10000,10000,0,10000,0,10000,0,0,0]
["            Молодежная политика","171012Ю220","600","000","0707",null,null,null,null,null,10000,10000,0,10000,0,10000,0,0,0]
["    Подпрограмма \"Организация досуга и воспитание детей\"","1720000000","000","000","0000",null,null,null,null,null,155000,155000,0,155000,0,155000,0,0,0]
["      Основное мероприятие \"Организация мероприятий для семей с детьми\"","1720100000","000","000","0000",null,null,null,null,null,155000,155000,0,155000,0,155000,0,0,0]
["        Проведение городских тематических праздников (Дня семьи, Международного Дня защиты, детей, Дня матери, Дня семьи, любви и верности и т.п.), городских акций для детей и молодежи","1720120220","000","000","0000",null,null,null,null,null,20000,20000,0,20000,0,20000,0,0,0]
["          Закупка товаров, работ и услуг для обеспечения государственных (муниципальных) нужд","1720120220","200","000","0000",null,null,null,null,null,20000,20000,0,20000,0,20000,0,0,0]
["            Молодежная политика","1720120220","200","000","0707",null,null,null,null,null,20000,20000,0,20000,0,20000,0,0,0]
["        Мероприятия, направленные на создание условий для занятий творчеством воспитанников детских образцовых коллективов, организацию досуга для детей (МБУК КЦ \"Досуг\")","172012Ч220","000","000","0000",null,null,null,null,null,40000,40000,0,40000,0,40000,0,0,0]
["          Предоставление субсидий бюджетным, автономным учреждениям и иным некоммерческим организациям","172012Ч220","600","000","0000",null,null,null,null,null,40000,40000,0,40000,0,40000,0,0,0]
["            Молодежная политика","172012Ч220","600","000","0707",null,null,null,null,null,40000,40000,0,40000,0,40000,0,0,0]
["        Мероприятия, направленные на организацию досуговой деятельности подростков в летний период в городском парке (МБУК ПКиО)","172012Э220","000","000","0000",null,null,null,null,null,95000,95000,0,95000,0,95000,0,0,0]
["          Предоставление субсидий бюджетным, автономным учреждениям и иным некоммерческим организациям","172012Э220","600","000","0000",null,null,null,null,null,95000,95000,0,95000,0,95000,0,0,0]
["            Молодежная политика","172012Э220","600","000","0707",null,null,null,null,null,60000,60000,0,60000,0,60000,0,0,0]
["            Культура","172012Э220","600","000","0801",null,null,null,null,null,35000,35000,0,35000,0,35000,0,0,0]
["    Подпрограмма \"Молодежь города\"","1730000000","000","000","0000",null,null,null,null,null,86000,86000,0,86000,0,86000,0,0,0]
["      Основное мероприятие \"Молодежь города\"","1730100000","000","000","0000",null,null,null,null,null,86000,86000,0,86000,0,86000,0,0,0]
["        Мероприятия, направленные на формирование и развитие гражданственности и патриотизма молодежи, воспитание уважения к историческому и культурному наследию, в том числе проведение акций, конкурсов среди молодежи города","1730120220","000","000","0000",null,null,null,null,null,86000,86000,0,86000,0,86000,0,0,0]
["          Закупка товаров, работ и услуг для обеспечения государственных (муниципальных) нужд","1730120220","200","000","0000",null,null,null,null,null,33000,33000,0,33000,0,33000,0,0,0]
["            Молодежная политика","1730120220","200","000","0707",null,null,null,null,null,33000,33000,0,33000,0,33000,0,0,0]
["          Социальное обеспечение и иные выплаты населению","1730120220","300","000","0000",null,null,null,null,null,10000,10000,0,10000,0,10000,0,0,0]
["            Молодежная политика","1730120220","300","000","0707",null,null,null,null,null,10000,10000,0,10000,0,10000,0,0,0]
["          Предоставление субсидий бюджетным, автономным учреждениям и иным некоммерческим организациям","1730120220","600","000","0000",null,null,null,null,null,43000,43000,0,43000,0,43000,0,0,0]
["            Молодежная политика","1730120220","600","000","0707",null,null,null,null,null,43000,43000,0,43000,0,43000,0,0,0]
["    Подпрограмма \"Временная занятость детей и молодежи\"","1740000000","000","000","0000",null,null,null,null,null,715209,715209,0,715209,0,715209,0,145209,145209]
["      Основное мероприятие \"Временная занятость детей и молодежи\"","1740100000","000","000","0000",null,null,null,null,null,715209,715209,0,715209,0,715209,0,145209,145209]
["        Организация временной занятости детей и молодежи в муниципальных учреждениях города","1740120220","000","000","0000",null,null,null,null,null,145209,145209,0,145209,0,145209,0,145209,145209]
["          Расходы на выплаты персоналу в целях обеспечения выполнения функций государственными (муниципальными) органами, казенными учреждениями, органами управления государственными внебюджетными фондами","1740120220","100","000","0000",null,null,null,null,null,145209,145209,0,145209,0,145209,0,145209,145209]
["            Общеэкономические вопросы","1740120220","100","000","0401",null,null,null,null,null,145209,145209,0,145209,0,145209,0,145209,145209]
["        Организация временной занятости детей и молодежи в МБОУ СОШ №1","174012И220","000","000","0000",null,null,null,null,null,121000,121000,0,121000,0,121000,0,0,0]
["          Предоставление субсидий бюджетным, автономным учреждениям и иным некоммерческим организациям","174012И220","600","000","0000",null,null,null,null,null,121000,121000,0,121000,0,121000,0,0,0]
["            Общеэкономические вопросы","174012И220","600","000","0401",null,null,null,null,null,121000,121000,0,121000,0,121000,0,0,0]
["        Организация временной занятости детей и молодежи в МБОУ ДО ДШИ","174012П220","000","000","0000",null,null,null,null,null,340000,340000,0,340000,0,340000,0,0,0]
["          Предоставление субсидий бюджетным, автономным учреждениям и иным некоммерческим организациям","174012П220","600","000","0000",null,null,null,null,null,340000,340000,0,340000,0,340000,0,0,0]
["            Общеэкономические вопросы","174012П220","600","000","0401",null,null,null,null,null,340000,340000,0,340000,0,340000,0,0,0]
["        Организация временной занятости детей и молодежи в МБОУ ДО ЦВР \"Лад\"","174012Ц220","000","000","0000",null,null,null,null,null,109000,109000,0,109000,0,109000,0,0,0]
["          Предоставление субсидий бюджетным, автономным учреждениям и иным некоммерческим организациям","174012Ц220","600","000","0000",null,null,null,null,null,109000,109000,0,109000,0,109000,0,0,0]
["            Общеэкономические вопросы","174012Ц220","600","000","0401",null,null,null,null,null,109000,109000,0,109000,0,109000,0,0,0]
["  Глава города ЗАТО г.Радужный Владимирской области","9000000000","000","000","0000",null,null,null,null,null,1954974,1954974,0,1954974,0,1954974,0,1954974,1954974]
["    Обеспечение деятельности главы города ЗАТО г.Радужный Владимирской области","9090000000","000","000","0000",null,null,null,null,null,1954974,1954974,0,1954974,0,1954974,0,1954974,1954974]
["        Расходы на выплаты по оплате труда главы города ЗАТО г.Радужный Владимирской области","9090000110","000","000","0000",null,null,null,null,null,1954974,1954974,0,1954974,0,1954974,0,1954974,1954974]
["          Расходы на выплаты персоналу в целях обеспечения выполнения функций государственными (муниципальными) органами, казенными учреждениями, органами управления государственными внебюджетными фондами","9090000110","100","000","0000",null,null,null,null,null,1954974,1954974,0,1954974,0,1954974,0,1954974,1954974]
["            Функционирование высшего должностного лица субъекта Российской Федерации и муниципального образования","9090000110","100","000","0102",null,null,null,null,null,1954974,1954974,0,1954974,0,1954974,0,1954974,1954974]
["  Совет народных депутатов ЗАТО г.Радужный Владимирской области","9500000000","000","000","0000",null,null,null,null,null,1669455,1669455,0,1669455,0,1669455,0,1669455,1669455]
["    Депутаты Совета народных депутатов ЗАТО г.Радужный Владимирской области","9520000000","000","000","0000",null,null,null,null,null,1669455,1669455,0,1669455,0,1669455,0,1669455,1669455]
["        Расходы на выплаты по оплате труда депутатов Совета народных депутатов ЗАТО г.Радужный Владимирской области","9520000110","000","000","0000",null,null,null,null,null,1669455,1669455,0,1669455,0,1669455,0,1669455,1669455]
["          Расходы на выплаты персоналу в целях обеспечения выполнения функций государственными (муниципальными) органами, казенными учреждениями, органами управления государственными внебюджетными фондами","9520000110","100","000","0000",null,null,null,null,null,1669455,1669455,0,1669455,0,1669455,0,1669455,1669455]
["            Функционирование законодательных (представительных) органов государственной власти и представительных органов муниципальных образований","9520000110","100","000","0103",null,null,null,null,null,1669455,1669455,0,1669455,0,1669455,0,1669455,1669455]
["  Непрограммные расходы органов местного самоуправления ЗАТО г.Радужный Владимирской области","9900000000","000","000","0000",null,null,null,null,null,27818708,27818708,0,27818708,0,27818708,0,22245791,25189291]
["    Непрограммные расходы бюджета ЗАТО г.Радужный Владимирской области","9990000000","000","000","0000",null,null,null,null,null,27818708,27818708,0,27818708,0,27818708,0,22245791,25189291]
["        Расходы на выплаты по оплате труда работников органов местного самоуправления ЗАТО г.Радужный Владимирской области","9990000110","000","000","0000",null,null,null,null,null,21778100,21778100,0,21778100,0,21778100,0,18768983,21748983]
["          Расходы на выплаты персоналу в целях обеспечения выполнения функций государственными (муниципальными) органами, казенными учреждениями, органами управления государственными внебюджетными фондами","9990000110","100","000","0000",null,null,null,null,null,21778100,21778100,0,21778100,0,21778100,0,18768983,21748983]
["            Функционирование законодательных (представительных) органов государственной власти и представительных органов муниципальных образований","9990000110","100","000","0103",null,null,null,null,null,370373,370373,0,370373,0,370373,0,370373,370373]
["            Функционирование Правительства Российской Федерации, высших исполнительных органов государственной власти субъектов Российской Федерации, местных администраций","9990000110","100","000","0104",null,null,null,null,null,8194429,8194429,0,8194429,0,8194429,0,7353029,8333029]
["            Обеспечение деятельности финансовых, налоговых и таможенных органов и органов финансового (финансово-бюджетного) надзора","9990000110","100","000","0106",null,null,null,null,null,5318529,5318529,0,5318529,0,5318529,0,4298529,5298529]
["            Другие общегосударственные вопросы","9990000110","100","000","0113",null,null,null,null,null,6107973,6107973,0,6107973,0,6107973,0,5107973,6107973]
["            Другие вопросы в области образования","9990000110","100","000","0709",null,null,null,null,null,1786796,1786796,0,1786796,0,1786796,0,1639079,1639079]
["        Расходы на обеспечение функций органов местного самоуправления ЗАТО г.Радужный Владимирской области","9990000190","000","000","0000",null,null,null,null,null,82008,82008,0,82008,0,82008,0,78008,77008]
["          Расходы на выплаты персоналу в целях обеспечения выполнения функций государственными (муниципальными) органами, казенными учреждениями, органами управления государственными внебюджетными фондами","9990000190","100","000","0000",null,null,null,null,null,14200,14200,0,14200,0,14200,0,14200,14200]
["            Функционирование Правительства Российской Федерации, высших исполнительных органов государственной власти субъектов Российской Федерации, местных администраций","9990000190","100","000","0104",null,null,null,null,null,14200,14200,0,14200,0,14200,0,14200,14200]
["          Закупка товаров, работ и услуг для обеспечения государственных (муниципальных) нужд","9990000190","200","000","0000",null,null,null,null,null,67808,67808,0,67808,0,67808,0,63808,62808]
["            Функционирование законодательных (представительных) органов государственной власти и представительных органов муниципальных образований","9990000190","200","000","0103",null,null,null,null,null,24372,24372,0,24372,0,24372,0,24372,24372]
["            Обеспечение деятельности финансовых, налоговых и таможенных органов и органов финансового (финансово-бюджетного) надзора","9990000190","200","000","0106",null,null,null,null,null,18000,18000,0,18000,0,18000,0,14000,13000]
["            Другие общегосударственные вопросы","9990000190","200","000","0113",null,null,null,null,null,25436,25436,0,25436,0,25436,0,25436,25436]
["        Расходы на обслуживание муниципального долга ЗАТО г.Радужный Владимирской области","9990020300","000","000","0000",null,null,null,null,null,500000,500000,0,500000,0,500000,0,500000,500000]
["          Обслуживание государственного (муниципального) долга","9990020300","700","000","0000",null,null,null,null,null,500000,500000,0,500000,0,500000,0,500000,500000]
["            Обслуживание государственного внутреннего и муниципального долга","9990020300","700","000","1301",null,null,null,null,null,500000,500000,0,500000,0,500000,0,500000,500000]
["        Расходы на оплату взносов в ассоциации и участие в семинарах в рамках непрограммных расходов органов местного самоуправления ЗАТО г.Радужный Владимирской области","9990020400","000","000","0000",null,null,null,null,null,100000,100000,0,100000,0,100000,0,0,0]
["          Иные бюджетные ассигнования","9990020400","800","000","0000",null,null,null,null,null,100000,100000,0,100000,0,100000,0,0,0]
["            Другие общегосударственные вопросы","9990020400","800","000","0113",null,null,null,null,null,100000,100000,0,100000,0,100000,0,0,0]
["        Резерв на выполнение условий софинансирования участия в федеральных, областных приоритетных проектах и программах","9990021240","000","000","0000",null,null,null,null,null,1500000,1500000,0,1500000,0,1500000,0,0,0]
["          Иные бюджетные ассигнования","9990021240","800","000","0000",null,null,null,null,null,1500000,1500000,0,1500000,0,1500000,0,0,0]
["            Другие вопросы в области национальной экономики","9990021240","800","000","0412",null,null,null,null,null,1500000,1500000,0,1500000,0,1500000,0,0,0]
["        Осуществление полномочий по составлению (изменению) списков кандидатов в присяжные заседатели федеральных судов общей юрисдикции в Российской Федерации","9990051200","000","000","0000",null,null,null,null,null,2000,2000,0,2000,0,2000,0,22200,700]
["          Закупка товаров, работ и услуг для обеспечения государственных (муниципальных) нужд","9990051200","200","000","0000",null,null,null,null,null,2000,2000,0,2000,0,2000,0,22200,700]
["            Судебная система","9990051200","200","000","0105",null,null,null,null,null,2000,2000,0,2000,0,2000,0,22200,700]
["        Осуществление полномочий Российской Федерации на государственную регистрацию актов гражданского состояния","9990059300","000","000","0000",null,null,null,null,null,547000,547000,0,547000,0,547000,0,562000,548000]
["          Расходы на выплаты персоналу в целях обеспечения выполнения функций государственными (муниципальными) органами, казенными учреждениями, органами управления государственными внебюджетными фондами","9990059300","100","000","0000",null,null,null,null,null,333900,333900,0,333900,0,333900,0,333900,333900]
["            Другие общегосударственные вопросы","9990059300","100","000","0113",null,null,null,null,null,333900,333900,0,333900,0,333900,0,333900,333900]
["          Закупка товаров, работ и услуг для обеспечения государственных (муниципальных) нужд","9990059300","200","000","0000",null,null,null,null,null,213100,213100,0,213100,0,213100,0,228100,214100]
["            Другие общегосударственные вопросы","9990059300","200","000","0113",null,null,null,null,null,213100,213100,0,213100,0,213100,0,228100,214100]
["        Обеспечение деятельности комиссий по делам несовершеннолетних и защите их прав","9990070010","000","000","0000",null,null,null,null,null,423900,423900,0,423900,0,423900,0,428900,428900]
["          Расходы на выплаты персоналу в целях обеспечения выполнения функций государственными (муниципальными) органами, казенными учреждениями, органами управления государственными внебюджетными фондами","9990070010","100","000","0000",null,null,null,null,null,365000,365000,0,365000,0,365000,0,365000,365000]
["            Функционирование Правительства Российской Федерации, высших исполнительных органов государственной власти субъектов Российской Федерации, местных администраций","9990070010","100","000","0104",null,null,null,null,null,365000,365000,0,365000,0,365000,0,365000,365000]
["          Закупка товаров, работ и услуг для обеспечения государственных (муниципальных) нужд","9990070010","200","000","0000",null,null,null,null,null,58900,58900,0,58900,0,58900,0,63900,63900]
["            Функционирование Правительства Российской Федерации, высших исполнительных органов государственной власти субъектов Российской Федерации, местных администраций","9990070010","200","000","0104",null,null,null,null,null,58900,58900,0,58900,0,58900,0,63900,63900]
["        Осуществление отдельных государственных полномочий по вопросам административного законодательства","9990070020","000","000","0000",null,null,null,null,null,433300,433300,0,433300,0,433300,0,433300,433300]
["          Расходы на выплаты персоналу в целях обеспечения выполнения функций государственными (муниципальными) органами, казенными учреждениями, органами управления государственными внебюджетными фондами","9990070020","100","000","0000",null,null,null,null,null,365000,365000,0,365000,0,365000,0,365000,365000]
["            Функционирование Правительства Российской Федерации, высших исполнительных органов государственной власти субъектов Российской Федерации, местных администраций","9990070020","100","000","0104",null,null,null,null,null,365000,365000,0,365000,0,365000,0,365000,365000]
["          Закупка товаров, работ и услуг для обеспечения государственных (муниципальных) нужд","9990070020","200","000","0000",null,null,null,null,null,68300,68300,0,68300,0,68300,0,68300,68300]
["            Функционирование Правительства Российской Федерации, высших исполнительных органов государственной власти субъектов Российской Федерации, местных администраций","9990070020","200","000","0104",null,null,null,null,null,68300,68300,0,68300,0,68300,0,68300,68300]
["        Обеспечение полномочий по организации и осуществлению деятельности по опеке и попечительству в отношении несовершеннолетних граждан","9990070070","000","000","0000",null,null,null,null,null,1104400,1104400,0,1104400,0,1104400,0,1104400,1104400]
["          Расходы на выплаты персоналу в целях обеспечения выполнения функций государственными (муниципальными) органами, казенными учреждениями, органами управления государственными внебюджетными фондами","9990070070","100","000","0000",null,null,null,null,null,1030431,1030431,0,1030431,0,1030431,0,1030431,1030431]
["            Другие вопросы в области социальной политики","9990070070","100","000","1006",null,null,null,null,null,1030431,1030431,0,1030431,0,1030431,0,1030431,1030431]
["          Закупка товаров, работ и услуг для обеспечения государственных (муниципальных) нужд","9990070070","200","000","0000",null,null,null,null,null,73969,73969,0,73969,0,73969,0,73969,73969]
["            Другие вопросы в области социальной политики","9990070070","200","000","1006",null,null,null,null,null,73969,73969,0,73969,0,73969,0,73969,73969]
["        Осуществление отдельных государственных полномочий по региональному государственному жилищному надзору и лицензионному контролю","9990071370","000","000","0000",null,null,null,null,null,348000,348000,0,348000,0,348000,0,348000,348000]
["          Расходы на выплаты персоналу в целях обеспечения выполнения функций государственными (муниципальными) органами, казенными учреждениями, органами управления государственными внебюджетными фондами","9990071370","100","000","0000",null,null,null,null,null,348000,348000,0,348000,0,348000,0,348000,348000]
["            Другие вопросы в области жилищно-коммунального хозяйства","9990071370","100","000","0505",null,null,null,null,null,348000,348000,0,348000,0,348000,0,348000,348000]
["        Резервный фонд администрации ЗАТО г.Радужный Владимирской области","9990081000","000","000","0000",null,null,null,null,null,1000000,1000000,0,1000000,0,1000000,0,0,0]
["          Иные бюджетные ассигнования","9990081000","800","000","0000",null,null,null,null,null,1000000,1000000,0,1000000,0,1000000,0,0,0]
["            Резервные фонды","9990081000","800","000","0111",null,null,null,null,null,1000000,1000000,0,1000000,0,1000000,0,0,0]
["Всего расходов:   ",null,null,null,null,null,null,null,null,null,643382435,643382435,0,643382435,0,643382435,0,565216039,800369073]
[]
["Исполнитель Главный специалист, ревизор-инспектор по бюджету _______________ Милованова В.Н."]

{"sheet":"2021-2023","index":1,"n_rows":543,"n_cols":7,"rows_kept":543,"cut":false,"hidden":false,"merged":[[8,0,8,3],[9,0,9,3],[489,0,489,3],[541,0,541,6],[6,0,6,6],[0,4,0,6],[1,4,1,6],[2,4,2,6],[3,4,3,6],[5,0,5,6]]}
[null,null,null,null,"Приложение № 8"]
[null,null,null,null,"к решению совета народных депутатов"]
[null,null,null,null,"      ЗАТО г.Радужный Владимирской области"]
[null,null,null,null,"от__________________ №________"]
[]
["Распределение бюджетных ассигнований по целевым статьям (муниципальным программам ЗАТО г.Радужный и непрограммным направлениям деятельности), группам видов расходов, разделам, подразделам классификации расходов бюджета ЗАТО г.Радужный на 2021 год и плановый период 2022 и 2023 годов"]
["руб."]
["Наименование расходов","Код целевой статьи","Код группы вида расходов","Код раздела, подраздела","Сумма на 2021 год","Сумма на 2022 год","Сумма на 2023 год"]
["  Всего расходов:   ",null,null,null,643382435,565216039,800369073]
["Муниципальные программы",null,null,null,{"$f":"E11+E34+E53+E62+E75+E96+E113+E119+E143+E154+E163+E172+E212+E216+E353+E456","v":611939298},{"$f":"F11+F34+F53+F62+F75+F96+F113+F119+F143+F154+F163+F172+F212+F216+F353+F456","v":539345819},{"$f":"G11+G34+G53+G62+G75+G96+G113+G119+G143+G154+G163+G172+G212+G216+G353+G456","v":771555353}]
["  Муниципальная программа \"Развитие муниципальной службы и органов управления ЗАТО г.Радужный Владимирской области\"",null,null,null,69470650,65376879,62396879]
["      Основное мероприятие \"Создание условий для развития муниципальной службы в муниципальном образовании ЗАТО г.Радужный Владимирской области\"",null,null,null,7107200,4547200,4547200]
["        Пенсии за выслугу лет лицам, замещавшим муниципальные должности и должности муниципальной службы ЗАТО г. Радужный Владимирской области","0100110500",null,null,2097200,2097200,2097200]
["          Закупка товаров, работ и услуг для обеспечения государственных (муниципальных) нужд","0100110500","200","1001",20800,20800,20800]
["          Социальное обеспечение и иные выплаты населению","0100110500","300","1001",2076400,2076400,2076400]
["        Мероприятия, направленные на повышение эффективности муниципального управления","0100120220",null,null,3510000,2450000,2450000]
["          Закупка товаров, работ и услуг для обеспечения государственных (муниципальных) нужд","0100120220","200",null,3510000,2450000,2450000]
["          Закупка товаров, работ и услуг для обеспечения государственных (муниципальных) нужд","0100120220","200","0113",10000,0,0]
["          Закупка товаров, работ и услуг для обеспечения государственных (муниципальных) нужд","0100120220","200","1202",3500000,2450000,2450000]
["        Средства на индексацию заработной платы муниципальных служащих и работников муниципальных казенных учреждений, исполнение Указов Президента о доведении заработной платы согласно \"дорожным картам\"","0100120229",null,null,1500000,0,0]
["          Иные бюджетные ассигнования","0100120229","800","0113",1500000,0,0]
["      Основное мероприятие \"Расходы на обеспечение деятельности центров органов местного самоуправления\"","01002",null,null,8158488,10371769,7391769]
["        Финансирование деятельности профильных (функциональных) центров, созданных в органах местного самоуправления","0100200590",null,null,8158488,10371769,7391769]
["          Расходы на выплаты персоналу в целях обеспечения выполнения функций государственными (муниципальными) органами, казенными учреждениями, органами управления государственными внебюджетными фондами","0100200590","100","0113",7421614,9715405,6735405]
["          Закупка товаров, работ и услуг для обеспечения государственных (муниципальных) нужд","0100200590","200","0113",736874,656364,656364]
["      Основное мероприятие \"Создание условий для эффективного содержания административных зданий\"","01003",null,null,54043762,50457910,50457910]
["        Финансирование деятельности муниципальных учреждений, обеспечивающих эффективное содержание и эксплуатацию административных зданий","0100300590",null,null,54043762,50457910,50457910]
["          Расходы на выплаты персоналу в целях обеспечения выполнения функций государственными (муниципальными) органами, казенными учреждениями, органами управления государственными внебюджетными фондами","0100300590","100","0113",40053671,37945063,37945063]
["          Закупка товаров, работ и услуг для обеспечения государственных (муниципальных) нужд","0100300590","200","0113",11906873,9921992,9953544]
["          Иные бюджетные ассигнования","0100300590","800","0113",2083218,2590855,2559303]
["      Основное мероприятие \"Проведение Всероссийской переписи населения 2020 года\"","01005",null,null,161200,0,0]
["        Проведение Всероссийской переписи населения 2020 года","0100554690",null,null,161200,0,0]
["          Закупка товаров, работ и услуг для обеспечения государственных (муниципальных) нужд","0100554690","200","0113",161200,0,0]
["  Муниципальная программа \"Обеспечение общественного порядка и профилактики правонарушений ЗАТО г. Радужный Владимирской области Владимирской области\"","03",null,null,181000,0,0]
["    Подпрограмма \"Комплексные меры противодействия злоупотреблению наркотиками и их незаконному обороту на территории ЗАТО г.Радужный Владимирской области\"","033",null,null,153000,0,0]
["      Основное мероприятие \"Сокращение масштабов распространения наркомании и связанного с ней социального и экономического ущерба\"","03301",null,null,153000,0,0]
["        Мероприятия, направленные на сокращение масштабов распространения наркомании и связанного с ней социального и экономического ущерба","0330120220",null,null,38000,0,0]
["          Закупка товаров, работ и услуг для обеспечения государственных (муниципальных) нужд","0330120220","200","0314",38000,0,0]
["        Создание и оборудование кабинетов наркопрофилактики в образовательных организациях","0330171690",null,null,100000,0,0]
["          Предоставление субсидий бюджетным, автономным учреждениям и иным некоммерческим организациям","0330171690","600","0314",100000,0,0]
["        Мероприятия по созданию и оборудованию кабинетов наркопрофилактики в образовательных организациях","03301S1690",null,null,15000,0,0]
["          Предоставление субсидий бюджетным, автономным учреждениям и иным некоммерческим организациям","03301S1690","600","0314",15000,0,0]
["    Подпрограмма \"Комплексные меры противодействия злоупотреблению алкогольной продукцией и профилактика алкоголизма населения на территории ЗАТО г. Радужный Владимирской области\"","034",null,null,25000,0,0]
["      Основное мероприятие \"Профилактика злоупотребления алкогольной продукцией\"","03401",null,null,25000,0,0]
["        Мероприятия, направленные на повышение эффективности профилактики злоупотребления алкогольной продукцией","0340120220",null,null,20000,0,0]
["          Закупка товаров, работ и услуг для обеспечения государственных (муниципальных) нужд","0340120220","200","0314",20000,0,0]
["        Приобретение специализированной литературы по пропаганде здорового образа жизни, профилактике алкоголизации населения (МБУК \"Общедоступная библиотека\")","034012Ю220",null,null,5000,0,0]
["          Предоставление субсидий бюджетным, автономным учреждениям и иным некоммерческим организациям","034012Ю220","600","0314",5000,0,0]
["    Подпрограмма \"Противодействие терроризму и экстремизму на территории ЗАТО г. Радужный Владимирской области\"","035",null,null,3000,0,0]
["      Основное мероприятие \"Профилактика экстремизма и терроризма на территории ЗАТО г.Радужный Владимирской области\"","03501",null,null,3000,0,0]
["        Мероприятия, направленные на предупреждение (профилактику) терроризма и экстремизма среди подростков и молодежи","0350120220",null,null,3000,0,0]
["          Закупка товаров, работ и услуг для обеспечения государственных (муниципальных) нужд","0350120220","200","0314",3000,0,0]
["  Муниципальная программа \"Землеустройство, использование и охрана земель, оценка недвижимости, признание прав и регулирование отношений по муниципальной собственности ЗАТО г.Радужный Владимирской области\"","04",null,null,640000,640000,640000]
["    Подпрограмма \"Землеустройство, использование и охрана земель на территории ЗАТО г.Радужный Владимирской области\"","041",null,null,500000,500000,500000]
["      Основное мероприятие \"Мероприятия по землеустройству и землепользованию на территории ЗАТО г.Радужный Владимирской области","04101",null,null,500000,500000,500000]
["        Мероприятия, направленные на совершенствование учета земельных участков, покрытие территории картографическими материалами","0410120220",null,null,500000,500000,500000]
["          Закупка товаров, работ и услуг для обеспечения государственных (муниципальных) нужд","0410120220","200","0412",500000,500000,500000]
["    Подпрограмма \"Оценка недвижимости, признание прав и регулирование отношений по муниципальной собственности ЗАТО г.Радужный Владимирской области\"","042",null,null,140000,140000,140000]
["      Основное мероприятие \"Оценка недвижимости, признание прав и регулирование отношений по муниципальной собственности ЗАТО г.Радужный Владимирской области\"","04201",null,null,140000,140000,140000]
["        Мероприятия, направленные на обеспечение защиты имущественных прав муниципального образования ЗАТО г.Радужный на объекты недвижимости","0420120220",null,null,140000,140000,140000]
["          Закупка товаров, работ и услуг для обеспечения государственных (муниципальных) нужд","0420120220","200","0113",140000,140000,140000]
["  Муниципальная программа \"Информатизация ЗАТО г.Радужный Владимирской области","05",null,null,2438980,1787572,1788562]
["      Основное мероприятие \"Обеспечение предоставления гражданам и организациям услуг с использованием современных информационных и телекоммуникационных технологий\"","05001",null,null,97000,97000,97000]
["        Развитие и обеспечение функционирования муниципального сегмента СМЭВ, взаимодействие с ГИС ГМП","0500120220",null,null,97000,97000,97000]
["          Закупка товаров, работ и услуг для обеспечения государственных (муниципальных) нужд","0500120220","200","0410",97000,97000,97000]
["      Основное мероприятие \"Предоставление гражданам и организациям информации о деятельности органов местного самоуправления с использованием информационных и телекоммуникационных технологий\"","05002",null,null,594000,293750,293750]
["        Развитие и техническая поддержка официального сайта органов местного самоуправления","0500220220",null,null,594000,293750,293750]
["          Закупка товаров, работ и услуг для обеспечения государственных (муниципальных) нужд","0500220220","200","0410",594000,293750,293750]
["      Основное мероприятие \"Развитие технической и технологической основы становления информационного общества\"","05003",null,null,1666180,1315022,1316012]
["        Обеспечение структурных подразделений администрации средствами связи, лицензионными версиями общесистемного и прикладного программного обеспечения, доступом к информационно-справочным правовым системам","0500320220",null,null,1666180,1315022,1316012]
["          Закупка товаров, работ и услуг для обеспечения государственных (муниципальных) нужд","0500320220","200","0410",1666180,1315022,1316012]
["      Основное мероприятие \"Предупреждение угроз, возникающих в информационном обществе\"","05004",null,null,81800,81800,81800]
["        Приобретение программного обеспечения и оборудования для обеспечения информационной безопасности, аттестации информационных систем и автоматизированных рабочих мест","0500420220",null,null,81800,81800,81800]
["          Закупка товаров, работ и услуг для обеспечения государственных (муниципальных) нужд","0500420220","200","0410",81800,81800,81800]
["  Муниципальная программа \"Перспективное развитие и совершенствование гражданской обороны, защита населения и территории, обеспечение пожарной безопасности и безопасности людей на водных объектах ЗАТО г. Радужный Владимирской области\"","06",null,null,33519465,21315927,12131941]
["    Подпрограмма \"Совершенствование гражданской обороны, защита населения и территории, обеспечение пожарной безопасности и безопасности людей на водных объектах ЗАТО г.Радужный Владимирской области\"","061",null,null,33018265,20814727,11630741]
["      Основное мероприятие \"Совершенствование и развитие гражданской обороны, защиты населения и территории, обеспечение пожарной безопасности и безопасности людей на водных объектах\"","06101",null,null,131700,131700,131700]
["        Мероприятия, направленные на повышение качества защиты населения и территории города от возможных ЧС природного, техногенного и террористического характера, организации управления силами и средствами городского звена РСЧС и ГО ЗАТО г. Радужный","0610120220",null,null,131700,131700,131700]
["          Закупка товаров, работ и услуг для обеспечения государственных (муниципальных) нужд","0610120220","200","0309",131700,131700,131700]
["      Основное мероприятие \"Организация работ по недопущению и ликвидации чрезвычайных ситуаций\"","06102",null,null,10023065,6060000,6060000]
["        Мероприятия, направленные на недопущение и ликвидацию ЧС на территории ЗАТО г. Радужный, обеспечение формирований ГО и городского звена РСЧС необходимыми материалами из резерва материальных ресурсов для предупреждения ЧС и ликвидации их последствий","0610220220",null,null,6060000,6060000,6060000]
["          Закупка товаров, работ и услуг для обеспечения государственных (муниципальных) нужд","0610220220","200","0309",6060000,6060000,6060000]
["        Субсидии на возмещение расходов предприятиям, привлекаемым для обеспечения санитарно-эпидемиологического благополучия населения для недопущения распространения новой коронавирусной инфекции на территории ЗАТО г.Радужный Владимирской области","0610260005",null,null,3963065,0,0]
["          Иные бюджетные ассигнования","0610260005","800","0309",3963065,0,0]
["      Основное мероприятие \"Организация мероприятий по гражданской обороне\"","06103",null,null,2863500,2863500,2863500]
["        Финансирование деятельности муниципальных учреждений, обеспечивающих выполнение мероприятий в области гражданской обороны, защиты населения и территорий от чрезвычайных ситуаций, обеспечения пожарной безопасности и безопасности людей на водных объектах на территории ЗАТО г. Радужный в пределах установленных полномочий","0610300590",null,null,2863500,2863500,2863500]
["          Расходы на выплаты персоналу в целях обеспечения выполнения функций государственными (муниципальными) органами, казенными учреждениями, органами управления государственными внебюджетными фондами","0610300590","100","0309",2393600,2393600,2393600]
["          Закупка товаров, работ и услуг для обеспечения государственных (муниципальных) нужд","0610300590","200","0309",469900,469900,469900]
["      Основное мероприятие \"Создание и использование финансового резерва для выполнения мероприятий городского значения по ликвидации аварийных ситуаций и ЧС, возникающих в системах жизнеобеспечения города и сбоев подачи энергоресурсов для населения города\"","06104",null,null,20000000,11759527,2575541]
["        Мероприятия по предупреждению и ликвидации аварийных ситуаций в системах жизнеобеспечения города и сбоев подачи энергоресурсов для населения города","0610420220",null,null,20000000,11759527,2575541]
["          Иные бюджетные ассигнования","0610420220","800","0309",20000000,11759527,2575541]
["    Подпрограмма \"Безопасный город\"","062",null,null,501200,501200,501200]
["      Основное мероприятие \"Внедрение и развитие аппаратно-программного комплекса \"Безопасный город\"","06201",null,null,501200,501200,501200]
["        Мероприятия, направленные на внедрения на базе муниципального образования комплексной информационной системы, обеспечивающей прогнозирование, мониторинг, предупреждение и ликвидацию возможных угроз","0620120220",null,null,501200,501200,501200]
["          Закупка товаров, работ и услуг для обеспечения государственных (муниципальных) нужд","0620120220","200","0309",501200,501200,501200]
["  Муниципальная программа \"Обеспечение доступным и комфортным жильем населения ЗАТО г.Радужный Владимирской области\"","07",null,null,2489162,408510,145162510]
["    Подпрограмма \"Обеспечение жильем многодетных семей ЗАТО г.Радужный\"","073",null,null,1264262,408510,408510]
["      Основное мероприятие \"Предоставление многодетным семьям социальных выплат на приобретение жилья\"","07301",null,null,1264262,408510,408510]
["        Обеспечение жильем многодетных семей","0730170810",null,null,1206100,389200,389200]
["          Социальное обеспечение и иные выплаты населению","0730170810","300","1003",1206100,389200,389200]
["        Обеспечение жильем многодетных семей","07301S0810",null,null,58162,19310,19310]
["          Социальное обеспечение и иные выплаты населению","07301S0810","300","1003",58162,19310,19310]
["    Подпрограмма \"Социальное жилье ЗАТО г.Радужный\"","075",null,null,0,0,144754000]
["      Основное мероприятие \"Строительство жилья\"","07501",null,null,0,0,144754000]
["        Строительство социального жилья и приобретение жилых помещений для граждан, нуждающихся в улучшении жилищных условий (строительство многоквартирного дома в 9 квартале)","0750170090",null,null,0,0,144754000]
["          Капитальные вложения в объекты государственной (муниципальной) собственности","0750170090","400","0501",0,0,144754000]
["    Подпрограмма \"Обеспечение жильем молодых семей ЗАТО г.Радужный\"","076",null,null,1224900,0,0]
["      Основное мероприятие \"Предоставление молодым семьям социальных выплат на приобретение жилья\"","07601",null,null,1224900,0,0]
["        Реализация мероприятий по обеспечению жильем молодых семей","07601L4970",null,null,180000,0,0]
["          Социальное обеспечение и иные выплаты населению","07601L4970","300","1004",180000,0,0]
["        Реализация мероприятий по обеспечению жильем молодых семей","07601R4970",null,null,1044900,0,0]
["          Социальное обеспечение и иные выплаты населению","07601R4970","300","1004",1044900,0,0]
["  Муниципальная программа \"Энергосбережение и повышение надежности энергоснабжения в топливно-энергетическом комплексе ЗАТО г. Радужный Владимирской области\"","08",null,null,14302000,14302000,6032250]
["      Основное мероприятие \"Мероприятия в целях реализации концессионных соглашений от 17.09.2015 № 2015-01-ТС и № 2015-02-ВС\"","08004",null,null,14302000,14302000,6032250]
["        Субсидии, предоставляемые ЗАО \"Радугаэнерго\", на финансирование расходов на капитальный ремонт объектов, входящих в единую закрытую систему теплоснабжения на территории ЗАТО г.Радужный Владимирской области","0800460001",null,null,9170000,9170000,3860560]
["          Иные бюджетные ассигнования","0800460001","800","0502",9170000,9170000,3860560]
["        Субсидии, предоставляемые ЗАО \"Радугаэнерго\", на финансирование расходов на капитальный ремонт объектов, входящих в централизованную систему водоснабжения на территории ЗАТО г. Радужный Владимирской области","0800460002",null,null,5132000,5132000,2171690]
["          Иные бюджетные ассигнования","0800460002","800","0502",5132000,5132000,2171690]
["  Муниципальная программа \"Жилищно-коммунальный комплекс ЗАТО г.Радужный Владимирской области\"","09",null,null,31651662,30951987,30951987]
["    Подпрограмма \"Развитие жилищно-коммунального комплекса ЗАТО г.Радужный Владимирской области\"","091",null,null,31651662,30951987,30951987]
["      Основное мероприятие \"Содержание, обслуживание, ремонт, модернизация объектов жилого фонда\"","09101",null,null,2180000,180000,180000]
["        Обслуживание объектов муниципального жилищного фонда, в том числе взносы на ремонт общего имущества многоквартирных домов в части муниципального жилья","0910120220",null,null,2000000,0,0]
["          Закупка товаров, работ и услуг для обеспечения государственных (муниципальных) нужд","0910120220","200","0501",2000000,0,0]
["        Обслуживание объектов муниципального жилищного фонда в части обеспечения пожарной безопасности","0910120221",null,null,180000,180000,180000]
["          Закупка товаров, работ и услуг для обеспечения государственных (муниципальных) нужд","0910120221","200","0501",180000,180000,180000]
["      Основное мероприятие \"Обслуживание, содержание, ремонт, модернизация объектов коммунального хозяйства\"","09102",null,null,648900,648900,648900]
["        Обслуживание, периодическая поверка, ремонт и диспетчеризация работы узлов учета тепловой энергии и воды на вводах в город и на объектах социально-культурного назначения","0910220220",null,null,648900,648900,648900]
["          Закупка товаров, работ и услуг для обеспечения государственных (муниципальных) нужд","0910220220","200","0502",648900,648900,648900]
["      Основное мероприятие \"Предупреждение чрезвычайных ситуаций на территории города\"","09104",null,null,111800,111800,111800]
["        Обслуживание городской системы видеонаблюдения, услуги по предоставлению информации государственного учреждения \"Владимирский областной центр по гидрометеорологии и мониторингу окружающей среды\"","0910420220",null,null,111800,111800,111800]
["          Закупка товаров, работ и услуг для обеспечения государственных (муниципальных) нужд","0910420220","200","0502",111800,111800,111800]
["      Основное мероприятие \"Обеспечение финансовой стабильности предприятий бытового облуживания\"","09105",null,null,2472000,2472000,2472000]
["        Субсидии, предоставляемые МУП \"ЖКХ\" ЗАТО г.Радужный Владимирской области на возмещение фактически понесенных затрат в связи с оказанием социально значимых для города бытовых услуг (услуги городской бани)","0910562000",null,null,2472000,2472000,2472000]
["          Иные бюджетные ассигнования","0910562000","800","0502",2472000,2472000,2472000]
["      Основное мероприятие \"Организация мероприятий по вопросам похоронного дела на территории ЗАТО г. Радужный. Содержание и обслуживание городского кладбища традиционного захоронения\"","09106",null,null,2184050,2184050,2184050]
["        Организация содержания мест захоронения в соответствии с санитарными нормами, расходы по гарантированному перечню услуг на погребение","0910620220",null,null,2184050,2184050,2184050]
["          Закупка товаров, работ и услуг для обеспечения государственных (муниципальных) нужд","0910620220","200","0503",2184050,2184050,2184050]
["      Основное мероприятие \"Организация выполнения работ, необходимых для надлежащего содержания и безопасной эксплуатации муниципальных объектов\"","09109",null,null,24054912,25355237,25355237]
["        Финансирование деятельности муниципальных учреждений, осуществляющих управленческие функции по техническому обеспечению деятельности органов местного самоуправления по решению вопросов местного значения ЗАТО г. Радужный Владимирской области, связанных с надлежащим содержанием и безопасной эксплуатацией муниципальных объектов","0910900590",null,null,24054912,25355237,25355237]
["          Расходы на выплаты персоналу в целях обеспечения выполнения функций государственными (муниципальными) органами, казенными учреждениями, органами управления государственными внебюджетными фондами","0910900590","100","0505",21741418,22939743,22939743]
["          Закупка товаров, работ и услуг для обеспечения государственных (муниципальных) нужд","0910900590","200","0505",1277700,1379700,1379700]
["          Иные бюджетные ассигнования","0910900590","800","0505",1035794,1035794,1035794]
["  Муниципальная программа \"Охрана окружающей среды ЗАТО г.Радужный Владимирской области\"","10",null,null,5404955,5252455,5252455]
["    Подпрограмма \"Городские леса ЗАТО г.Радужный Владимирской области\"","101",null,null,35000,35000,35000]
["      Основное мероприятие \"Охрана лесов и водных источников\"","10101",null,null,35000,35000,35000]
["        Мероприятия, направленные на сохранение и воспроизводство лесов, охрану и восстановление водных объектов (родников)","1010120220",null,null,35000,35000,35000]
["          Закупка товаров, работ и услуг для обеспечения государственных (муниципальных) нужд","1010120220","200","0605",35000,35000,35000]
["    Подпрограмма \"Отходы ЗАТО г.Радужный Владимирской области\"","102",null,null,5369955,5217455,5217455]
["      Основное мероприятие \"Содержание полигона твердых бытовых отходов\"","10202",null,null,5369955,5217455,5217455]
["        Финансирование деятельности муниципальных учреждений, обеспечивающих функционирование полигона твердых бытовых отходов ЗАТО г.Радужный Владимирской области","1020200590",null,null,5369955,5217455,5217455]
["          Расходы на выплаты персоналу в целях обеспечения выполнения функций государственными (муниципальными) органами, казенными учреждениями, органами управления государственными внебюджетными фондами","1020200590","100","0503",2007330,2007330,2007330]
["          Закупка товаров, работ и услуг для обеспечения государственных (муниципальных) нужд","1020200590","200","0503",2541305,2388805,2388805]
["          Иные бюджетные ассигнования","1020200590","800","0503",821320,821320,821320]
["  Муниципальная программа \"Обеспечение населения ЗАТО г.Радужный Владимирской области питьевой водой\"","11",null,null,13598834,1098504,104778504]
["      Основное мероприятие \"Развитие и совершенствование системы водоснабжения\"","11001",null,null,13598834,1098504,1098504]
["        Содержание и обслуживание пунктов разбора воды, станции подкачки холодной воды, лабораторные исследования воды на микробиологические показатели из ЦТП","1100120220",null,null,1098834,1098504,1098504]
["          Закупка товаров, работ и услуг для обеспечения государственных (муниципальных) нужд","1100120220","200","0502",1098834,1098504,1098504]
["        Расходы на ПИРы на строительство станции водоподготовки УВС-III (обезжелезивания)","1100140100",null,null,12500000,0,0]
["          Капитальные вложения в объекты государственной (муниципальной) собственности","1100140100","400","0502",12500000,0,0]
["      Основное мероприятие \"Реализация мероприятий в рамках национального проекта \"Экология\" (федерального проекта \"Чистая вода\")\"","110G5",null,null,0,0,103680000]
["        Строительство и реконструкция (модернизация) объектов питьевого водоснабжения в рамках реализации национального проекта \"Экология\" (федерального проекта \"Чистая вода\")","110G552430",null,null,0,0,103680000]
["          Капитальные вложения в объекты государственной (муниципальной) собственности","110G552430","400","0502",0,0,103680000]
["  Муниципальная программа \"Развитие пассажирских перевозок на территории ЗАТО г.Радужный Владимирской области\"","12",null,null,5819369,1311369,1311369]
["      Основное мероприятие \"Развитие и совершенствование транспортного обслуживания населения г.Радужный\"","12001",null,null,5819369,1311369,1311369]
["        Мероприятия, направленные на удовлетворение потребности населения города в транспортном обслуживании, в том числе организация перевозки пассажиров на городском маршруте","1200120220",null,null,5708000,1200000,1200000]
["          Закупка товаров, работ и услуг для обеспечения государственных (муниципальных) нужд","1200120220","200","0408",1248000,1200000,1200000]
["          Социальное обеспечение и иные выплаты населению","1200120220","300","1003",4460000,0,0]
["        Обеспечение равной доступности услуг транспорта общего пользования для отдельных категорий граждан в муниципальном сообщении","1200170150",null,null,105800,105800,105800]
["          Социальное обеспечение и иные выплаты населению","1200170150","300","1003",105800,105800,105800]
["        Обеспечение равной доступности услуг транспорта общего пользования для отдельных категорий граждан в муниципальном сообщении","12001S0150",null,null,5569,5569,5569]
["          Социальное обеспечение и иные выплаты населению","12001S0150","300","1003",5569,5569,5569]
["  Муниципальная программа \"Дорожное хозяйство и благоустройство ЗАТО г.Радужный Владимирской области\"","13",null,null,62530972,55894606,55894606]
["    Подпрограмма \"Строительство, ремонт и реконструкция автомобильных дорог общего пользования местного значения\"","131",null,null,8228414,7500000,7500000]
["      Основное мероприятие \"Финансовое обеспечение дорожной деятельности в рамках реализации национального проекта \"Безопасные и качественные автомобильные дороги\" (федеральный проект \"Дорожная сеть\")\"","131R1",null,null,8228414,7500000,7500000]
["        Финансовое обеспечение дорожной деятельности в рамках реализации национального проекта \"Безопасные и качественные автомобильные дороги\" (выполнение работ по текущему ремонту участка кольцевой автомобильной дороги)","131R153930",null,null,8228414,0,0]
["          Закупка товаров, работ и услуг для обеспечения государственных (муниципальных) нужд","131R153930","200","0409",8228414,0,0]
["        Финансовое обеспечение дорожной деятельности в рамках реализации национального проекта \"Безопасные и качественные автомобильные дороги\" (выполнение работ по текущему ремонту участка кольцевой автомобильной дороги)","131R15393D",null,null,0,7500000,7500000]
["          Закупка товаров, работ и услуг для обеспечения государственных (муниципальных) нужд","131R15393D","200","0409",0,7500000,7500000]
["    Подпрограмма \"Строительство, ремонт и реконструкция объектов благоустройства\"","132",null,null,1418700,1418700,1418700]
["      Основное мероприятие \"Строительство, ремонт, реконструкция и обслуживание объектов благоустройства\"","13201",null,null,1418700,1418700,1418700]
["        Мероприятия, направленные на содержание объектов благоустройства в надлежащем состоянии, в том числе обслуживание ливневой канализации","1320120220",null,null,1382000,1382000,1382000]
["          Закупка товаров, работ и услуг для обеспечения государственных (муниципальных) нужд","1320120220","200","0503",1382000,1382000,1382000]
["        Реализация отдельных государственных полномочий Владимирской области по организации мероприятий при осуществлении деятельности по обращению с животными без владельцев","1320171980",null,null,36700,36700,36700]
["          Закупка товаров, работ и услуг для обеспечения государственных (муниципальных) нужд","1320171980","200","0405",36700,36700,36700]
["    Подпрограмма \"Содержание дорог и объектов благоустройства\"","133",null,null,29756523,28909027,28909027]
["      Основное мероприятие \"Содержание и обслуживание городских дорог в зимний, летний и осенний период, содержание и обслуживание объектов благоустройства города\"","13301",null,null,29756523,28909027,28909027]
["        Финансирование деятельности муниципальных учреждений, обеспечивающих содержание и обслуживание городских дорог, содержание и обслуживание объектов благоустройства города","1330100590",null,null,29756523,28909027,28909027]
["          Расходы на выплаты персоналу в целях обеспечения выполнения функций государственными (муниципальными) органами, казенными учреждениями, органами управления государственными внебюджетными фондами","1330100590","100","0409",16066325,16066325,16066325]
["          Закупка товаров, работ и услуг для обеспечения государственных (муниципальных) нужд","1330100590","200",null,13291348,12443852,12443852]
["          Закупка товаров, работ и услуг для обеспечения государственных (муниципальных) нужд","1330100590","200","0409",10694219,9846723,9846723]
["          Закупка товаров, работ и услуг для обеспечения государственных (муниципальных) нужд","1330100590","200","0503",2597129,2597129,2597129]
["          Иные бюджетные ассигнования","1330100590","800","0409",398850,398850,398850]
["    Подпрограмма \"Техническое обслуживание, ремонт и модернизация уличного освещения\"","134",null,null,15300000,13123590,13123590]
["      Основное мероприятие \"Техническое обслуживание, содержание, ремонт и модернизация уличного освещения\"","13401",null,null,15300000,13123590,13123590]
["        Содержание и обслуживание сетей уличного наружного освещения ЗАТО г.Радужный Владимирской области, в том числе поставка электроэнергии на уличное освещение на территории города","1340120220",null,null,15300000,13123590,13123590]
["          Закупка товаров, работ и услуг для обеспечения государственных (муниципальных) нужд","1340120220","200","0503",15300000,13123590,13123590]
["    Подпрограмма \"Формирование комфортной городской среды\"","135",null,null,7495416,4611370,4611370]
["      Основное мероприятие \"Мероприятия по благоустройству дворовых территорий ЗАТО г.Радужный, в том числе в рамках реализации программ современной городской среды","13501",null,null,3072468.63,0,0]
["        Благоустройство придомовых и общественных территорий, в том числе проверка сметной документации","1350120220",null,null,3072468.63,0,0]
["          Закупка товаров, работ и услуг для обеспечения государственных (муниципальных) нужд","1350120220","200","0503",3072468.63,0,0]
["      Основное мероприятие \"Реализация программ формирования современной городской среды в рамках реализации национального проекта \"Жилье и городская среда\" (федеральный проект \"Жилье\")\"","135F2",null,null,4422947.37,4611370,4611370]
["        Реализация программ формирования современной городской среды (ремонт дворовых территорий многоквартирных домов)","135F255550",null,null,4422947.37,4611370,4611370]
["          Закупка товаров, работ и услуг для обеспечения государственных (муниципальных) нужд","135F255550","200","0503",4422947.37,4611370,4611370]
["    Подпрограмма \"Ведомственная программа \"Ямочный ремонт, сезонные работы по благоустройству города\"","136",null,null,331919,331919,331919]
["      Основное мероприятие \"Ремонт и содержание улично-дорожной сети по объектам благоустройства\"","13601",null,null,20000,20000,20000]
["        Мероприятия, направленные на поддержание нормативного состояния улично-дорожной сети и объектов благоустройства города, в том числе уборка снега, покос травы","1360120220",null,null,20000,20000,20000]
["          Закупка товаров, работ и услуг для обеспечения государственных (муниципальных) нужд","1360120220","200","0409",20000,20000,20000]
["      Основное мероприятие \"Временная занятость сезонных рабочих по благоустройству территории города\"","13602",null,null,311919,311919,311919]
["        Выполнение работ по подготовке города к весеннему, летнему и осеннему сезону","1360220220",null,null,311919,311919,311919]
["          Расходы на выплаты персоналу в целях обеспечения выполнения функций государственными (муниципальными) органами, казенными учреждениями, органами управления государственными внебюджетными фондами","1360220220","100","0503",290419,290419,290419]
["          Закупка товаров, работ и услуг для обеспечения государственных (муниципальных) нужд","1360220220","200","0503",21500,21500,21500]
["  Муниципальная программа \"Доступная среда для людей с ограниченными возможностями ЗАТО г.Радужный Владимирской области\"","14",null,null,77000,77000,77000]
["      Основное мероприятие \"Обеспечение доступности для инвалидов различного рода информации, объектов социальной сферы\"","14001",null,null,77000,77000,77000]
["        Обеспечение беспрепятственного доступа инвалидов и маломобильных групп к информации и объектам социальной сферы, в том числе переоборудование жилья инвалидов-колясочников, устройство пандусов и поручней","1400120220",null,null,77000,77000,77000]
["          Закупка товаров, работ и услуг для обеспечения государственных (муниципальных) нужд","1400120220","200","1003",77000,77000,77000]
["  Муниципальная программа \"Развитие образования ЗАТО г.Радужный Владимирской области\"","15",null,null,291069424,272139061,271708461]
["    Подпрограмма \"Развитие общего, дошкольного и дополнительного образования ЗАТО г.Радужный Владимирской области\"","151",null,null,259009281,244492183,244061583]
["      Основное мероприятие \"Развитие системы обеспечение доступности качества образовательных услуг\"","15101",null,null,393572,0,0]
["        Мероприятия, направленные на развитие сети дошкольного, общего и дополнительного образования, в том числе организация и участие в городских мероприятий, смотрах, конкурсах, выставках, конференциях","1510120220",null,null,200000,0,0]
["          Закупка товаров, работ и услуг для обеспечения государственных (муниципальных) нужд","1510120220","200","0709",200000,0,0]
["        Мероприятия, направленные на развитие сети дошкольного образования, в том числе организация и участие в городских мероприятий, смотрах, конкурсах, выставках, конференциях, обеспечение функционирования программных комплексов, используемых в образовательном процессе (МБДОУ ЦРР д/с №3)","151012Б220",null,null,31404,0,0]
["          Предоставление субсидий бюджетным, автономным учреждениям и иным некоммерческим организациям","151012Б220","600","0701",31404,0,0]
["        Мероприятия, направленные на развитие сети дошкольного образования, в том числе организация и участие в городских мероприятий, смотрах, конкурсах, выставках, конференциях, обеспечение функционирования программных комплексов, используемых в образовательном процессе (МБДОУ ЦРР д/с №5)","151012Г220",null,null,31404,0,0]
["          Предоставление субсидий бюджетным, автономным учреждениям и иным некоммерческим организациям","151012Г220","600","0701",31404,0,0]
["        Мероприятия, направленные на развитие сети дошкольного образования, в том числе организация и участие в городских мероприятий, смотрах, конкурсах, выставках, конференциях, обеспечение функционирования программных комплексов, используемых в образовательном процессе (МБДОУ ЦРР д/с №6)","151012Д220",null,null,31404,0,0]
["          Предоставление субсидий бюджетным, автономным учреждениям и иным некоммерческим организациям","151012Д220","600","0701",31404,0,0]
["        Мероприятия, направленные на развитие сети общего образования, в том числе организация и участие в городских мероприятий, смотрах, конкурсах, выставках, конференциях, обеспечение функционирования программных комплексов, используемых в образовательном процессе (МБОУ СОШ №1)","151012И220",null,null,34440,0,0]
["          Предоставление субсидий бюджетным, автономным учреждениям и иным некоммерческим организациям","151012И220","600","0702",34440,0,0]
["        Мероприятия, направленные на развитие сети общего образования, в том числе организация и участие в городских мероприятий, смотрах, конкурсах, выставках, конференциях, обеспечение функционирования программных комплексов, используемых в образовательном процессе (МБОУ СОШ №2)","151012Л220",null,null,34440,0,0]
["          Предоставление субсидий бюджетным, автономным учреждениям и иным некоммерческим организациям","151012Л220","600","0702",34440,0,0]
["        Мероприятия, направленные на развитие сети дополнительного образования, в том числе организация и участие в городских мероприятий, смотрах, конкурсах, выставках, конференциях (МБОУ ДО ЦВР \"Лад\")","151012Ц220",null,null,30480,0,0]
["          Предоставление субсидий бюджетным, автономным учреждениям и иным некоммерческим организациям","151012Ц220","600","0703",30480,0,0]
["      Основное мероприятие \"Выполнение муниципальных заданий\"","15103",null,null,231324334,223222331,223366431]
["        Выполнение муниципального задания МБДОУ ЦРР д/с №3","151030Б590",null,null,4171573,2684120,2684120]
["          Предоставление субсидий бюджетным, автономным учреждениям и иным некоммерческим организациям","151030Б590","600","0701",4171573,2684120,2684120]
["        Расходы на оплату труда работников муниципального бюджетного учреждения МБДОУ ЦРР Детский сад № 3, финансируемые за счет средств местного бюджета","151030Б592",null,null,6595770,6561047,6561047]
["          Предоставление субсидий бюджетным, автономным учреждениям и иным некоммерческим организациям","151030Б592","600","0701",6595770,6561047,6561047]
["        Выполнение муниципального задания МБДОУ ЦРР д/с №5","151030Г590",null,null,8348846,5571424,5571424]
["          Предоставление субсидий бюджетным, автономным учреждениям и иным некоммерческим организациям","151030Г590","600","0701",8348846,5571424,5571424]
["        Расходы на оплату труда работников муниципального бюджетного учреждения МБДОУ ЦРР Детский сад № 5, финансируемые за счет средств местного бюджета","151030Г592",null,null,13953050,13855971,13855971]
["          Предоставление субсидий бюджетным, автономным учреждениям и иным некоммерческим организациям","151030Г592","600","0701",13953050,13855971,13855971]
["        Выполнение муниципального задания МБДОУ ЦРР д/с №6","151030Д590",null,null,7276927,6222655,6222655]
["          Предоставление субсидий бюджетным, автономным учреждениям и иным некоммерческим организациям","151030Д590","600","0701",7276927,6222655,6222655]
["        Расходы на оплату труда работников муниципального бюджетного учреждения МБДОУ ЦРР Детский сад № 6, финансируемые за счет средств местного бюджета","151030Д592",null,null,6886189,6845526,6845526]
["          Предоставление субсидий бюджетным, автономным учреждениям и иным некоммерческим организациям","151030Д592","600","0701",6886189,6845526,6845526]
["        Выполнение муниципального задания МБОУ СОШ №1","151030И590",null,null,7296922,6192596,6267296]
["          Предоставление субсидий бюджетным, автономным учреждениям и иным некоммерческим организациям","151030И590","600","0702",7296922,6192596,6267296]
["        Выполнение муниципального задания МБОУ СОШ №2","151030Л590",null,null,7475395,7065040,7065040]
["          Предоставление субсидий бюджетным, автономным учреждениям и иным некоммерческим организациям","151030Л590","600","0702",7475395,7065040,7065040]
["        Выполнение муниципального задания МБОУ ДО ЦВР \"Лад\"","151030Ц590",null,null,5147694,5183184,5183184]
["          Предоставление субсидий бюджетным, автономным учреждениям и иным некоммерческим организациям","151030Ц590","600","0703",5147694,5183184,5183184]
["        Расходы на оплату труда работников культуры и педагогических работников дополнительного образования детей в соответствии с Указами Президента РФ от 07.05.2012 г. №597, от 01.06.2012 г. №761 (МБОУ ДО ЦВР \"Лад\")","151030Ц591",null,null,6308098,6308098,6308098]
["          Предоставление субсидий бюджетным, автономным учреждениям и иным некоммерческим организациям","151030Ц591","600","0703",6308098,6308098,6308098]
["        Расходы на оплату труда работников муниципального бюджетного учреждения МБОУ ДО ЦВР \"Лад\"","151030Ц592",null,null,6030200,6030200,6030200]
["          Предоставление субсидий бюджетным, автономным учреждениям и иным некоммерческим организациям","151030Ц592","600","0703",6030200,6030200,6030200]
["        Поддержка приоритетных направлений развития отрасли образования (финансовое обеспечение мероприятий, возникающих в связи с доведением оплаты труда педагогических работников муниципальных образовательных учреждений муниципального образования, МБОУ ДО ЦВР \"Лад\")","151037147Ц",null,null,1397800,1397800,1397800]
["          Предоставление субсидий бюджетным, автономным учреждениям и иным некоммерческим организациям","151037147Ц","600","0703",1397800,1397800,1397800]
["        Обеспечение государственных гарантий реализации прав на получение общедоступного и бесплатного дошкольного, начального общего, основного общего, среднего общего образования в муниципальных образовательных организациях, обеспечение дополнительного образования детей в муниципальных общеобразовательных организациях (МБДОУ ЦРР д/с №3)","151037183Б",null,null,13245760,13146020,13152139]
["          Предоставление субсидий бюджетным, автономным учреждениям и иным некоммерческим организациям","151037183Б","600","0701",13245760,13146020,13152139]
["        Обеспечение государственных гарантий реализации прав на получение общедоступного и бесплатного дошкольного, начального общего, основного общего, среднего общего образования в муниципальных образовательных организациях, обеспечение дополнительного образования детей в муниципальных общеобразовательных организациях (МБДОУ ЦРР д/с №5)","151037183Г",null,null,31896098,31655922,31670658]
["          Предоставление субсидий бюджетным, автономным учреждениям и иным некоммерческим организациям","151037183Г","600","0701",31896098,31655922,31670658]
["        Обеспечение государственных гарантий реализации прав на получение общедоступного и бесплатного дошкольного, начального общего, основного общего, среднего общего образования в муниципальных образовательных организациях, обеспечение дополнительного образования детей в муниципальных общеобразовательных организациях (МБДОУ ЦРР д/с №6)","151037183Д",null,null,14101792,13995608,14002122]
["          Предоставление субсидий бюджетным, автономным учреждениям и иным некоммерческим организациям","151037183Д","600","0701",14101792,13995608,14002122]
["        Обеспечение государственных гарантий реализации прав на получение общедоступного и бесплатного дошкольного, начального общего, основного общего, среднего общего образования в муниципальных образовательных организациях, обеспечение дополнительного образования детей в муниципальных общеобразовательных организациях (МБОУ СОШ №1)","151037183И",null,null,44957410,44618883,44639651]
["          Предоставление субсидий бюджетным, автономным учреждениям и иным некоммерческим организациям","151037183И","600","0702",44957410,44618883,44639651]
["        Обеспечение государственных гарантий реализации прав на получение общедоступного и бесплатного дошкольного, начального общего, основного общего, среднего общего образования в муниципальных образовательных организациях, обеспечение дополнительного образования детей в муниципальных общеобразовательных организациях (МБОУ СОШ №2)","151037183Л",null,null,46025940,45679367,45700630]
["          Предоставление субсидий бюджетным, автономным учреждениям и иным некоммерческим организациям","151037183Л","600","0702",46025940,45679367,45700630]
["        Поддержка приоритетных направлений развития отрасли образования (финансовое обеспечение мероприятий, возникающих в связи с доведением оплаты труда педагогических работников муниципальных образовательных учреждений муниципального образования, МБОУ ДО ЦВР \"Лад\")","15103S147Ц",null,null,208870,208870,208870]
["          Предоставление субсидий бюджетным, автономным учреждениям и иным некоммерческим организациям","15103S147Ц","600","0703",208870,208870,208870]
["      Основное мероприятие \"Выполнение управленческих функций, обеспечивающих стабильность работы подведомственных учреждений\"","15104",null,null,9181875,8411952,8411952]
["        Функционирование централизованной бухгалтерии и методического кабинета управления образования администрации ЗАТО г.Радужный Владимирской области","1510400590",null,null,9181875,8411952,8411952]
["          Расходы на выплаты персоналу в целях обеспечения выполнения функций государственными (муниципальными) органами, казенными учреждениями, органами управления государственными внебюджетными фондами","1510400590","100","0709",8635175,7936552,7936552]
["          Закупка товаров, работ и услуг для обеспечения государственных (муниципальных) нужд","1510400590","200","0709",546700,475400,475400]
["      Основное мероприятие \"Социальная поддержка населения\"","15105",null,null,5901200,6346200,6346200]
["        Социальная поддержка детей-инвалидов дошкольного возраста","1510570540",null,null,145400,145400,145400]
["          Социальное обеспечение и иные выплаты населению","1510570540","300","1003",145400,145400,145400]
["        Компенсация части родительской платы за присмотр и уход за детьми в образовательных организациях, реализующих образовательную программу дошкольного образования","1510570560",null,null,5617100,6062100,6062100]
["          Социальное обеспечение и иные выплаты населению","1510570560","300","1004",5617100,6062100,6062100]
["        Предоставление мер социальной поддержки педагогическим работникам и иным категориям граждан, работающим в муниципальных образовательных организациях, расположенных в сельских населенных пунктах, поселках городского типа (поселках, относящихся к городским населенным пунктам)","1510570590",null,null,138700,138700,138700]
["          Социальное обеспечение и иные выплаты населению","1510570590","300","0702",138700,138700,138700]
["      Основное мероприятие \"Создание (обновление) материально-технической базы для реализации основных и дополнительных общеобразовательных программ цифрового и гуманитарного профилей в общеобразовательных организациях, расположенных в сельской местности и малых городах в рамках реализации национального проекта \"Образование (федеральный проект \"Современная школа\")\"","151E1",null,null,1024300,0,0]
["        Создание (обновление) материально-технической базы для реализации основных и дополнительных общеобразовательных программ цифрового и гуманитарного профилей в общеобразовательных организациях, расположенных в сельской местности и малых городах (МБОУ СОШ №1)","151E15169И",null,null,1024300,0,0]
["          Предоставление субсидий бюджетным, автономным учреждениям и иным некоммерческим организациям","151E15169И","600","0702",1024300,0,0]
["      Основное мероприятие \"Создание в общеобразовательных организациях, расположенных в сельской местности и малых городах, условий для занятий физической культурой и спортом в рамках реализации национального проекта \"Образование (федеральный проект \"Успех каждого ребенка\")\"","151E2",null,null,1149400,574700,0]
["        Создание в общеобразовательных организациях, расположенных в сельской местности и малых городах, условий для занятия физической культурой и спортом","151E250971",null,null,1149400,574700,0]
["          Предоставление субсидий бюджетным, автономным учреждениям и иным некоммерческим организациям","151E250971","600","0702",1149400,574700,0]
["      Основное мероприятие \"Внедрение целевой модели цифровой образовательной среды в общеобразовательных организациях и в рамках реализации национального проекта \"Образование (федеральный проект \"Цифровая образовательная среда\")\"","151E4",null,null,4097600,0,0]
["        Внедрение целевой модели цифровой образовательной среды в общеобразовательных организациях","151E452101",null,null,4097600,0,0]
["          Предоставление субсидий бюджетным, автономным учреждениям и иным некоммерческим организациям","151E452101","600","0702",4097600,0,0]
["      Основное мероприятие \"Выполнение муниципальных заданий в части выплат денежных вознаграждений за классное руководство педагогическим работникам в МБОУ СОШ №1\"","151И3",null,null,2775740,2775740,2775740]
["        Ежемесячное денежное вознаграждение за классное руководство педагогическим работникам муниципальных общеобразовательных организаций (МБОУ СОШ №1)","151И353031",null,null,2775740,2775740,2775740]
["          Предоставление субсидий бюджетным, автономным учреждениям и иным некоммерческим организациям","151И353031","600","0702",2775740,2775740,2775740]
["      Основное мероприятие \"Выполнение муниципальных заданий в части выплат денежных вознаграждений за классное руководство педагогическим работникам в МБОУ СОШ №2\"","151Л3",null,null,3161260,3161260,3161260]
["        Ежемесячное денежное вознаграждение за классное руководство педагогическим работникам муниципальных общеобразовательных организаций (МБОУ СОШ №2)","151Л353031",null,null,3161260,3161260,3161260]
["          Предоставление субсидий бюджетным, автономным учреждениям и иным некоммерческим организациям","151Л353031","600","0702",3161260,3161260,3161260]
["    Подпрограмма \"Совершенствование организации питания обучающихся муниципальных общеобразовательных учреждений ЗАТО г.Радужный Владимирской области","152",null,null,13736470,8177600,8177600]
["      Основное мероприятие \"Организация питания учащихся\"","15201",null,null,2495370,0,0]
["        Обеспечение горячим питанием обучающихся 1-11 классов, в том числе предоставление льготного питания в МБОУ СОШ №1","152012И220",null,null,1560000,0,0]
["          Предоставление субсидий бюджетным, автономным учреждениям и иным некоммерческим организациям","152012И220","600","0702",1560000,0,0]
["        Обеспечение горячим питанием обучающихся 1-11 классов, в том числе предоставление льготного питания в МБОУ СОШ №2","152012Л220",null,null,935370,0,0]
["          Предоставление субсидий бюджетным, автономным учреждениям и иным некоммерческим организациям","152012Л220","600","0702",935370,0,0]
["      Основное мероприятие \"Организация питания дошкольников\"","15202",null,null,2732000,0,0]
["        Обеспечение предоставления качественного питания для детей дошкольного возраста в МБДОУ ЦРР д/с №3","152022Б220",null,null,835000,0,0]
["          Предоставление субсидий бюджетным, автономным учреждениям и иным некоммерческим организациям","152022Б220","600","0701",835000,0,0]
["        Обеспечение предоставления качественного питания для детей дошкольного возраста в МБДОУ ЦРР д/с №5","152022Г220",null,null,1185000,0,0]
["          Предоставление субсидий бюджетным, автономным учреждениям и иным некоммерческим организациям","152022Г220","600","0701",1185000,0,0]
["        Обеспечение предоставления качественного питания для детей дошкольного возраста в МБДОУ ЦРР д/с №6","152022Д220",null,null,712000,0,0]
["          Предоставление субсидий бюджетным, автономным учреждениям и иным некоммерческим организациям","152022Д220","600","0701",712000,0,0]
["      Основное мероприятие \"Организация питания учащихся начальных классов в МБОУ СОШ №1\"","152И1",null,null,4157200,3995200,3995200]
["        Организация бесплатного горячего питания обучающихся, получающих начальное общее образование в муниципальных образовательных организациях (МБОУ СОШ №1)","152И1R3041",null,null,4157200,3995200,3995200]
["          Предоставление субсидий бюджетным, автономным учреждениям и иным некоммерческим организациям","152И1R3041","600","0702",4157200,3995200,3995200]
["      Основное мероприятие \"Организация питания учащихся начальных классов в МБОУ СОШ №2\"","152Л1",null,null,4351900,4182400,4182400]
["        Организация бесплатного горячего питания обучающихся, получающих начальное общее образование в муниципальных образовательных организациях (МБОУ СОШ №2)","152Л1R3041",null,null,4351900,4182400,4182400]
["          Предоставление субсидий бюджетным, автономным учреждениям и иным некоммерческим организациям","152Л1R3041","600","0702",4351900,4182400,4182400]
["    Подпрограмма \"Совершенствование организации отдыха и оздоровления детей и подростков в ЗАТО г.Радужный Владимирской области\"","153",null,null,5157173,4987578,4987578]
["      Основное мероприятие \"Организация отдыха и оздоровления детей и подростков ЗАТО г.Радужный Владимирской области в лагерях дневного пребывания\"","15301",null,null,1430550,1377050,1377050]
["        Организация лагеря с дневным пребыванием на базе МБОУ СОШ №1","153012И220",null,null,25000,0,0]
["          Предоставление субсидий бюджетным, автономным учреждениям и иным некоммерческим организациям","153012И220","600","0707",25000,0,0]
["        Организация лагеря с дневным пребыванием на базе МБОУ СОШ №2","153012Л220",null,null,28500,0,0]
["          Предоставление субсидий бюджетным, автономным учреждениям и иным некоммерческим организациям","153012Л220","600","0707",28500,0,0]
["        Поддержка приоритетных направлений развития отрасли образования (организация отдыха детей в каникулярное время в лагерях, функционирующих на базе муниципальных образовательных учреждений) в МБОУ СОШ №1","153017147И",null,null,292000,292000,292000]
["          Предоставление субсидий бюджетным, автономным учреждениям и иным некоммерческим организациям","153017147И","600","0707",292000,292000,292000]
["        Поддержка приоритетных направлений развития отрасли образования (организация отдыха детей в каникулярное время в лагерях, функционирующих на базе муниципальных образовательных учреждений) в МБОУ СОШ №2","153017147Л",null,null,144000,144000,144000]
["          Предоставление субсидий бюджетным, автономным учреждениям и иным некоммерческим организациям","153017147Л","600","0707",144000,144000,144000]
["        Поддержка приоритетных направлений развития отрасли образования (организация отдыха детей в каникулярное время в лагерях, функционирующих на базе муниципальных образовательных учреждений, организация культурно-экскурсионного обслуживания в каникулярный период) в МБОУ ДО ЦВР \"Лад\"","153017147Ц",null,null,762000,762000,762000]
["          Предоставление субсидий бюджетным, автономным учреждениям и иным некоммерческим организациям","153017147Ц","600","0707",762000,762000,762000]
["        Поддержка приоритетных направлений развития отрасли образования (организация отдыха детей в каникулярное время в лагерях, функционирующих на базе муниципальных образовательных учреждений) в МБОУ СОШ №1","15301S147И",null,null,43650,43650,43650]
["          Предоставление субсидий бюджетным, автономным учреждениям и иным некоммерческим организациям","15301S147И","600","0707",43650,43650,43650]
["        Поддержка приоритетных направлений развития отрасли образования (организация отдыха детей в каникулярное время в лагерях, функционирующих на базе муниципальных образовательных учреждений) в МБОУ СОШ №2","15301S147Л",null,null,21500,21500,21500]
["          Предоставление субсидий бюджетным, автономным учреждениям и иным некоммерческим организациям","15301S147Л","600","0707",21500,21500,21500]
["        Поддержка приоритетных направлений развития отрасли образования (организация отдыха детей в каникулярное время в лагерях, функционирующих на базе муниципальных образовательных учреждений) в МБОУ ДО ЦВР \"Лад\"","15301S147Ц",null,null,113900,113900,113900]
["          Предоставление субсидий бюджетным, автономным учреждениям и иным некоммерческим организациям","15301S147Ц","600","0707",113900,113900,113900]
["      Основное мероприятие \"Участие в профильных сменах. Организация санаторно-курортного оздоровления\"","15302",null,null,97300,0,0]
["        Организация санаторно-курортного лечения для часто болеющих детей и семей, нуждающихся в особой заботе государства, в санаториях \"Мать и дитя\"","1530220220",null,null,97300,0,0]
["          Социальное обеспечение и иные выплаты населению","1530220220","300","0707",97300,0,0]
["      Основное мероприятие \"Организация отдыха детей в загородном лагере\"","15303",null,null,3629323,3610528,3610528]
["        Выполнение муниципального задания муниципальным бюджетным учреждением МБОУ ДО ЦВР \"Лад\" в части обеспечения деятельности загородного лагеря \"Лесной городок\"","153030Ц590",null,null,353639,378928,378928]
["          Предоставление субсидий бюджетным, автономным учреждениям и иным некоммерческим организациям","153030Ц590","600","0707",353639,378928,378928]
["        Расходы на оплату труда работников муниципального бюджетного учреждения МБОУ ДО ЦВР \"Лад\" в части загородного лагеря \"Лесной городок\"","153030Ц592",null,null,2114734,2070650,2070650]
["          Предоставление субсидий бюджетным, автономным учреждениям и иным некоммерческим организациям","153030Ц592","600","0707",2114734,2070650,2070650]
["        Поддержка приоритетных направлений развития отрасли образования (организация отдыха детей в каникулярное время в загородном оздоровительном лагере) в МБОУ ДО ЦВР \"Лад\"","153037147Ц",null,null,1010000,1010000,1010000]
["          Предоставление субсидий бюджетным, автономным учреждениям и иным некоммерческим организациям","153037147Ц","600","0707",1010000,1010000,1010000]
["        Поддержка приоритетных направлений развития отрасли образования (организация отдыха детей в каникулярное время в загородном оздоровительном лагере) в МБОУ ДО ЦВР \"Лад\"","15303S147Ц",null,null,150950,150950,150950]
["          Предоставление субсидий бюджетным, автономным учреждениям и иным некоммерческим организациям","15303S147Ц","600","0707",150950,150950,150950]
["    Подпрограмма \"Обеспечение защиты прав и интересов детей-сирот и детей, оставшихся без попечения родителей\"","154",null,null,13166500,14481700,14481700]
["      Основное мероприятие \"Организация осуществления деятельности по опеке и попечительству в отношении несовершеннолетних граждан\"","15401",null,null,10536000,10536000,10536000]
["        Содержание ребенка в семье опекуна и приемной семье, а также вознаграждение, причитающееся приемному родителю","1540170650",null,null,10536000,10536000,10536000]
["          Закупка товаров, работ и услуг для обеспечения государственных (муниципальных) нужд","1540170650","200","1004",85000,85000,85000]
["          Социальное обеспечение и иные выплаты населению","1540170650","300","1004",10451000,10451000,10451000]
["      Основное мероприятие \"Обеспечение жильем лиц из числа детей-сирот, детей, оставшихся без попечения родителей\"","15402",null,null,2630500,3945700,3945700]
["        Предоставление жилых помещений детям-сиротам и детям, оставшимся без попечения родителей, лицам из их числа по договорам найма специализированных жилых помещений","1540271420",null,null,2630500,3945700,3945700]
["          Капитальные вложения в объекты государственной (муниципальной) собственности","1540271420","400","1004",2630500,3945700,3945700]
["  Муниципальная программа \"Культура, спорт и национальная политика ЗАТО г.Радужный Владимирской области\"","16",null,null,{"$f":"E354+E423+E448+E452","v":77514616},{"$f":"F354+F423+F448+F452","v":68644740},{"$f":"G354+G423+G448+G452","v":73283620}]
["    Подпрограмма \"Культура ЗАТО г.Радужный Владимирской области\"","161",null,null,{"$f":"E355+E362+E367+E371++E416+E419","v":55857617},{"$f":"F355+F362+F367+F371++F416+F419","v":52392507},{"$f":"G355+G362+G367+G371++G416+G419","v":57121487}]
["      Основное мероприятие \"Организация досуга населения\"","16101",null,null,670000,0,0]
["        Организация и проведение городских творческих конкурсов и выставок, традиционных городских мероприятий, участие в региональных и международных конкурсах, выставках, фестивалях, в том числе патриотической направленности","1610120220",null,null,600000,0,0]
["          Закупка товаров, работ и услуг для обеспечения государственных (муниципальных) нужд","1610120220","200","0801",600000,0,0]
["        Организация и проведение городских творческих конкурсов и выставок, традиционных городских мероприятий, участие в региональных и международных конкурсах, выставках, фестивалях, в том числе патриотической направленности (МБУК ПКиО)","161012Э220",null,null,60000,0,0]
["          Предоставление субсидий бюджетным, автономным учреждениям и иным некоммерческим организациям","161012Э220","600","0801",60000,0,0]
["        Комплектование книжного фонда, внедрение информационных технологий в процесс библиотечного обслуживания","161012Ю220",null,null,10000,0,0]
["          Предоставление субсидий бюджетным, автономным учреждениям и иным некоммерческим организациям","161012Ю220","600","0801",10000,0,0]
["      Основное мероприятие \"Укрепление материальной базы\"","16102",null,null,300000,0,246400]
["        Мероприятия, связанные с укреплением материально-технической базы МБОУ ДО ДШИ","161022П220",null,null,0,0,246400]
["          Предоставление субсидий бюджетным, автономным учреждениям и иным некоммерческим организациям","161022П220","600","0703",0,0,246400]
["        Мероприятия, связанные с укреплением материально-технической базы МБУК МСДЦ","161022Я220",null,null,300000,0,0]
["          Предоставление субсидий бюджетным, автономным учреждениям и иным некоммерческим организациям","161022Я220","600","0801",300000,0,0]
["      Основное мероприятие \"Выполнение управленческих функций, обеспечение стабильной работы подведомственных учреждений\"","16103",null,null,12171525,11948925,11948925]
["        Финансирование деятельности муниципальных учреждений, деятельность которых направлена на создание условий для организации досуга и обеспечение жителей ЗАТО г. Радужный услугами учреждений культуры","1610300590",null,null,12171525,11948925,11948925]
["          Расходы на выплаты персоналу в целях обеспечения выполнения функций государственными (муниципальными) органами, казенными учреждениями, органами управления государственными внебюджетными фондами","1610300590","100","0804",11875925,11875925,11875925]
["          Закупка товаров, работ и услуг для обеспечения государственных (муниципальных) нужд","1610300590","200","0804",295600,73000,73000]
["      Основное мероприятие \"Выполнение муниципальных заданий\"","16104",null,null,{"$f":"E373+E375+E377+E379+E381+E383+E385+E387+E389+E391+E393+E395+E397+E399+E401+E403+E405+E407+E409+E411+E413+E415","v":42699492},{"$f":"F373+F375+F377+F379+F381+F383+F385+F387+F389+F391+F393+F395+F397+F399+F401+F403+F405+F407+F409+F411+F413+F415","v":40426982},{"$f":"G373+G375+G377+G379+G381+G383+G385+G387+G389+G391+G393+G395+G397+G399+G401+G403+G405+G407+G409+G411+G413+G415","v":40227162}]
["        Выполнение муниципального задания МБОУ ДО ДШИ","161040П590",null,null,1432160,1116960,1081960]
["          Предоставление субсидий бюджетным, автономным учреждениям и иным некоммерческим организациям","161040П590","600","0703",1432160,1116960,1081960]
["        Расходы на оплату труда работников культуры и педагогических работников дополнительного образования детей в соответствии с Указами Президента РФ от 07.05.2012 г. №597, от 01.06.2012 г. №761 (МБОУ ДО ДШИ)","161040П591",null,null,3160735,3160735,3160735]
["          Предоставление субсидий бюджетным, автономным учреждениям и иным некоммерческим организациям","161040П591","600","0703",3160735,3160735,3160735]
["        Расходы на оплату труда работников муниципального бюджетного учреждения МБОУ ДО ДШИ","161040П592",null,null,4177513,4177513,4177513]
["          Предоставление субсидий бюджетным, автономным учреждениям и иным некоммерческим организациям","161040П592","600","0703",4177513,4177513,4177513]
["        Выполнение муниципального задания МБУК КЦ \"Досуг\"","161040Ч590",null,null,1569384,1043335,1017584]
["          Предоставление субсидий бюджетным, автономным учреждениям и иным некоммерческим организациям","161040Ч590","600","0801",1569384,1043335,1017584]
["        Расходы на оплату труда работников культуры и педагогических работников дополнительного образования детей в соответствии с Указами Президента РФ от 07.05.2012 г. №597, от 01.06.2012 г. №761 (МБУК КЦ \"Досуг\")","161040Ч591",null,null,2504550,2504550,2504550]
["          Предоставление субсидий бюджетным, автономным учреждениям и иным некоммерческим организациям","161040Ч591","600","0801",2504550,2504550,2504550]
["        Расходы на оплату труда работников муниципального бюджетного учреждения МБУК КЦ \"Досуг\"","161040Ч592",null,null,1814415,1814415,1814415]
["          Предоставление субсидий бюджетным, автономным учреждениям и иным некоммерческим организациям","161040Ч592","600","0801",1814415,1814415,1814415]
["        Выполнение муниципального задания МБУК ЦДМ","161040Ш590",null,null,2245665,2020965,1988965]
["          Предоставление субсидий бюджетным, автономным учреждениям и иным некоммерческим организациям","161040Ш590","600","0801",2245665,2020965,1988965]
["        Расходы на оплату труда работников культуры и педагогических работников дополнительного образования детей в соответствии с Указами Президента РФ от 07.05.2012 г. №597, от 01.06.2012 г. №761 (МБУК ЦДМ)","161040Ш591",null,null,1934094,1934094,1934094]
["          Предоставление субсидий бюджетным, автономным учреждениям и иным некоммерческим организациям","161040Ш591","600","0801",1934094,1934094,1934094]
["        Расходы на оплату труда работников муниципального бюджетного учреждения МБУК ЦДМ","161040Ш592",null,null,1436441,1436441,1436441]
["          Предоставление субсидий бюджетным, автономным учреждениям и иным некоммерческим организациям","161040Ш592","600","0801",1436441,1436441,1436441]
["        Выполнение муниципального задания МБУК ПКиО","161040Э590",null,null,580267,372767,359767]
["          Предоставление субсидий бюджетным, автономным учреждениям и иным некоммерческим организациям","161040Э590","600","0801",580267,372767,359767]
["        Расходы на оплату труда работников муниципального бюджетного учреждения МБУК ПКиО","161040Э592",null,null,1428662,1428662,1428662]
["          Предоставление субсидий бюджетным, автономным учреждениям и иным некоммерческим организациям","161040Э592","600","0801",1428662,1428662,1428662]
["        Выполнение муниципального задания МБУК \"Общедоступная библиотека\"","161040Ю590",null,null,197100,41739,39170]
["          Предоставление субсидий бюджетным, автономным учреждениям и иным некоммерческим организациям","161040Ю590","600","0801",197100,41739,39170]
["        Расходы на оплату труда работников культуры и педагогических работников дополнительного образования детей в соответствии с Указами Президента РФ от 07.05.2012 г. №597, от 01.06.2012 г. №761 (МБУК \"Общедоступная библиотека\")","161040Ю591",null,null,1325444,1325444,1325444]
["          Предоставление субсидий бюджетным, автономным учреждениям и иным некоммерческим организациям","161040Ю591","600","0801",1325444,1325444,1325444]
["        Расходы на оплату труда работников муниципального бюджетного учреждения МБУК \"Общедоступная библиотека\"","161040Ю592",null,null,532544,532544,532544]
["          Предоставление субсидий бюджетным, автономным учреждениям и иным некоммерческим организациям","161040Ю592","600","0801",532544,532544,532544]
["        Выполнение муниципального задания МБУК МСДЦ","161040Я590",null,null,4326558,3482858,3391358]
["          Предоставление субсидий бюджетным, автономным учреждениям и иным некоммерческим организациям","161040Я590","600","0801",4326558,3482858,3391358]
["        Расходы на оплату труда работников культуры и педагогических работников дополнительного образования детей в соответствии с Указами Президента РФ от 07.05.2012 г. №597, от 01.06.2012 г. №761 (МБУК МСДЦ)","161040Я591",null,null,1828893,1828893,1828893]
["          Предоставление субсидий бюджетным, автономным учреждениям и иным некоммерческим организациям","161040Я591","600","0801",1828893,1828893,1828893]
["        Расходы на оплату труда работников муниципального бюджетного учреждения МБУК МСДЦ","161040Я592",null,null,1448067,1448067,1448067]
["          Предоставление субсидий бюджетным, автономным учреждениям и иным некоммерческим организациям","161040Я592","600","0801",1448067,1448067,1448067]
["        Повышение оплаты труда работников культуры и педагогических работников дополнительного образования детей сферы культуры в соответствии с указами Президента Российской Федерации от 7 мая 2012 года № 597, от 1 июня 2012 года № 761 (МБОУ ДО ДШИ)","161047039П",null,null,3486509,3486509,3486509]
["          Предоставление субсидий бюджетным, автономным учреждениям и иным некоммерческим организациям","161047039П","600","0703",3486509,3486509,3486509]
["        Повышение оплаты труда работников культуры и педагогических работников дополнительного образования детей сферы культуры в соответствии с указами Президента Российской Федерации от 7 мая 2012 года № 597, от 1 июня 2012 года № 761 (МБУК КЦ \"Досуг\")","161047039Ч",null,null,2676756,2676756,2676756]
["          Предоставление субсидий бюджетным, автономным учреждениям и иным некоммерческим организациям","161047039Ч","600","0801",2676756,2676756,2676756]
["        Повышение оплаты труда работников культуры и педагогических работников дополнительного образования детей сферы культуры в соответствии с указами Президента Российской Федерации от 7 мая 2012 года № 597, от 1 июня 2012 года № 761 (МБУК ЦДМ)","161047039Ш",null,null,1534970,1534970,1534970]
["          Предоставление субсидий бюджетным, автономным учреждениям и иным некоммерческим организациям","161047039Ш","600","0801",1534970,1534970,1534970]
["        Повышение оплаты труда работников культуры и педагогических работников дополнительного образования детей сферы культуры в соответствии с указами Президента Российской Федерации от 7 мая 2012 года № 597, от 1 июня 2012 года № 761 (МБУК ЦДМ \"Общедоступная библиотека\")","161047039Ю",null,null,1431460,1431460,1431460]
["          Предоставление субсидий бюджетным, автономным учреждениям и иным некоммерческим организациям","161047039Ю","600","0801",1431460,1431460,1431460]
["        Повышение оплаты труда работников культуры и педагогических работников дополнительного образования детей сферы культуры в соответствии с указами Президента Российской Федерации от 7 мая 2012 года № 597, от 1 июня 2012 года № 761 (МБУК МСДЦ)","161047039Я",null,null,1627305,1627305,1627305]
["          Предоставление субсидий бюджетным, автономным учреждениям и иным некоммерческим организациям","161047039Я","600","0801",1627305,1627305,1627305]
["      Основное мероприятие \"Социальная поддержка населения\"","16105",null,null,16600,16600,16600]
["        Предоставление компенсации по оплате за содержание и ремонт жилья, услуг теплоснабжения (отопления) и электроснабжения работникам культуры муниципальных учреждений, а также компенсации расходов на оплату жилых помещений, отопления и освещения педагогическим работникам образовательных организаций дополнительного образования детей в сфере культуры","1610571960",null,null,16600,16600,16600]
["          Социальное обеспечение и иные выплаты населению","1610571960","300","0804",16600,16600,16600]
["      Основное мероприятие \"Реализация мероприятий в рамках национального проекта \"Культура\" (федеральный проект \"Культурная среда\")\"","161A1",null,null,0,0,4682400]
["        Государственная поддержка отрасли культуры на приобретение музыкальных инструментов, оборудования и материалов для детских школ искусств по видам искусств","161A155192",null,null,0,0,4682400]
["          Предоставление субсидий бюджетным, автономным учреждениям и иным некоммерческим организациям","161A155192","600",null,0,0,4682400]
["            Дополнительное образование детей","161A155192","600","0703",0,0,4682400]
["    Подпрограмма \"Развитие физической культуры и спорта в ЗАТО г.Радужный\"","162",null,null,{"$f":"E424+E428+E441","v":21605499},{"$f":"F424+F428+F441","v":16252233},{"$f":"G424+G428+G441","v":16162133}]
["      Основное мероприятие \"Массовый спорт\"","16201",null,null,300000,0,0]
["        Организация и проведение городских спортивно-массовых и физкультурно-оздоровительных мероприятий, участие сборных команд города в городских. региональных и федеральных спортивных мероприятиях","1620120220",null,null,300000,0,0]
["          Расходы на выплаты персоналу в целях обеспечения выполнения функций государственными (муниципальными) органами, казенными учреждениями, органами управления государственными внебюджетными фондами","1620120220","100","1102",60000,0,0]
["          Закупка товаров, работ и услуг для обеспечения государственных (муниципальных) нужд","1620120220","200","1102",240000,0,0]
["      Основное мероприятие \"Выполнение муниципальных заданий\"","16203",null,null,{"$f":"E429+E432+E434+E437+E439","v":17353205},{"$f":"F429+F432+F434+F437+F439","v":15907405},{"$f":"G429+G432+G434+G437+G439","v":15817305}]
["        Выполнение муниципального задания МБОУ ДО ДЮСШ","162030Ф590",null,null,{"$f":"E430+E431","v":9303157},{"$f":"F430+F431","v":7857357},{"$f":"G430+G431","v":7767257}]
["          Предоставление субсидий бюджетным, автономным учреждениям и иным некоммерческим организациям","162030Ф590","600","0703",8372841,7071621,6990531]
["          Предоставление субсидий бюджетным, автономным учреждениям и иным некоммерческим организациям","162030Ф590","600","1103",930316,785736,776726]
["        Расходы на оплату труда работников культуры и педагогических работников дополнительного образования детей в соответствии с Указами Президента РФ от 07.05.2012 г. №597, от 01.06.2012 г. №761 (МБОУ ДО ДЮСШ)","162030Ф591",null,null,2351983,2351983,2351983]
["          Предоставление субсидий бюджетным, автономным учреждениям и иным некоммерческим организациям","162030Ф591","600","0703",2351983,2351983,2351983]
["        Расходы на оплату труда работников муниципального бюджетного учреждения МБОУ ДО ДЮСШ","162030Ф592",null,null,{"$f":"E435+E436","v":5095535},{"$f":"F435+F436","v":5095535},{"$f":"G435+G436","v":5095535}]
["          Предоставление субсидий бюджетным, автономным учреждениям и иным некоммерческим организациям","162030Ф592","600","0703",4342950,4342950,4342950]
["          Предоставление субсидий бюджетным, автономным учреждениям и иным некоммерческим организациям","162030Ф592","600","1103",752585,752585,752585]
["        Поддержка приоритетных направлений развития отрасли образования (финансовое обеспечение мероприятий, возникающих в связи с доведением оплаты труда педагогических работников муниципальных образовательных учреждений муниципального образования, МБОУ ДО ДЮСШ)","162037147Ф",null,null,524200,524200,524200]
["          Предоставление субсидий бюджетным, автономным учреждениям и иным некоммерческим организациям","162037147Ф","600","0703",524200,524200,524200]
["        Поддержка приоритетных направлений развития отрасли образования (финансовое обеспечение мероприятий, возникающих в связи с доведением оплаты труда педагогических работников муниципальных образовательных учреждений муниципального образования, МБОУ ДО ДЮСШ)","16203S147Ф",null,null,78330,78330,78330]
["          Предоставление субсидий бюджетным, автономным учреждениям и иным некоммерческим организациям","16203S147Ф","600","0703",78330,78330,78330]
["      Основное мероприятие \"Реализация мероприятий в рамках национального проекта \"Демография\" (федеральный проект \"Спорт - норма жизни\")\"","162P5",null,null,3952294,344828,344828]
["        Содержание объектов спортивной инфраструктуры муниципальной собственности для занятий физической культурой и спортом","162P55139S",null,null,3348500,0,0]
["          Предоставление субсидий бюджетным, автономным учреждениям и иным некоммерческим организациям","162P55139S","600","0703",3348500,0,0]
["        Приобретение спортивного оборудования и инвентаря для приведения муниципальных учреждений спортивной подготовки в нормативное состояние (МБОУ ДО ДЮСШ)","162P55229S",null,null,258966,0,0]
["          Предоставление субсидий бюджетным, автономным учреждениям и иным некоммерческим организациям","162P55229S","600","1103",258966,0,0]
["        Реализация программ спортивной подготовки в соответствии с требованиями федеральных стандартов спортивной подготовки (МБОУ ДО ДЮСШ)","162P57170S",null,null,344828,344828,344828]
["          Предоставление субсидий бюджетным, автономным учреждениям и иным некоммерческим организациям","162P57170S","600","1103",344828,344828,344828]
["    Подпрограмма \"Повышение правовой культуры населения ЗАТО г.Радужный Владимирской области\"","163",null,null,1500,0,0]
["      Основное мероприятие \"Организационно-методическое обеспечение в сфере правового просвещения\"","16301",null,null,1500,0,0]
["        Систематическое пополнение информационной базы \"Информационно-правового центра\", находящегося в МБУК \"Общедоступная библиотека\"","163012Ю220",null,null,1500,0,0]
["          Предоставление субсидий бюджетным, автономным учреждениям и иным некоммерческим организациям","163012Ю220","600","0801",1500,0,0]
["    Подпрограмма \"Укрепление межнационального и межконфессионного согласия на территории ЗАТО г.Радужный Владимирской области\"","164",null,null,50000,0,0]
["      Основное мероприятие \"Реализация Стратегии государственной национальной политики Российской Федерации на территории муниципального образования ЗАТО г.Радужный Владимирской области\"","16401",null,null,50000,0,0]
["        Мероприятия, направленные на совершенствование муниципального управления в сфере государственной национальной политики РФ","1640120220",null,null,50000,0,0]
["          Закупка товаров, работ и услуг для обеспечения государственных (муниципальных) нужд","1640120220","200","0801",50000,0,0]
["  Муниципальная программа \"Создание благоприятных условий для развития молодого поколения ЗАТО г.Радужный Владимирской области\"","17",null,null,1231209,145209,145209]
["    Подпрограмма \"Социальная поддержка детей, оказавшихся в трудной жизненной ситуации\"","171",null,null,275000,0,0]
["      Основное мероприятие \"Адресная помощь детям-инвалидам, семьям с детьми инвалидами, многодетным семьям\"","17101",null,null,275000,0,0]
["        Мероприятия, направленные на создание условий для социальной адаптации детей из многодетных семей и семей, оказавшихся в трудной жизненной ситуации","1710120220",null,null,265000,0,0]
["          Закупка товаров, работ и услуг для обеспечения государственных (муниципальных) нужд","1710120220","200","0707",15000,0,0]
["          Социальное обеспечение и иные выплаты населению","1710120220","300","1003",250000,0,0]
["        Приобретение комплекта развивающих игр для детей-инвалидов, посещающих МБУК \"Общедоступная библиотека\"","171012Ю220",null,null,10000,0,0]
["          Предоставление субсидий бюджетным, автономным учреждениям и иным некоммерческим организациям","171012Ю220","600","0707",10000,0,0]
["    Подпрограмма \"Организация досуга и воспитание детей\"","172",null,null,155000,0,0]
["      Основное мероприятие \"Организация мероприятий для семей с детьми\"","17201",null,null,155000,0,0]
["        Проведение городских тематических праздников (Дня семьи, Международного Дня защиты, детей, Дня матери, Дня семьи, любви и верности и т.п.), городских акций для детей и молодежи","1720120220",null,null,20000,0,0]
["          Закупка товаров, работ и услуг для обеспечения государственных (муниципальных) нужд","1720120220","200","0707",20000,0,0]
["        Мероприятия, направленные на создание условий для занятий творчеством воспитанников детских образцовых коллективов, организацию досуга для детей (МБУК КЦ \"Досуг\")","172012Ч220",null,null,40000,0,0]
["          Предоставление субсидий бюджетным, автономным учреждениям и иным некоммерческим организациям","172012Ч220","600","0707",40000,0,0]
["        Мероприятия, направленные на организацию досуговой деятельности подростков в летний период в городском парке (МБУК ПКиО)","172012Э220",null,null,95000,0,0]
["          Предоставление субсидий бюджетным, автономным учреждениям и иным некоммерческим организациям","172012Э220","600",null,95000,0,0]
["          Предоставление субсидий бюджетным, автономным учреждениям и иным некоммерческим организациям","172012Э220","600","0707",60000,0,0]
["          Предоставление субсидий бюджетным, автономным учреждениям и иным некоммерческим организациям","172012Э220","600","0801",35000,0,0]
["    Подпрограмма \"Молодежь города\"","173",null,null,86000,0,0]
["      Основное мероприятие \"Молодежь города\"","17301",null,null,86000,0,0]
["        Мероприятия, направленные на формирование и развитие гражданственности и патриотизма молодежи, воспитание уважения к историческому и культурному наследию, в том числе проведение акций, конкурсов среди молодежи города","1730120220",null,null,86000,0,0]
["          Закупка товаров, работ и услуг для обеспечения государственных (муниципальных) нужд","1730120220","200","0707",33000,0,0]
["          Социальное обеспечение и иные выплаты населению","1730120220","300","0707",10000,0,0]
["          Предоставление субсидий бюджетным, автономным учреждениям и иным некоммерческим организациям","1730120220","600","0707",43000,0,0]
["    Подпрограмма \"Временная занятость детей и молодежи\"","174",null,null,715209,145209,145209]
["      Основное мероприятие \"Временная занятость детей и молодежи\"","17401",null,null,715209,145209,145209]
["        Организация временной занятости детей и молодежи в муниципальных учреждениях города","1740120220",null,null,145209,145209,145209]
["          Расходы на выплаты персоналу в целях обеспечения выполнения функций государственными (муниципальными) органами, казенными учреждениями, органами управления государственными внебюджетными фондами","1740120220","100","0401",145209,145209,145209]
["        Организация временной занятости детей и молодежи в МБОУ СОШ №1","174012И220",null,null,121000,0,0]
["          Предоставление субсидий бюджетным, автономным учреждениям и иным некоммерческим организациям","174012И220","600","0401",121000,0,0]
["        Организация временной занятости детей и молодежи в МБОУ ДО ДШИ","174012П220",null,null,340000,0,0]
["          Предоставление субсидий бюджетным, автономным учреждениям и иным некоммерческим организациям","174012П220","600","0401",340000,0,0]
["        Организация временной занятости детей и молодежи в МБОУ ДО ЦВР \"Лад\"","174012Ц220",null,null,109000,0,0]
["          Предоставление субсидий бюджетным, автономным учреждениям и иным некоммерческим организациям","174012Ц220","600","0401",109000,0,0]
["  Непрограммные расходы органов местного самоуправления",null,null,null,{"$f":"E491+E495+E499","v":31443137},{"$f":"F491+F495+F499","v":25870220},28813720]
["  Глава города ЗАТО г.Радужный Владимирской области","90",null,null,1954974,1954974,1954974]
["    Обеспечение деятельности главы города ЗАТО г.Радужный Владимирской области","909",null,null,1954974,1954974,1954974]
["        Расходы на выплаты по оплате труда главы города ЗАТО г.Радужный Владимирской области","9090000110",null,null,1954974,1954974,1954974]
["          Расходы на выплаты персоналу в целях обеспечения выполнения функций государственными (муниципальными) органами, казенными учреждениями, органами управления государственными внебюджетными фондами","9090000110","100","0102",1954974,1954974,1954974]
["  Совет народных депутатов ЗАТО г.Радужный Владимирской области","95",null,null,1669455,1669455,1669455]
["    Депутаты Совета народных депутатов ЗАТО г.Радужный Владимирской области","952",null,null,1669455,1669455,1669455]
["        Расходы на выплаты по оплате труда депутатов Совета народных депутатов ЗАТО г.Радужный Владимирской области","9520000110",null,null,1669455,1669455,1669455]
["          Расходы на выплаты персоналу в целях обеспечения выполнения функций государственными (муниципальными) органами, казенными учреждениями, органами управления государственными внебюджетными фондами","9520000110","100","0103",1669455,1669455,1669455]
["  Непрограммные расходы органов местного самоуправления ЗАТО г.Радужный Владимирской области","99",null,null,27818708,22245791,25189291]
["    Непрограммные расходы бюджета ЗАТО г.Радужный Владимирской области","999",null,null,27818708,22245791,25189291]
["        Расходы на выплаты по оплате труда работников органов местного самоуправления ЗАТО г.Радужный Владимирской области","9990000110",null,null,21778100,18768983,21748983]
["          Расходы на выплаты персоналу в целях обеспечения выполнения функций государственными (муниципальными) органами, казенными учреждениями, органами управления государственными внебюджетными фондами","9990000110","100",null,21778100,18768983,21748983]
["          Расходы на выплаты персоналу в целях обеспечения выполнения функций государственными (муниципальными) органами, казенными учреждениями, органами управления государственными внебюджетными фондами","9990000110","100","0103",370373,370373,370373]
["          Расходы на выплаты персоналу в целях обеспечения выполнения функций государственными (муниципальными) органами, казенными учреждениями, органами управления государственными внебюджетными фондами","9990000110","100","0104",8194429,7353029,8333029]
["          Расходы на выплаты персоналу в целях обеспечения выполнения функций государственными (муниципальными) органами, казенными учреждениями, органами управления государственными внебюджетными фондами","9990000110","100","0106",5318529,4298529,5298529]
["          Расходы на выплаты персоналу в целях обеспечения выполнения функций государственными (муниципальными) органами, казенными учреждениями, органами управления государственными внебюджетными фондами","9990000110","100","0113",6107973,5107973,6107973]
["          Расходы на выплаты персоналу в целях обеспечения выполнения функций государственными (муниципальными) органами, казенными учреждениями, органами управления государственными внебюджетными фондами","9990000110","100","0709",1786796,1639079,1639079]
["        Расходы на обеспечение функций органов местного самоуправления ЗАТО г.Радужный Владимирской области","9990000190",null,null,82008,78008,77008]
["        Расходы на обеспечение функций органов местного самоуправления ЗАТО г.Радужный Владимирской области","9990000190","100",null,14200,14200,14200]
["        Расходы на обеспечение функций органов местного самоуправления ЗАТО г.Радужный Владимирской области","9990000190","100","0104",14200,14200,14200]
["          Закупка товаров, работ и услуг для обеспечения государственных (муниципальных) нужд","9990000190","200",null,67808,63808,62808]
["          Закупка товаров, работ и услуг для обеспечения государственных (муниципальных) нужд","9990000190","200","0103",24372,24372,24372]
["          Закупка товаров, работ и услуг для обеспечения государственных (муниципальных) нужд","9990000190","200","0106",18000,14000,13000]
["          Закупка товаров, работ и услуг для обеспечения государственных (муниципальных) нужд","9990000190","200","0113",25436,25436,25436]
["        Расходы на обслуживание муниципального долга ЗАТО г.Радужный Владимирской области","9990020300",null,null,500000,500000,500000]
["          Обслуживание государственного (муниципального) долга","9990020300","700","1301",500000,500000,500000]
["        Расходы на оплату взносов в ассоциации и участие в семинарах в рамках непрограммных расходов органов местного самоуправления ЗАТО г.Радужный Владимирской области","9990020400",null,null,100000,0,0]
["          Иные бюджетные ассигнования","9990020400","800","0113",100000,0,0]
["        Резерв на выполнение условий софинансирования участия в федеральных, областных приоритетных проектах и программах","9990021240",null,null,1500000,0,0]
["          Иные бюджетные ассигнования","9990021240","800","0412",1500000,0,0]
["        Осуществление полномочий по составлению (изменению) списков кандидатов в присяжные заседатели федеральных судов общей юрисдикции в Российской Федерации","9990051200",null,null,2000,22200,700]
["          Закупка товаров, работ и услуг для обеспечения государственных (муниципальных) нужд","9990051200","200","0105",2000,22200,700]
["        Осуществление полномочий Российской Федерации на государственную регистрацию актов гражданского состояния","9990059300",null,null,547000,562000,548000]
["          Расходы на выплаты персоналу в целях обеспечения выполнения функций государственными (муниципальными) органами, казенными учреждениями, органами управления государственными внебюджетными фондами","9990059300","100","0113",333900,333900,333900]
["          Закупка товаров, работ и услуг для обеспечения государственных (муниципальных) нужд","9990059300","200","0113",213100,228100,214100]
["        Обеспечение деятельности комиссий по делам несовершеннолетних и защите их прав","9990070010",null,null,423900,428900,428900]
["          Расходы на выплаты персоналу в целях обеспечения выполнения функций государственными (муниципальными) органами, казенными учреждениями, органами управления государственными внебюджетными фондами","9990070010","100","0104",365000,365000,365000]
["          Закупка товаров, работ и услуг для обеспечения государственных (муниципальных) нужд","9990070010","200","0104",58900,63900,63900]
["        Осуществление отдельных государственных полномочий по вопросам административного законодательства","9990070020",null,null,433300,433300,433300]
["          Расходы на выплаты персоналу в целях обеспечения выполнения функций государственными (муниципальными) органами, казенными учреждениями, органами управления государственными внебюджетными фондами","9990070020","100","0104",365000,365000,365000]
["          Закупка товаров, работ и услуг для обеспечения государственных (муниципальных) нужд","9990070020","200","0104",68300,68300,68300]
["        Обеспечение полномочий по организации и осуществлению деятельности по опеке и попечительству в отношении несовершеннолетних граждан","9990070070",null,null,1104400,1104400,1104400]
["          Расходы на выплаты персоналу в целях обеспечения выполнения функций государственными (муниципальными) органами, казенными учреждениями, органами управления государственными внебюджетными фондами","9990070070","100","1006",1030431,1030431,1030431]
["          Закупка товаров, работ и услуг для обеспечения государственных (муниципальных) нужд","9990070070","200","1006",73969,73969,73969]
["        Осуществление отдельных государственных полномочий по региональному государственному жилищному надзору и лицензионному контролю","9990071370",null,null,348000,348000,348000]
["          Расходы на выплаты персоналу в целях обеспечения выполнения функций государственными (муниципальными) органами, казенными учреждениями, органами управления государственными внебюджетными фондами","9990071370","100","0505",348000,348000,348000]
["        Резервный фонд администрации ЗАТО г.Радужный Владимирской области","9990081000",null,null,1000000,0,0]
["          Иные бюджетные ассигнования","9990081000","800","0111",1000000,0,0]
[]
["Заместитель главы администрации города по финансам и экономике, начальник финансового управления",null,null,null,null,"О.М. Горшкова"]
[]
[]
["В.Н.Милованова 3-67-17"]